Department,Entity, Transaction Date, Expense Type, Expense Area, Supplier Name,Transaction number, Amount, Invoice Description
DFID,DFID,01/07/2016,Air fares ,East and Central Africa ,Corporate travel provider,100016-107 ,"2,899.83",
DFID,DFID,29/07/2016,Air fares ,East and Central Africa ,Corporate travel provider,100016-107 ,770.51,
DFID,DFID,01/07/2016,Air fares ,Asia  Caribbean and Overseas Territories ,Corporate travel provider,100025-101 ,586.15,
DFID,DFID,01/07/2016,Training - Travel & Subsistence ,Asia  Caribbean and Overseas Territories ,Corporate travel provider,100027-101 ,883.50,
DFID,DFID,01/07/2016,Air fares ,Research and Evidence Division ,Corporate travel provider,100039-108 ,"1,014.55",
DFID,DFID,01/07/2016,Air fares ,Research and Evidence Division ,Corporate travel provider,100039-108 ,"1,185.75",
DFID,DFID,29/07/2016,Hotels - Accommodation only ,Research and Evidence Division ,Corporate travel provider,100039-108 ,"1,610.18",
DFID,DFID,29/07/2016,Hotels - Accommodation only ,Research and Evidence Division ,Corporate travel provider,100039-111 ,723.17,
DFID,DFID,01/07/2016,Air fares ,Research and Evidence Division ,Corporate travel provider,100039-111 ,626.65,
DFID,DFID,01/07/2016,Air fares ,Policy Division ,Corporate travel provider,100045-101 ,"1,048.55",
DFID,DFID,01/07/2016,Hotels - Accommodation only ,Policy Division ,Corporate travel provider,100045-101 ,924.52,
DFID,DFID,29/07/2016,Air fares ,Policy Division ,Corporate travel provider,100045-101 ,831.15,
DFID,DFID,29/07/2016,Hotels - Accommodation only ,Conflict  Humanitarian  Security & Stabilisation Division ,Corporate travel provider,100049-133 ,815.25,
DFID,DFID,29/07/2016,Hotels - Accommodation only ,Conflict  Humanitarian  Security & Stabilisation Division ,Corporate travel provider,100049-133 ,833.58,
DFID,DFID,29/07/2016,Hotels - Accommodation only ,Conflict  Humanitarian  Security & Stabilisation Division ,Corporate travel provider,100049-133 ,996.97,
DFID,DFID,01/07/2016,Air fares ,Conflict  Humanitarian  Security & Stabilisation Division ,Corporate travel provider,100049-133 ,959.72,
DFID,DFID,01/07/2016,Air fares ,Conflict  Humanitarian  Security & Stabilisation Division ,Corporate travel provider,100049-133 ,959.72,
DFID,DFID,01/07/2016,Air fares ,Conflict  Humanitarian  Security & Stabilisation Division ,Corporate travel provider,100049-133 ,959.72,
DFID,DFID,01/07/2016,Hotels - Accommodation only ,West and Southern Africa ,Corporate travel provider,100068-101 ,"1,234.00",
DFID,DFID,01/07/2016,Hotels - Accommodation only ,West and Southern Africa ,Corporate travel provider,100068-101 ,974.00,
DFID,DFID,01/07/2016,Air fares ,West and Southern Africa ,Corporate travel provider,100068-101 ,771.50,
DFID,DFID,01/07/2016,Hotels - Accommodation only ,West and Southern Africa ,Corporate travel provider,100068-101 ,818.65,
DFID,DFID,04/07/2016,Air fares ,East and Central Africa ,Foreign & Commonwealth Office ,100082-101 ,774.27,
DFID,DFID,01/07/2016,Air fares ,Asia  Caribbean and Overseas Territories ,Corporate travel provider,100084-101 ,835.25,
DFID,DFID,01/07/2016,Air fares ,Asia  Caribbean and Overseas Territories ,Corporate travel provider,100084-101 ,835.25,
DFID,DFID,01/07/2016,Air fares ,Asia  Caribbean and Overseas Territories ,Corporate travel provider,100084-101 ,661.10,
DFID,DFID,01/07/2016,Air fares ,Asia  Caribbean and Overseas Territories ,Corporate travel provider,100084-101 ,507.45,
DFID,DFID,29/07/2016,Air fares ,Asia  Caribbean and Overseas Territories ,Corporate travel provider,100084-101 ,565.15,
DFID,DFID,29/07/2016,Air fares ,Asia  Caribbean and Overseas Territories ,Corporate travel provider,100084-101 ,812.50,
DFID,DFID,29/07/2016,Air fares ,Research and Evidence Division ,Corporate travel provider,100088-101 ,602.84,
DFID,DFID,29/07/2016,Air fares ,Global Funds ,Corporate travel provider,100098-101 ,511.00,
DFID,DFID,29/07/2016,Hotels - Accommodation only ,Global Funds ,Corporate travel provider,100098-101 ,557.00,
DFID,DFID,01/07/2016,Hotels - Accommodation only ,Global Funds ,Corporate travel provider,100098-101 ,"1,069.42",
DFID,DFID,01/07/2016,Air fares ,Global Funds ,Corporate travel provider,100098-101 ,"1,865.20",
DFID,DFID,01/07/2016,Air fares ,Global Funds ,Corporate travel provider,100098-101 ,"2,996.60",
DFID,DFID,01/07/2016,Air fares ,Economic Development Division ,Corporate travel provider,100111-101 ,606.30,
DFID,DFID,01/07/2016,Air fares ,Economic Development Division ,Corporate travel provider,100111-101 ,536.71,
DFID,DFID,01/07/2016,Air fares ,Economic Development Division ,Corporate travel provider,100111-101 ,909.97,
DFID,DFID,29/07/2016,Hotels - Accommodation only ,Economic Development Division ,Corporate travel provider,100111-101 ,646.43,
DFID,DFID,29/07/2016,Air fares ,Economic Development Division ,Corporate travel provider,100111-101 ,984.25,
DFID,DFID,01/07/2016,Hotels - Accommodation only ,Asia  Caribbean and Overseas Territories ,Corporate travel provider,100113-101 ,725.00,
DFID,DFID,01/07/2016,Air fares ,Internal Audit ,Corporate travel provider,100121-101 ,570.20,
DFID,DFID,01/07/2016,Hotels - Accommodation only ,Internal Audit ,Corporate travel provider,100121-101 ,503.05,
DFID,DFID,01/07/2016,Hotels - Accommodation only ,Internal Audit ,Corporate travel provider,100121-101 ,751.00,
DFID,DFID,01/07/2016,Air fares ,Internal Audit ,Corporate travel provider,100121-101 ,"1,414.57",
DFID,DFID,01/07/2016,Air fares ,Internal Audit ,Corporate travel provider,100121-101 ,"1,414.57",
DFID,DFID,04/07/2016,Hotels - Accommodation only ,Internal Audit ,Foreign & Commonwealth Office ,100121-101 ,"2,032.61",
DFID,DFID,01/07/2016,Air fares ,Internal Audit ,Corporate travel provider,100121-101 ,570.20,
DFID,DFID,01/07/2016,Air fares ,Internal Audit ,Corporate travel provider,100121-101 ,582.45,
DFID,DFID,01/07/2016,Air fares ,Internal Audit ,Corporate travel provider,100121-101 ,582.45,
DFID,DFID,01/07/2016,Hotels - Accommodation only ,Internal Audit ,Corporate travel provider,100121-101 ,518.80,
DFID,DFID,29/07/2016,Air fares ,Internal Audit ,Corporate travel provider,100121-101 ,862.01,
DFID,DFID,29/07/2016,Hotels - Accommodation only ,Internal Audit ,Corporate travel provider,100121-101 ,778.00,
DFID,DFID,29/07/2016,Hotels - Accommodation only ,Internal Audit ,Corporate travel provider,100121-101 ,839.80,
DFID,DFID,29/07/2016,Air fares ,Economic Development Division ,Corporate travel provider,100124-101 ,"2,846.07",
DFID,DFID,01/07/2016,Air fares ,Economic Development Division ,Corporate travel provider,100124-101 ,"1,057.75",
DFID,DFID,01/07/2016,Air fares ,Economic Development Division ,Corporate travel provider,100124-101 ,948.11,
DFID,DFID,01/07/2016,Air fares ,Middle East and North Africa Division ,Corporate travel provider,100146-101 ,867.56,
DFID,DFID,29/07/2016,Air fares ,Middle East and North Africa Division ,Corporate travel provider,100146-101 ,"1,494.15",
DFID,DFID,29/07/2016,Air fares ,Middle East and North Africa Division ,Corporate travel provider,100146-101 ,578.20,
DFID,DFID,29/07/2016,Hotels - Accommodation only ,Group Operations ,Corporate travel provider,100161-101 ,500.00,
DFID,DFID,29/07/2016,Hotels - Accommodation only ,East and Central Africa ,Corporate travel provider,100227-101 ,567.00,
DFID,DFID,29/07/2016,Air fares ,Top Management Group ,Corporate travel provider,100232-102 ,"2,110.82",
DFID,DFID,29/07/2016,Air fares ,Top Management Group ,Corporate travel provider,100232-102 ,"3,578.32",
DFID,DFID,29/07/2016,Air fares ,Top Management Group ,Corporate travel provider,100232-102 ,975.00,
DFID,DFID,29/07/2016,Air fares ,Top Management Group ,Corporate travel provider,100232-102 ,"2,455.15",
DFID,DFID,04/07/2016,Air fares ,Top Management Group ,Foreign & Commonwealth Office ,100232-102 ,"1,004.57",
DFID,DFID,04/07/2016,Air fares ,Top Management Group ,Foreign & Commonwealth Office ,100232-102 ,578.91,
DFID,DFID,29/07/2016,Air fares ,Top Management Group ,Corporate travel provider,100232-102 ,"1,494.15",
DFID,DFID,29/07/2016,Air fares ,Top Management Group ,Corporate travel provider,100232-103 ,975.00,
DFID,DFID,29/07/2016,Air fares ,Top Management Group ,Corporate travel provider,100232-103 ,"2,455.15",
DFID,DFID,29/07/2016,Air fares ,Top Management Group ,Corporate travel provider,100232-103 ,"2,974.82",
DFID,DFID,01/07/2016,Air fares ,Top Management Group ,Corporate travel provider,100232-104 ,946.15,
DFID,DFID,01/07/2016,Air fares ,Top Management Group ,Corporate travel provider,100232-104 ,946.15,
DFID,DFID,29/07/2016,Air fares ,Top Management Group ,Corporate travel provider,100232-104 ,"4,469.25",
DFID,DFID,29/07/2016,Air fares ,Top Management Group ,Corporate travel provider,100232-104 ,"4,469.25",
DFID,DFID,29/07/2016,Air fares ,Top Management Group ,Corporate travel provider,100232-105 ,"3,646.55",
DFID,DFID,01/07/2016,Air fares ,Top Management Group ,Corporate travel provider,100232-105 ,"1,198.90",
DFID,DFID,01/07/2016,Air fares ,Top Management Group ,Corporate travel provider,100232-105 ,954.25,
DFID,DFID,01/07/2016,Air fares ,Top Management Group ,Corporate travel provider,100232-105 ,"2,806.78",
DFID,DFID,01/07/2016,Air fares ,Top Management Group ,Corporate travel provider,100232-106 ,557.40,
DFID,DFID,01/07/2016,Air fares ,Top Management Group ,Corporate travel provider,100232-106 ,"3,432.70",
DFID,DFID,01/07/2016,Air fares ,Top Management Group ,Corporate travel provider,100232-106 ,"3,432.70",
DFID,DFID,01/07/2016,Air fares ,Top Management Group ,Corporate travel provider,100232-106 ,557.40,
DFID,DFID,29/07/2016,Air fares ,Top Management Group ,Corporate travel provider,100232-107 ,"4,364.55",
DFID,DFID,29/07/2016,Air fares ,Top Management Group ,Corporate travel provider,100232-107 ,"2,753.55",
DFID,DFID,01/07/2016,Air fares ,Top Management Group ,Corporate travel provider,100232-108 ,"1,543.75",
DFID,DFID,01/07/2016,Air fares ,Top Management Group ,Corporate travel provider,100232-108 ,"2,384.75",
DFID,DFID,01/07/2016,Air fares ,Top Management Group ,Corporate travel provider,100232-108 ,"1,912.78",
DFID,DFID,01/07/2016,Air fares ,Top Management Group ,Corporate travel provider,100232-108 ,"1,912.78",
DFID,DFID,01/07/2016,Air fares ,Top Management Group ,Corporate travel provider,100232-108 ,"2,604.01",
DFID,DFID,01/07/2016,Air fares ,Top Management Group ,Corporate travel provider,100232-108 ,"2,604.01",
DFID,DFID,07/07/2016,"Conferences, Seminars & Meeting/Event Resource",International Relations Division ,Foreign & Commonwealth Office ,100236-101 ,"1,721.68",
DFID,DFID,20/07/2016,Hotels - Accommodation only ,International Relations Division ,Foreign & Commonwealth Office ,100238-101 ,579.15,
DFID,DFID,01/07/2016,Other passenger transport ,International Relations Division ,Corporate travel provider,100240-101 ,"1,098.48",
DFID,DFID,01/07/2016,Hotels - Accommodation only ,Finance and Corporate Performance Division ,Corporate travel provider,100201-101 ,515.00,
DFID,DFID,29/07/2016,Air fares ,Communications Division ,Corporate travel provider,100197-101 ,829.25,
DFID,DFID,01/07/2016,Air fares ,West and Southern Africa ,Corporate travel provider,100214-101 ,"1,099.63",
DFID,DFID,29/07/2016,Other passenger transport ,International Relations Division ,Corporate travel provider,100262-101 ,"1,785.29",
DFID,DFID,29/07/2016,Hotels - Accommodation only ,Human Resources ,Corporate travel provider,100266-103 ,500.00,
DFID,DFID,29/07/2016,Air fares ,Human Resources ,Corporate travel provider,100269-128 ,838.15,
DFID,DFID,01/07/2016,Air fares ,Policy Division ,Corporate travel provider,100275-101 ,789.55,
DFID,DFID,01/07/2016,Air fares ,Economic Development Division ,Corporate travel provider,100276-101 ,"1,656.32",
DFID,DFID,01/07/2016,Air fares ,Economic Development Division ,Corporate travel provider,100276-101 ,556.79,
DFID,DFID,01/07/2016,Air fares ,Economic Development Division ,Corporate travel provider,100276-101 ,790.25,
DFID,DFID,01/07/2016,Air fares ,Policy Division ,Corporate travel provider,100277-101 ,"1,519.55",
DFID,DFID,01/07/2016,Air fares ,Policy Division ,Corporate travel provider,100277-101 ,752.55,
DFID,DFID,01/07/2016,Air fares ,Policy Division ,Corporate travel provider,100277-101 ,"1,014.91",
DFID,DFID,01/07/2016,Hotels - Accommodation only ,Policy Division ,Corporate travel provider,100277-101 ,556.56,
DFID,DFID,29/07/2016,Air fares ,Policy Division ,Corporate travel provider,100277-101 ,"2,011.51",
DFID,DFID,29/07/2016,Air fares ,Policy Division ,Corporate travel provider,100277-101 ,"1,644.31",
DFID,DFID,29/07/2016,Air fares ,Policy Division ,Corporate travel provider,100277-108 ,"2,273.31",
DFID,DFID,01/07/2016,Air fares ,Finance and Corporate Performance Division ,Corporate travel provider,101001-101 ,869.27,
DFID,DFID,01/07/2016,Air fares ,Asia  Caribbean and Overseas Territories ,Supplier Name withheld ,101601-110 ,988.31,
DFID,DFID,01/07/2016,Air fares ,Asia  Caribbean and Overseas Territories ,Supplier Name withheld ,101601-110 ,615.15,
DFID,DFID,01/07/2016,Air fares ,Asia  Caribbean and Overseas Territories ,Supplier Name withheld ,101601-110 ,984.65,
DFID,DFID,01/07/2016,Air fares ,Asia  Caribbean and Overseas Territories ,Supplier Name withheld ,101601-110 ,974.80,
DFID,DFID,01/07/2016,Air fares ,Asia  Caribbean and Overseas Territories ,Supplier Name withheld ,101601-110 ,"3,223.98",
DFID,DFID,01/07/2016,Air fares ,Asia  Caribbean and Overseas Territories ,Supplier Name withheld ,101601-110 ,971.65,
DFID,DFID,01/07/2016,Air fares ,Asia  Caribbean and Overseas Territories ,Supplier Name withheld ,101601-110 ,"2,038.21",
DFID,DFID,01/07/2016,Air fares ,Asia  Caribbean and Overseas Territories ,Supplier Name withheld ,101601-110 ,"1,417.91",
DFID,DFID,01/07/2016,Air fares ,Asia  Caribbean and Overseas Territories ,Supplier Name withheld ,101601-110 ,952.25,
DFID,DFID,29/07/2016,Air fares ,Asia  Caribbean and Overseas Territories ,Supplier Name withheld ,101601-110 ,"1,497.18",
DFID,DFID,29/07/2016,Air fares ,Asia  Caribbean and Overseas Territories ,Supplier Name withheld ,101601-110 ,"1,108.72",
DFID,DFID,29/07/2016,Air fares ,Asia  Caribbean and Overseas Territories ,Supplier Name withheld ,101601-110 ,"1,399.20",
DFID,DFID,29/07/2016,Air fares ,Asia  Caribbean and Overseas Territories ,Supplier Name withheld ,101601-110 ,"1,153.05",
DFID,DFID,29/07/2016,Air fares ,Asia  Caribbean and Overseas Territories ,Supplier Name withheld ,101601-110 ,945.40,
DFID,DFID,25/07/2016,Contract Catering Services ,Asia  Caribbean and Overseas Territories ,Foreign & Commonwealth Office ,101601-110 ,905.65,
DFID,DFID,25/07/2016,Storage & Distribution costs,Asia  Caribbean and Overseas Territories ,Foreign & Commonwealth Office ,101601-110 ,"8,000.55",
DFID,DFID,25/07/2016,Other passenger transport ,Asia  Caribbean and Overseas Territories ,Foreign & Commonwealth Office ,101601-110 ,915.94,
DFID,DFID,25/07/2016,Air fares ,Asia  Caribbean and Overseas Territories ,Foreign & Commonwealth Office ,101601-110 ,671.81,
DFID,DFID,01/07/2016,Air fares ,Asia  Caribbean and Overseas Territories ,Supplier Name withheld ,101601-110 ,"2,938.20",
DFID,DFID,29/07/2016,Air fares ,Asia  Caribbean and Overseas Territories ,Supplier Name withheld ,101601-110 ,714.70,
DFID,DFID,01/07/2016,Air fares ,Asia  Caribbean and Overseas Territories ,Corporate travel provider,101603-101 ,830.71,
DFID,DFID,01/07/2016,Hotels - Accommodation only ,Asia  Caribbean and Overseas Territories ,Corporate travel provider,101603-102 ,"1,053.00",
DFID,DFID,04/07/2016,Hotels - Accommodation only ,Asia  Caribbean and Overseas Territories ,Foreign & Commonwealth Office ,101604-101 ,"1,123.35",
DFID,DFID,04/07/2016,Air fares ,Asia  Caribbean and Overseas Territories ,Foreign & Commonwealth Office ,101604-101 ,985.37,
DFID,DFID,04/07/2016,Hotels - Accommodation only ,Asia  Caribbean and Overseas Territories ,Foreign & Commonwealth Office ,101604-101 ,617.56,
DFID,DFID,04/07/2016,Hotels - Accommodation only ,Asia  Caribbean and Overseas Territories ,Foreign & Commonwealth Office ,101604-101 ,617.55,
DFID,DFID,04/07/2016,Hotels - Accommodation only ,Asia  Caribbean and Overseas Territories ,Foreign & Commonwealth Office ,101604-101 ,685.28,
DFID,DFID,08/07/2016,Air fares ,Asia  Caribbean and Overseas Territories ,Foreign & Commonwealth Office ,101604-101 ,"1,794.45",
DFID,DFID,28/07/2016,Vehicle Hire Charges ,Asia  Caribbean and Overseas Territories ,Foreign & Commonwealth Office ,101604-101 ,619.47,
DFID,DFID,28/07/2016,Training - Travel & Subsistence ,Asia  Caribbean and Overseas Territories ,Foreign & Commonwealth Office ,101604-101 ,"1,016.00",
DFID,DFID,28/07/2016,Training - Travel & Subsistence ,Asia  Caribbean and Overseas Territories ,Foreign & Commonwealth Office ,101604-101 ,"1,016.00",
DFID,DFID,28/07/2016,Air fares ,Asia  Caribbean and Overseas Territories ,Foreign & Commonwealth Office ,101604-101 ,921.65,
DFID,DFID,29/07/2016,Air fares ,Asia  Caribbean and Overseas Territories ,Corporate travel provider,101605-101 ,"1,311.30",
DFID,DFID,21/07/2016,Air fares ,Asia  Caribbean and Overseas Territories ,Foreign & Commonwealth Office ,101605-101 ,791.87,
DFID,DFID,21/07/2016,Hotels - Accommodation only ,Asia  Caribbean and Overseas Territories ,Foreign & Commonwealth Office ,101605-101 ,641.40,
DFID,DFID,01/07/2016,Air fares ,Asia  Caribbean and Overseas Territories ,Corporate travel provider,101605-101 ,"1,806.25",
DFID,DFID,01/07/2016,Air fares ,Asia  Caribbean and Overseas Territories ,Corporate travel provider,101605-101 ,727.77,
DFID,DFID,01/07/2016,Air fares ,Asia  Caribbean and Overseas Territories ,Corporate travel provider,101605-101 ,"1,447.30",
DFID,DFID,01/07/2016,Air fares ,West and Southern Africa ,Corporate travel provider,101610-101 ,530.00,
DFID,DFID,29/07/2016,Air fares ,West and Southern Africa ,Corporate travel provider,101610-101 ,"1,541.50",
DFID,DFID,29/07/2016,Air fares ,West and Southern Africa ,Corporate travel provider,101610-101 ,823.30,
DFID,DFID,29/07/2016,Air fares ,West and Southern Africa ,Corporate travel provider,101610-101 ,823.30,
DFID,DFID,21/07/2016,Medical/Health Services ,East and Central Africa ,Foreign & Commonwealth Office ,101612-101 ,797.55,
DFID,DFID,21/07/2016,Hotels - Accommodation only ,East and Central Africa ,Foreign & Commonwealth Office ,101612-101 ,598.63,
DFID,DFID,21/07/2016,Telephone Usage & services ,East and Central Africa ,Foreign & Commonwealth Office ,101612-101 ,"1,896.49",
DFID,DFID,21/07/2016,Hotels - Accommodation only ,East and Central Africa ,Foreign & Commonwealth Office ,101612-101 ,"10,207.68",
DFID,DFID,01/07/2016,Air fares ,East and Central Africa ,Corporate travel provider,101612-101 ,"2,995.68",
DFID,DFID,01/07/2016,Air fares ,East and Central Africa ,Corporate travel provider,101612-101 ,579.67,
DFID,DFID,04/07/2016,Air fares ,East and Central Africa ,Foreign & Commonwealth Office ,101612-101 ,713.97,
DFID,DFID,04/07/2016,Air fares ,East and Central Africa ,Foreign & Commonwealth Office ,101612-101 ,579.37,
DFID,DFID,04/07/2016,Hotels - Accommodation only ,East and Central Africa ,Foreign & Commonwealth Office ,101612-101 ,"1,062.23",
DFID,DFID,01/07/2016,Hotels - Accommodation only ,West and Southern Africa ,Corporate travel provider,101613-101 ,988.80,
DFID,DFID,01/07/2016,Air fares ,West and Southern Africa ,Corporate travel provider,101613-101 ,"1,054.85",
DFID,DFID,29/07/2016,Air fares ,West and Southern Africa ,Corporate travel provider,101613-101 ,864.37,
DFID,DFID,29/07/2016,Air fares ,West and Southern Africa ,Corporate travel provider,101613-101 ,835.85,
DFID,DFID,29/07/2016,Air fares ,West and Southern Africa ,Corporate travel provider,101613-101 ,628.85,
DFID,DFID,29/07/2016,Air fares ,West and Southern Africa ,Corporate travel provider,101613-101 ,628.85,
DFID,DFID,29/07/2016,Air fares ,West and Southern Africa ,Corporate travel provider,101613-101 ,817.85,
DFID,DFID,29/07/2016,Air fares ,West and Southern Africa ,Corporate travel provider,101613-101 ,595.85,
DFID,DFID,29/07/2016,Air fares ,West and Southern Africa ,Corporate travel provider,101613-101 ,901.05,
DFID,DFID,01/07/2016,Air fares ,Middle East and North Africa Division ,Corporate travel provider,101619-101 ,702.00,
DFID,DFID,01/07/2016,Air fares ,Middle East and North Africa Division ,Corporate travel provider,101619-101 ,670.25,
DFID,DFID,01/07/2016,Air fares ,West and Southern Africa ,Corporate travel provider,101620-101 ,536.80,
DFID,DFID,01/07/2016,Air fares ,West and Southern Africa ,Corporate travel provider,101620-101 ,802.85,
DFID,DFID,01/07/2016,Hotels - Accommodation only ,West and Southern Africa ,Corporate travel provider,101620-101 ,639.00,
DFID,DFID,01/07/2016,Hotels - Accommodation only ,West and Southern Africa ,Corporate travel provider,101620-101 ,512.00,
DFID,DFID,01/07/2016,Air fares ,West and Southern Africa ,Corporate travel provider,101620-101 ,539.40,
DFID,DFID,29/07/2016,Air fares ,West and Southern Africa ,Corporate travel provider,101620-101 ,518.20,
DFID,DFID,29/07/2016,Air fares ,West and Southern Africa ,Corporate travel provider,101620-101 ,771.71,
DFID,DFID,29/07/2016,Air fares ,West and Southern Africa ,Corporate travel provider,101620-101 ,669.71,
DFID,DFID,29/07/2016,Air fares ,West and Southern Africa ,Corporate travel provider,101620-101 ,526.71,
DFID,DFID,29/07/2016,Air fares ,West and Southern Africa ,Corporate travel provider,101620-101 ,526.71,
DFID,DFID,01/07/2016,Hotels - Accommodation only ,Policy Division ,Corporate travel provider,100274-111 ,809.49,
DFID,DFID,01/07/2016,Air fares ,Policy Division ,Corporate travel provider,100274-111 ,"1,382.35",
DFID,DFID,01/07/2016,Air fares ,Policy Division ,Corporate travel provider,100274-111 ,734.95,
DFID,DFID,01/07/2016,Hotels - Accommodation only ,Policy Division ,Corporate travel provider,100274-111 ,656.01,
DFID,DFID,01/07/2016,Air fares ,East and Central Africa ,Corporate travel provider,101616-101 ,848.85,
DFID,DFID,01/07/2016,Air fares ,East and Central Africa ,Corporate travel provider,101616-101 ,"1,576.35",
DFID,DFID,01/07/2016,Air fares ,East and Central Africa ,Corporate travel provider,101616-101 ,748.45,
DFID,DFID,29/07/2016,Air fares ,East and Central Africa ,Corporate travel provider,101616-101 ,988.13,
DFID,DFID,01/07/2016,Hotels - Accommodation only ,East and Central Africa ,Corporate travel provider,101616-102 ,585.00,
DFID,DFID,01/07/2016,Hotels - Accommodation only ,West and Southern Africa ,Corporate travel provider,101618-101 ,877.00,
DFID,DFID,01/07/2016,Air fares ,West and Southern Africa ,Corporate travel provider,101618-101 ,756.00,
DFID,DFID,29/07/2016,Air fares ,West and Southern Africa ,Corporate travel provider,101618-101 ,760.70,
DFID,DFID,29/07/2016,Air fares ,West and Southern Africa ,Corporate travel provider,101618-101 ,506.50,
DFID,DFID,29/07/2016,Air fares ,Asia  Caribbean and Overseas Territories ,Corporate travel provider,101621-101 ,773.25,
DFID,DFID,01/07/2016,Air fares ,Asia  Caribbean and Overseas Territories ,Corporate travel provider,101621-101 ,665.47,
DFID,DFID,01/07/2016,Hotels - Accommodation only ,West and Southern Africa ,Supplier Name withheld ,101622-106 ,545.00,
DFID,DFID,01/07/2016,Air fares ,West and Southern Africa ,Supplier Name withheld ,101622-106 ,892.35,
DFID,DFID,01/07/2016,Air fares ,West and Southern Africa ,Supplier Name withheld ,101622-106 ,"1,003.32",
DFID,DFID,29/07/2016,Air fares ,West and Southern Africa ,Supplier Name withheld ,101622-106 ,555.05,
DFID,DFID,29/07/2016,Air fares ,West and Southern Africa ,Supplier Name withheld ,101622-106 ,"1,016.81",
DFID,DFID,29/07/2016,Air fares ,West and Southern Africa ,Supplier Name withheld ,101622-106 ,"1,180.68",
DFID,DFID,29/07/2016,Air fares ,West and Southern Africa ,Supplier Name withheld ,101622-106 ,560.00,
DFID,DFID,29/07/2016,Air fares ,Asia  Caribbean and Overseas Territories ,Corporate travel provider,101624-101 ,695.45,
DFID,DFID,29/07/2016,Air fares ,Asia  Caribbean and Overseas Territories ,Corporate travel provider,101624-101 ,724.25,
DFID,DFID,25/07/2016,Other travel costs ,Asia  Caribbean and Overseas Territories ,Foreign & Commonwealth Office ,101624-101 ,860.07,
DFID,DFID,01/07/2016,Air fares ,Asia  Caribbean and Overseas Territories ,Corporate travel provider,101624-101 ,597.73,
DFID,DFID,01/07/2016,Air fares ,Asia  Caribbean and Overseas Territories ,Corporate travel provider,101624-101 ,693.15,
DFID,DFID,01/07/2016,Air fares ,Asia  Caribbean and Overseas Territories ,Corporate travel provider,101624-101 ,693.15,
DFID,DFID,01/07/2016,Air fares ,Asia  Caribbean and Overseas Territories ,Corporate travel provider,101624-101 ,693.15,
DFID,DFID,01/07/2016,Air fares ,Asia  Caribbean and Overseas Territories ,Corporate travel provider,101624-101 ,846.15,
DFID,DFID,01/07/2016,Air fares ,Asia  Caribbean and Overseas Territories ,Corporate travel provider,101624-101 ,958.15,
DFID,DFID,01/07/2016,Hotels - Accommodation only ,East and Central Africa ,Corporate travel provider,101625-103 ,818.65,
DFID,DFID,29/07/2016,Air fares ,East and Central Africa ,Corporate travel provider,101625-103 ,"1,000.51",
DFID,DFID,29/07/2016,Air fares ,East and Central Africa ,Corporate travel provider,101625-104 ,"1,112.55",
DFID,DFID,29/07/2016,Air fares ,East and Central Africa ,Corporate travel provider,101625-104 ,"1,051.70",
DFID,DFID,01/07/2016,Air fares ,East and Central Africa ,Corporate travel provider,101625-105 ,"1,218.15",
DFID,DFID,01/07/2016,Air fares ,East and Central Africa ,Corporate travel provider,101625-105 ,749.30,
DFID,DFID,01/07/2016,Air fares ,East and Central Africa ,Corporate travel provider,101625-107 ,770.55,
DFID,DFID,29/07/2016,Air fares ,East and Central Africa ,Corporate travel provider,101625-107 ,"1,552.45",
DFID,DFID,29/07/2016,Air fares ,East and Central Africa ,Corporate travel provider,101625-108 ,"1,178.62",
DFID,DFID,29/07/2016,Air fares ,West and Southern Africa ,Corporate travel provider,101629-101 ,788.62,
DFID,DFID,29/07/2016,Air fares ,West and Southern Africa ,Corporate travel provider,101629-101 ,891.65,
DFID,DFID,29/07/2016,Air fares ,West and Southern Africa ,Corporate travel provider,101629-101 ,891.65,
DFID,DFID,29/07/2016,Air fares ,West and Southern Africa ,Corporate travel provider,101629-101 ,"1,301.81",
DFID,DFID,29/07/2016,Hotels - Accommodation only ,West and Southern Africa ,Corporate travel provider,101629-101 ,849.00,
DFID,DFID,01/07/2016,Hotels - Accommodation only ,West and Southern Africa ,Corporate travel provider,101629-101 ,721.00,
DFID,DFID,01/07/2016,Air fares ,West and Southern Africa ,Corporate travel provider,101629-101 ,869.88,
DFID,DFID,01/07/2016,Air fares ,West and Southern Africa ,Corporate travel provider,101629-101 ,976.60,
DFID,DFID,01/07/2016,Air fares ,West and Southern Africa ,Corporate travel provider,101629-101 ,636.45,
DFID,DFID,29/07/2016,Air fares ,East and Central Africa ,Corporate travel provider,101630-101 ,"1,072.95",
DFID,DFID,29/07/2016,Air fares ,East and Central Africa ,Corporate travel provider,101630-101 ,"1,391.95",
DFID,DFID,29/07/2016,Air fares ,East and Central Africa ,Corporate travel provider,101630-101 ,873.60,
DFID,DFID,29/07/2016,Air fares ,East and Central Africa ,Corporate travel provider,101630-101 ,873.60,
DFID,DFID,01/07/2016,Hotels - Accommodation only ,East and Central Africa ,Corporate travel provider,101630-102 ,545.00,
DFID,DFID,01/07/2016,Hotels - Accommodation only ,East and Central Africa ,Corporate travel provider,101630-102 ,545.00,
DFID,DFID,01/07/2016,Hotels - Accommodation only ,East and Central Africa ,Corporate travel provider,101630-102 ,545.00,
DFID,DFID,01/07/2016,Air fares ,East and Central Africa ,Corporate travel provider,101630-102 ,744.05,
DFID,DFID,01/07/2016,Air fares ,West and Southern Africa ,Corporate travel provider,101631-101 ,533.50,
DFID,DFID,29/07/2016,Air fares ,West and Southern Africa ,Corporate travel provider,101631-101 ,"1,073.65",
DFID,DFID,29/07/2016,Air fares ,West and Southern Africa ,Corporate travel provider,101631-101 ,"1,237.15",
DFID,DFID,29/07/2016,Air fares ,West and Southern Africa ,Corporate travel provider,101631-101 ,"1,118.55",
DFID,DFID,25/07/2016,Hotels - Accommodation only ,East and Central Africa ,Foreign & Commonwealth Office ,101633-101 ,658.15,
DFID,DFID,29/07/2016,UK Staff overseas - Flexi Travel Allowance ,East and Central Africa ,Corporate travel provider,101633-101 ,532.60,
DFID,DFID,29/07/2016,Hostile Environment Training ,East and Central Africa ,Corporate travel provider,101633-101 ,"1,074.18",
DFID,DFID,29/07/2016,Air fares ,East and Central Africa ,Corporate travel provider,101634-101 ,578.00,
DFID,DFID,01/07/2016,Air fares ,East and Central Africa ,Corporate travel provider,101634-101 ,704.55,
DFID,DFID,29/07/2016,Air fares ,East and Central Africa ,Corporate travel provider,101635-101 ,"1,180.35",
DFID,DFID,29/07/2016,Air fares ,East and Central Africa ,Corporate travel provider,101635-101 ,545.01,
DFID,DFID,29/07/2016,Air fares ,East and Central Africa ,Corporate travel provider,101635-101 ,731.90,
DFID,DFID,29/07/2016,Air fares ,West and Southern Africa ,Corporate travel provider,101637-101 ,"1,342.35",
DFID,DFID,01/07/2016,Air fares ,West and Southern Africa ,Corporate travel provider,101637-101 ,517.35,
DFID,DFID,01/07/2016,Air fares ,West and Southern Africa ,Corporate travel provider,101637-102 ,777.61,
DFID,DFID,01/07/2016,Air fares ,West and Southern Africa ,Corporate travel provider,101638-101 ,814.55,
DFID,DFID,29/07/2016,Air fares ,West and Southern Africa ,Corporate travel provider,101638-101 ,930.75,
DFID,DFID,01/07/2016,Air fares ,West and Southern Africa ,Corporate travel provider,101638-101 ,"1,752.65",
DFID,DFID,01/07/2016,Air fares ,West and Southern Africa ,Corporate travel provider,101638-105 ,610.37,
DFID,DFID,29/07/2016,Air fares ,West and Southern Africa ,Corporate travel provider,101638-105 ,"1,169.75",
DFID,DFID,29/07/2016,Air fares ,West and Southern Africa ,Corporate travel provider,101638-105 ,"1,445.95",
DFID,DFID,01/07/2016,Air fares ,West and Southern Africa ,Corporate travel provider,101638-105 ,"1,001.45",
DFID,DFID,25/07/2016,Project delivery costs – supplier services ,West and Southern Africa ,Foreign & Commonwealth Office ,104229-101 ,"2,987.29",
DFID,DFID,20/07/2016,Research and development costs - supplier services ,Asia  Caribbean and Overseas Territories ,Foreign & Commonwealth Office ,114450-101 ,"2,587.80",
DFID,DFID,20/07/2016,Research and development costs - supplier services ,Asia  Caribbean and Overseas Territories ,Foreign & Commonwealth Office ,114450-101 ,"2,365.99",
DFID,DFID,06/07/2016,Research and development costs - supplier services ,Asia  Caribbean and Overseas Territories ,Foreign & Commonwealth Office ,114450-101 ,"1,025.71",
DFID,DFID,01/07/2016,Hotels - Accommodation only ,Business Solutions Division Level ,Corporate travel provider,200001-101 ,891.00,
DFID,DFID,01/07/2016,Hotels - Accommodation only ,Business Solutions Division Level ,Corporate travel provider,200001-101 ,891.00,
DFID,DFID,01/07/2016,Hotels - Accommodation only ,Business Solutions Division Level ,Corporate travel provider,200001-101 ,891.00,
DFID,DFID,01/07/2016,Hotels - Accommodation only ,Business Solutions Division Level ,Corporate travel provider,200001-101 ,545.40,
DFID,DFID,01/07/2016,Hotels - Accommodation only ,Business Solutions Division Level ,Corporate travel provider,200001-101 ,545.40,
DFID,DFID,01/07/2016,Hotels - Accommodation only ,Business Solutions Division Level ,Corporate travel provider,200001-101 ,792.00,
DFID,DFID,01/07/2016,Hotels - Accommodation only ,Business Solutions Division Level ,Corporate travel provider,200001-101 ,792.00,
DFID,DFID,01/07/2016,Hotels - Accommodation only ,Business Solutions Division Level ,Corporate travel provider,200001-101 ,"1,136.89",
DFID,DFID,01/07/2016,Hotels - Accommodation only ,Business Solutions Division Level ,Corporate travel provider,200001-101 ,792.00,
DFID,DFID,29/07/2016,Hotels - Accommodation only ,Business Solutions Division Level ,Corporate travel provider,200001-101 ,784.95,
DFID,DFID,29/07/2016,Hotels - Accommodation only ,Business Solutions Division Level ,Corporate travel provider,200001-101 ,784.95,
DFID,DFID,20/07/2016,Data network- remote working ,Business Solutions Division Level ,Foreign & Commonwealth Office ,200002-121 ,541.83,
DFID,DFID,04/07/2016,Data Network - land lines ,Business Solutions Division Level ,Foreign & Commonwealth Office ,200002-121 ,"1,456.08",
DFID,DFID,06/07/2016,Data network- remote working ,Business Solutions Division Level ,Foreign & Commonwealth Office ,200002-121 ,502.70,
DFID,DFID,01/07/2016,Air fares ,Business Solutions Division Level ,Corporate travel provider,200005-116 ,886.42,
DFID,DFID,01/07/2016,Air fares ,Business Solutions Division Level ,Corporate travel provider,200005-116 ,"1,092.42",
DFID,DFID,01/07/2016,Air fares ,Middle East and North Africa Division ,Corporate travel provider,201701-101 ,"1,197.65",
DFID,DFID,29/07/2016,Air fares ,Middle East and North Africa Division ,Corporate travel provider,201701-101 ,"1,108.05",
DFID,DFID,29/07/2016,Air fares ,Middle East and North Africa Division ,Corporate travel provider,201701-101 ,"1,237.55",
DFID,DFID,25/07/2016,Air fares ,Middle East and North Africa Division ,Foreign & Commonwealth Office ,201701-101 ,691.46,
DFID,DFID,25/07/2016,Hotels - Accommodation only ,Middle East and North Africa Division ,Foreign & Commonwealth Office ,201701-101 ,518.19,
DFID,DFID,29/07/2016,Hotels - Accommodation only ,Middle East and North Africa Division ,Corporate travel provider,201705-101 ,"1,090.00",
DFID,DFID,29/07/2016,Hotels - Accommodation only ,Middle East and North Africa Division ,Corporate travel provider,201705-101 ,"1,090.00",
DFID,DFID,29/07/2016,Hotels - Accommodation only ,Middle East and North Africa Division ,Corporate travel provider,201705-101 ,"2,616.00",
DFID,DFID,29/07/2016,Hotels - Accommodation only ,Middle East and North Africa Division ,Corporate travel provider,201705-101 ,545.00,
DFID,DFID,04/07/2016,Cleaning Costs ,Middle East and North Africa Division ,Foreign & Commonwealth Office ,201705-101 ,693.43,
DFID,DFID,29/07/2016,Air fares ,International Relations Division ,Corporate travel provider,201711-101 ,"2,119.30",
DFID,DFID,29/07/2016,Air fares ,Economic Development Division ,Corporate travel provider,201723-102 ,855.15,
DFID,DFID,21/07/2016,Air fares ,Policy Division ,Foreign & Commonwealth Office ,201724-124 ,"1,248.66",
DFID,DFID,04/07/2016,Project delivery costs – supplier services ,Policy Division ,Foreign & Commonwealth Office ,201724-124 ,"2,142.92",
DFID,DFID,04/07/2016,Project delivery costs – supplier services ,Policy Division ,Foreign & Commonwealth Office ,201724-124 ,669.16,
DFID,DFID,29/07/2016,Air fares ,Asia  Caribbean and Overseas Territories ,Corporate travel provider,201724-154 ,"1,544.05",
DFID,DFID,01/07/2016,Air fares ,Economic Development Division ,Corporate travel provider,202259-101 ,773.35,
DFID,DFID,01/07/2016,Hotels - Accommodation only ,Research and Evidence Division ,Corporate travel provider,202348-103 ,548.00,
DFID,DFID,29/07/2016,Air fares ,Research and Evidence Division ,Corporate travel provider,202392-102 ,733.91,
DFID,DFID,01/07/2016,Hotels - Accommodation only ,Research and Evidence Division ,Corporate travel provider,202392-102 ,995.20,
DFID,DFID,01/07/2016,Air fares ,Research and Evidence Division ,Corporate travel provider,202392-102 ,574.65,
DFID,DFID,29/07/2016,Air fares ,Research and Evidence Division ,Corporate travel provider,202392-103 ,802.85,
DFID,DFID,29/07/2016,Hotels - Accommodation only ,Research and Evidence Division ,Corporate travel provider,202392-106 ,601.49,
DFID,DFID,29/07/2016,Hotels - Accommodation only ,Research and Evidence Division ,Corporate travel provider,202392-106 ,601.49,
DFID,DFID,29/07/2016,Hotels - Accommodation only ,Research and Evidence Division ,Corporate travel provider,202392-106 ,601.49,
DFID,DFID,29/07/2016,Air fares ,Research and Evidence Division ,Corporate travel provider,202392-106 ,795.55,
DFID,DFID,29/07/2016,Air fares ,Research and Evidence Division ,Corporate travel provider,202392-106 ,"1,288.53",
DFID,DFID,01/07/2016,Air fares ,Research and Evidence Division ,Corporate travel provider,202392-107 ,572.55,
DFID,DFID,29/07/2016,Air fares ,Economic Development Division ,Corporate travel provider,202373-101 ,980.67,
DFID,DFID,01/07/2016,Hotels - Accommodation only ,Research and Evidence Division ,Corporate travel provider,202392-109 ,534.75,
DFID,DFID,01/07/2016,Hotels - Accommodation only ,Research and Evidence Division ,Corporate travel provider,202392-115 ,794.67,
DFID,DFID,01/07/2016,Air fares ,Policy Division ,Corporate travel provider,202396-101 ,"1,285.27",
DFID,DFID,01/07/2016,Air fares ,Policy Division ,Corporate travel provider,202402-107 ,651.75,
DFID,DFID,29/07/2016,Air fares ,Policy Division ,Corporate travel provider,202402-107 ,"1,287.67",
DFID,DFID,29/07/2016,Hotels - Accommodation only ,Policy Division ,Corporate travel provider,202402-107 ,740.59,
DFID,DFID,21/07/2016,Air fares ,Asia  Caribbean and Overseas Territories ,Foreign & Commonwealth Office ,202403-101 ,"2,794.12",
DFID,DFID,21/07/2016,Hotels - Accommodation only ,Asia  Caribbean and Overseas Territories ,Foreign & Commonwealth Office ,202403-101 ,"1,245.30",
DFID,DFID,21/07/2016,Hotels - Accommodation only ,Asia  Caribbean and Overseas Territories ,Foreign & Commonwealth Office ,202403-101 ,"1,245.30",
DFID,DFID,21/07/2016,Other Admin Costs ,Asia  Caribbean and Overseas Territories ,Foreign & Commonwealth Office ,202403-101 ,"1,148.07",
DFID,DFID,29/07/2016,Hotels - Accommodation only ,Conflict  Humanitarian  Security & Stabilisation Division ,Corporate travel provider,202410-108 ,633.34,
DFID,DFID,01/07/2016,Air fares ,Conflict  Humanitarian  Security & Stabilisation Division ,Corporate travel provider,202410-108 ,"1,577.95",
DFID,DFID,01/07/2016,Air fares ,Conflict  Humanitarian  Security & Stabilisation Division ,Corporate travel provider,202410-109 ,718.32,
DFID,DFID,01/07/2016,Hotels - Accommodation only ,Policy Division ,Corporate travel provider,202419-101 ,584.88,
DFID,DFID,01/07/2016,Air fares ,Policy Division ,Corporate travel provider,202419-101 ,"1,013.03",
DFID,DFID,01/07/2016,Hotels - Accommodation only ,Policy Division ,Corporate travel provider,202419-101 ,630.26,
DFID,DFID,01/07/2016,Air fares ,Policy Division ,Corporate travel provider,202419-101 ,945.65,
DFID,DFID,01/07/2016,Air fares ,Policy Division ,Corporate travel provider,202419-101 ,707.39,
DFID,DFID,29/07/2016,Air fares ,Policy Division ,Corporate travel provider,202419-101 ,539.72,
DFID,DFID,01/07/2016,Air fares ,Economic Development Division ,Corporate travel provider,202432-101 ,763.65,
DFID,DFID,01/07/2016,Air fares ,Economic Development Division ,Corporate travel provider,202432-101 ,643.85,
DFID,DFID,29/07/2016,Air fares ,Finance and Corporate Performance Division ,Corporate travel provider,202438-101 ,779.33,
DFID,DFID,29/07/2016,Air fares ,Finance and Corporate Performance Division ,Corporate travel provider,202438-101 ,721.57,
DFID,DFID,01/07/2016,Air fares ,West and Southern Africa ,Corporate travel provider,202541-101 ,672.11,
DFID,DFID,01/07/2016,Air fares ,East and Central Africa ,Corporate travel provider,202594-101 ,556.30,
DFID,DFID,01/07/2016,Air fares ,East and Central Africa ,Corporate travel provider,202594-101 ,"1,004.61",
DFID,DFID,01/07/2016,Air fares ,East and Central Africa ,Corporate travel provider,202594-101 ,841.95,
DFID,DFID,01/07/2016,Air fares ,East and Central Africa ,Corporate travel provider,202594-101 ,"1,085.35",
DFID,DFID,01/07/2016,Air fares ,East and Central Africa ,Corporate travel provider,202594-101 ,"1,018.50",
DFID,DFID,01/07/2016,Air fares ,East and Central Africa ,Corporate travel provider,202594-101 ,719.90,
DFID,DFID,29/07/2016,Air fares ,East and Central Africa ,Corporate travel provider,202594-101 ,980.05,
DFID,DFID,25/07/2016,Air fares ,East and Central Africa ,Foreign & Commonwealth Office ,202594-101 ,563.26,
DFID,DFID,29/07/2016,Air fares ,East and Central Africa ,Corporate travel provider,202594-101 ,561.90,
DFID,DFID,21/07/2016,Training - Travel & Subsistence ,East and Central Africa ,Foreign & Commonwealth Office ,202594-101 ,752.19,
DFID,DFID,01/07/2016,Air fares ,East and Central Africa ,Corporate travel provider,202594-101 ,"1,151.60",
DFID,DFID,01/07/2016,Hotels - Accommodation only ,East and Central Africa ,Corporate travel provider,202594-101 ,591.00,
DFID,DFID,29/07/2016,Air fares ,East and Central Africa ,Corporate travel provider,202594-101 ,624.90,
DFID,DFID,29/07/2016,Air fares ,East and Central Africa ,Corporate travel provider,202594-101 ,567.50,
DFID,DFID,29/07/2016,Air fares ,East and Central Africa ,Corporate travel provider,202594-101 ,928.57,
DFID,DFID,29/07/2016,Hotels - Accommodation only ,East and Central Africa ,Corporate travel provider,202594-101 ,927.00,
DFID,DFID,29/07/2016,Air fares ,East and Central Africa ,Corporate travel provider,202594-101 ,"1,480.00",
DFID,DFID,29/07/2016,Air fares ,East and Central Africa ,Corporate travel provider,202594-101 ,641.50,
DFID,DFID,29/07/2016,Hotels - Accommodation only ,East and Central Africa ,Corporate travel provider,202594-101 ,657.80,
DFID,DFID,25/07/2016,Aid Programme - Humanitarian Material Relief Assistance and Services ,East and Central Africa ,Foreign & Commonwealth Office ,203071-103 ,"3,433.81",
DFID,DFID,29/07/2016,Air fares ,Business Solutions Division Level ,Corporate travel provider,203329-104 ,775.50,
DFID,DFID,29/07/2016,Air fares ,Business Solutions Division Level ,Corporate travel provider,203329-104 ,798.90,
DFID,DFID,01/07/2016,Air fares ,Business Solutions Division Level ,Corporate travel provider,203329-104 ,549.20,
DFID,DFID,21/07/2016,Project delivery costs – supplier services ,Asia  Caribbean and Overseas Territories ,Foreign & Commonwealth Office ,203454-104 ,"3,142.33",
DFID,DFID,21/07/2016,Project delivery costs – supplier services ,Asia  Caribbean and Overseas Territories ,Foreign & Commonwealth Office ,203454-104 ,"3,090.57",
DFID,DFID,29/07/2016,Air fares ,Research and Evidence Division ,Corporate travel provider,203874-102 ,998.85,
DFID,DFID,29/07/2016,Air fares ,Research and Evidence Division ,Corporate travel provider,203874-102 ,"1,456.61",
DFID,DFID,29/07/2016,Air fares ,Research and Evidence Division ,Corporate travel provider,203874-102 ,606.35,
DFID,DFID,04/07/2016,Aid Programme - Humanitarian Material Relief Assistance and Services ,East and Central Africa ,Foreign & Commonwealth Office ,203961-114 ,"3,425.49",
DFID,DFID,01/07/2016,Air fares ,Asia  Caribbean and Overseas Territories ,Corporate travel provider,204053-101 ,776.65,
DFID,DFID,01/07/2016,Air fares ,Asia  Caribbean and Overseas Territories ,Corporate travel provider,204053-101 ,586.65,
DFID,DFID,01/07/2016,Air fares ,Asia  Caribbean and Overseas Territories ,Corporate travel provider,204053-101 ,586.65,
DFID,DFID,01/07/2016,Air fares ,Asia  Caribbean and Overseas Territories ,Corporate travel provider,204053-101 ,776.65,
DFID,DFID,01/07/2016,Air fares ,Middle East and North Africa Division ,Corporate travel provider,204055-101 ,544.05,
DFID,DFID,29/07/2016,Air fares ,Middle East and North Africa Division ,Corporate travel provider,204055-101 ,608.25,
DFID,DFID,29/07/2016,Air fares ,Middle East and North Africa Division ,Corporate travel provider,204055-101 ,615.05,
DFID,DFID,29/07/2016,Air fares ,Middle East and North Africa Division ,Corporate travel provider,204084-101 ,"1,066.25",
DFID,DFID,29/07/2016,Air fares ,Middle East and North Africa Division ,Corporate travel provider,204084-101 ,"1,351.55",
DFID,DFID,29/07/2016,Air fares ,Middle East and North Africa Division ,Corporate travel provider,204084-101 ,638.25,
DFID,DFID,21/07/2016,Hotels - Accommodation only ,East and Central Africa ,Foreign & Commonwealth Office ,204290-105 ,732.92,
DFID,DFID,01/07/2016,Hotels - Accommodation only ,East and Central Africa ,Corporate travel provider,204364-101 ,615.00,
DFID,DFID,29/07/2016,Air fares ,Global Funds ,Corporate travel provider,204452-101 ,862.21,
DFID,DFID,25/07/2016,Aid Programme - Humanitarian Material Relief Assistance and Services ,Middle East and North Africa Division ,Foreign & Commonwealth Office ,204516-102 ,"3,057.41",
DFID,DFID,07/07/2016,Project delivery costs – supplier services ,Asia  Caribbean and Overseas Territories ,Foreign & Commonwealth Office ,204612-101 ,"1,033.31",
DFID,DFID,06/07/2016,Project delivery costs – supplier services ,Asia  Caribbean and Overseas Territories ,Foreign & Commonwealth Office ,204792-104 ,"2,411.74",
DFID,DFID,06/07/2016,Project delivery costs – supplier services ,Asia  Caribbean and Overseas Territories ,Foreign & Commonwealth Office ,204792-104 ,"2,483.33",
DFID,DFID,06/07/2016,Project delivery costs – supplier services ,Asia  Caribbean and Overseas Territories ,Foreign & Commonwealth Office ,204792-104 ,"1,762.23",
DFID,DFID,01/07/2016,Air fares ,Regional Directorate ,Corporate travel provider,204832-101 ,"1,167.72",
DFID,DFID,20/07/2016,Project delivery costs – supplier services ,Asia  Caribbean and Overseas Territories ,Foreign & Commonwealth Office ,204887-101 ,"18,143.11",
DFID,DFID,01/07/2016,Air fares ,Regional Directorate ,Corporate travel provider,204891-101 ,"1,170.59",
DFID,DFID,01/07/2016,Air fares ,Regional Directorate ,Corporate travel provider,204892-101 ,602.82,
DFID,DFID,29/07/2016,Air fares ,Asia  Caribbean and Overseas Territories ,Corporate travel provider,204952-103 ,745.81,
DFID,DFID,29/07/2016,Air fares ,Asia  Caribbean and Overseas Territories ,Corporate travel provider,204952-103 ,783.10,
DFID,DFID,29/07/2016,Hotels - Accommodation only ,West and Southern Africa ,Corporate travel provider,204939-102 ,"1,155.97",
DFID,DFID,01/07/2016,Air fares ,Middle East and North Africa Division ,Corporate travel provider,204978-101 ,703.25,
DFID,DFID,01/07/2016,Air fares ,Middle East and North Africa Division ,Corporate travel provider,204981-101 ,652.45,
DFID,DFID,29/07/2016,Air fares ,Middle East and North Africa Division ,Corporate travel provider,204981-101 ,631.92,
DFID,DFID,01/07/2016,Hotels - Accommodation only ,Middle East and North Africa Division ,Corporate travel provider,204982-101 ,"1,184.00",
DFID,DFID,01/07/2016,Hotels - Accommodation only ,West and Southern Africa ,Corporate travel provider,205035-103 ,500.51,
DFID,DFID,01/07/2016,Hotels - Accommodation only ,West and Southern Africa ,Corporate travel provider,205035-103 ,500.51,
DFID,DFID,01/07/2016,Hotels - Accommodation only ,West and Southern Africa ,Corporate travel provider,205035-103 ,792.20,
DFID,DFID,01/07/2016,Hotels - Accommodation only ,West and Southern Africa ,Corporate travel provider,205035-103 ,625.14,
DFID,DFID,25/07/2016,Hotels - Accommodation only ,International Relations Division ,Foreign & Commonwealth Office ,205081-101 ,"2,295.38",
DFID,DFID,01/07/2016,Air fares ,Asia  Caribbean and Overseas Territories ,Corporate travel provider,205101-105 ,513.30,
DFID,DFID,01/07/2016,Air fares ,PGP Directorate ,Corporate travel provider,205044-101 ,"1,248.22",
DFID,DFID,28/07/2016,Air fares ,Asia  Caribbean and Overseas Territories ,Foreign & Commonwealth Office ,205157-103 ,507.84,
DFID,DFID,01/07/2016,Air fares ,Asia  Caribbean and Overseas Territories ,Corporate travel provider,205157-103 ,893.72,
DFID,DFID,04/07/2016,Hotels - Accommodation only ,Asia  Caribbean and Overseas Territories ,Foreign & Commonwealth Office ,205157-103 ,685.28,
DFID,DFID,01/07/2016,Air fares ,Conflict  Humanitarian  Security & Stabilisation Division ,Corporate travel provider,205279-101 ,"1,094.00",
DFID,DFID,01/07/2016,Air fares ,Conflict  Humanitarian  Security & Stabilisation Division ,Corporate travel provider,205279-101 ,"1,094.00",
DFID,DFID,01/07/2016,Air fares ,Conflict  Humanitarian  Security & Stabilisation Division ,Corporate travel provider,205279-101 ,970.55,
DFID,DFID,01/07/2016,Air fares ,Policy Division ,Corporate travel provider,300032-101 ,783.91,
DFID,DFID,29/07/2016,Air fares ,Policy Division ,Corporate travel provider,300032-101 ,829.71,
DFID,DFID,01/07/2016,Air fares ,Policy Division ,Corporate travel provider,300033-101 ,"1,106.25",
DFID,DFID,01/07/2016,Air fares ,Policy Division ,Corporate travel provider,300033-101 ,824.55,
DFID,DFID,29/07/2016,Air fares ,Asia  Caribbean and Overseas Territories ,Corporate travel provider,300048-101 ,508.21,
DFID,DFID,20/07/2016,Hotels - Accommodation only ,Asia  Caribbean and Overseas Territories ,Foreign & Commonwealth Office ,300048-101 ,550.35,
DFID,DFID,21/07/2016,Other Admin Costs ,Middle East and North Africa Division ,Foreign & Commonwealth Office ,300078-101 ,619.54,
DFID,DFID,01/07/2016,Air fares ,Middle East and North Africa Division ,Corporate travel provider,300078-101 ,745.15,
DFID,DFID,01/07/2016,Air fares ,Middle East and North Africa Division ,Corporate travel provider,300078-101 ,589.90,
DFID,DFID,29/07/2016,Air fares ,Middle East and North Africa Division ,Corporate travel provider,300078-101 ,501.25,
DFID,DFID,01/07/2016,Air fares ,Middle East and North Africa Division ,Corporate travel provider,300080-101 ,852.55,
DFID,DFID,01/07/2016,Air fares ,Middle East and North Africa Division ,Corporate travel provider,300080-101 ,876.40,
DFID,DFID,01/07/2016,Air fares ,Middle East and North Africa Division ,Corporate travel provider,300080-101 ,562.95,
DFID,DFID,01/07/2016,Air fares ,Middle East and North Africa Division ,Corporate travel provider,300080-101 ,650.15,
DFID,DFID,29/07/2016,Air fares ,Middle East and North Africa Division ,Corporate travel provider,300080-101 ,718.35,
DFID,DFID,29/07/2016,Air fares ,Middle East and North Africa Division ,Corporate travel provider,300080-101 ,694.75,
DFID,DFID,27/07/2016,Aid Programme - Partnership Programme Arrangements ,Policy Division ,ACTIONAID ,202663-101 ,"1,029,751.00",
DFID,DFID,21/07/2016,Aid Programme - Partnership Programme Arrangements ,Policy Division ,ACTION ON DISABILITY AND DE ,202561-101 ,"283,456.25",
DFID,DFID,21/07/2016,Project delivery costs – supplier services ,West and Southern Africa ,ADAM SMITH INTERNATIONAL  LTD ,203666-102 ,"18,881.47",
DFID,DFID,21/07/2016,Project delivery costs – supplier services ,West and Southern Africa ,ADAM SMITH INTERNATIONAL  LTD ,203666-102 ,"118,144.21",
DFID,DFID,13/07/2016,Project delivery costs – supplier services ,West and Southern Africa ,ADAM SMITH INTERNATIONAL  LTD ,104190-102 ,"738,461.74",
DFID,DFID,20/07/2016,Project delivery costs – supplier services ,West and Southern Africa ,ADAM SMITH INTERNATIONAL  LTD ,202541-106 ,"148,030.50",
DFID,DFID,30/07/2016,Project delivery costs – supplier services ,West and Southern Africa ,ADAM SMITH INTERNATIONAL  LTD ,202539-106 ,"304,093.05",
DFID,DFID,29/07/2016,Project delivery costs – supplier services ,West and Southern Africa ,ADAM SMITH INTERNATIONAL  LTD ,202539-106 ,"111,067.00",
DFID,DFID,30/07/2016,Project delivery costs – supplier services ,East and Central Africa ,ADAM SMITH INTERNATIONAL  LTD ,202698-112 ,"41,644.40",
DFID,DFID,22/07/2016,Project delivery costs – supplier services ,East and Central Africa ,ADAM SMITH INTERNATIONAL  LTD ,202698-113 ,"82,532.78",
DFID,DFID,07/07/2016,Project delivery costs – supplier services ,East and Central Africa ,ADAM SMITH INTERNATIONAL  LTD ,202698-113 ,"114,082.87",
DFID,DFID,20/07/2016,Project delivery costs – supplier services ,West and Southern Africa ,ADAM SMITH INTERNATIONAL  LTD ,201433-102 ,"1,636,120.08",
DFID,DFID,12/07/2016,Project delivery costs – supplier services ,East and Central Africa ,ADAM SMITH INTERNATIONAL  LTD ,203308-111 ,"314,000.00",
DFID,DFID,21/07/2016,Project delivery costs – supplier services ,Asia  Caribbean and Overseas Territories ,ADAM SMITH INTERNATIONAL  LTD ,202328-102 ,"619,643.90",
DFID,DFID,11/07/2016,Project delivery costs – supplier services ,Asia  Caribbean and Overseas Territories ,ADAM SMITH INTERNATIONAL  LTD ,202697-105 ,"34,302.00",
DFID,DFID,07/07/2016,Project delivery costs – supplier services ,Asia  Caribbean and Overseas Territories ,ADAM SMITH INTERNATIONAL  LTD ,202697-109 ,"231,598.00",
DFID,DFID,15/07/2016,Project delivery costs – supplier services ,Asia  Caribbean and Overseas Territories ,ADAM SMITH INTERNATIONAL  LTD ,202697-109 ,"799,822.00",
DFID,DFID,30/07/2016,Project delivery costs – supplier services ,West and Southern Africa ,ADAM SMITH INTERNATIONAL  LTD ,202539-108 ,"6,674.00",
DFID,DFID,22/07/2016,Project delivery costs – supplier services ,West and Southern Africa ,ADAM SMITH INTERNATIONAL  LTD ,202539-108 ,"9,468.95",
DFID,DFID,29/07/2016,Project delivery costs – supplier services ,West and Southern Africa ,ADAM SMITH INTERNATIONAL  LTD ,203161-103 ,"675,877.17",
DFID,DFID,01/07/2016,Project delivery costs – supplier services ,Asia  Caribbean and Overseas Territories ,ADAM SMITH INTERNATIONAL  LTD ,201367-103 ,"334,695.32",
DFID,DFID,30/07/2016,Project delivery costs – supplier services ,Asia  Caribbean and Overseas Territories ,ADAM SMITH INTERNATIONAL  LTD ,201367-103 ,"307,113.99",
DFID,DFID,01/07/2016,Project delivery costs – supplier services ,East and Central Africa ,ADAM SMITH INTERNATIONAL  LTD ,203153-103 ,"149,218.00",
DFID,DFID,27/07/2016,Fund monies to be managed and dispersed by the supplier ,East and Central Africa ,ADAM SMITH INTERNATIONAL  LTD ,202657-102 ,"51,711.00",
DFID,DFID,27/07/2016,Project delivery costs – supplier services ,East and Central Africa ,ADAM SMITH INTERNATIONAL  LTD ,202657-102 ,"43,553.00",
DFID,DFID,15/07/2016,Project delivery costs – supplier services ,West and Southern Africa ,ADAM SMITH INTERNATIONAL  LTD ,203910-102 ,"106,113.00",
DFID,DFID,04/07/2016,Project delivery costs – supplier services ,West and Southern Africa ,ADAM SMITH INTERNATIONAL  LTD ,203910-102 ,"90,657.00",
DFID,DFID,01/07/2016,Project delivery costs – supplier services ,West and Southern Africa ,ADAM SMITH INTERNATIONAL  LTD ,203910-102 ,"89,881.00",
DFID,DFID,04/07/2016,Project delivery costs – supplier services ,West and Southern Africa ,ADAM SMITH INTERNATIONAL  LTD ,203824-103 ,"142,468.56",
DFID,DFID,14/07/2016,Project delivery costs – supplier services ,East and Central Africa ,ADAM SMITH INTERNATIONAL  LTD ,204456-103 ,"268,500.00",
DFID,DFID,28/07/2016,Project delivery costs – supplier services ,West and Southern Africa ,ADAM SMITH INTERNATIONAL  LTD ,203674-102 ,"10,351.22",
DFID,DFID,28/07/2016,Project delivery costs – supplier services ,West and Southern Africa ,ADAM SMITH INTERNATIONAL  LTD ,203674-102 ,"307,212.13",
DFID,DFID,28/07/2016,Project delivery costs – supplier services ,West and Southern Africa ,ADAM SMITH INTERNATIONAL  LTD ,203674-103 ,"440,000.00",
DFID,DFID,20/07/2016,Project delivery costs – supplier services ,Asia  Caribbean and Overseas Territories ,Supplier Name withheld ,202112-102 ,"94,374.54",
DFID,DFID,20/07/2016,Project delivery costs – supplier services ,Asia  Caribbean and Overseas Territories ,Supplier Name withheld ,203951-101 ,"24,715.39",
DFID,DFID,06/07/2016,Project delivery costs – supplier services ,East and Central Africa ,ADAM SMITH INTERNATIONAL  LTD ,202698-112 ,"34,933.81",
DFID,DFID,11/07/2016,Project delivery costs – supplier services ,East and Central Africa ,ADAM SMITH INTERNATIONAL  LTD ,202698-112 ,"13,427.83",
DFID,DFID,28/07/2016,Research and development costs - supplier services ,Research and Evidence Division ,ADAM SMITH INTERNATIONAL  LTD ,203778-104 ,"211,000.00",
DFID,DFID,11/07/2016,Project delivery costs – supplier services ,West and Southern Africa ,ADAM SMITH INTERNATIONAL  LTD ,203719-101 ,"78,466.59",
DFID,DFID,07/07/2016,Project delivery costs – supplier services ,West and Southern Africa ,ADAM SMITH INTERNATIONAL  LTD ,203719-101 ,"593,841.26",
DFID,DFID,06/07/2016,Project delivery costs – supplier services ,West and Southern Africa ,ADAM SMITH INTERNATIONAL  LTD ,203719-101 ,"350,699.39",
DFID,DFID,28/07/2016,Aid Programme - Trust Funds contributions ,East and Central Africa ,AFRICAN DEVELOPMENT BANK ,204784-101 ,"753,235.00",
DFID,DFID,01/07/2016,Contract & Agency Staff ,Business Solutions Division Level ,ALLEGIS GROUP LIMITED ,200001-101 ,936.00,
DFID,DFID,04/07/2016,Aid Programme - Partnership Programme Arrangements ,Policy Division ,ARTICLE 19 ,202556-101 ,"135,671.66",
DFID,DFID,27/07/2016,Aid Programme - Accountable Grant Payments ,East and Central Africa ,THE AEGIS TRUST ,203923-101 ,"398,561.00",
DFID,DFID,12/07/2016,Project delivery costs – supplier services ,Business Solutions Division Level ,Unit 4 ,200005-132 ,"1,800.00",
DFID,DFID,12/07/2016,Project delivery costs – supplier services ,Business Solutions Division Level ,Unit 4 ,200005-132 ,"2,760.00",
DFID,DFID,14/07/2016,Project delivery costs – supplier services ,Business Solutions Division Level ,Unit 4 ,200005-132 ,"13,320.00",
DFID,DFID,11/07/2016,Project delivery costs – supplier services ,Business Solutions Division Level ,Unit 4 ,200005-132 ,"1,620.00",
DFID,DFID,04/07/2016,Computer software maintenance ,Business Solutions Division Level ,Unit 4 ,200002-107 ,"62,663.78",Maintenance and support costs for the  DFID Financial Management System for the period July - September 2016 
DFID,DFID,12/07/2016,Aid Programme - Partnership Programme Arrangements ,Policy Division ,Supplier Name withheld ,202786-101 ,"409,498.75",
DFID,DFID,28/07/2016,Aid Programme - Core contributions ,Conflict  Humanitarian  Security & Stabilisation Division ,Supplier Name withheld ,205039-102 ,"4,500,000.00",
DFID,DFID,14/07/2016,Telephone Usage & services ,Business Solutions Division Level ,BT BACS PAYMENTS ,200002-130 ,"1,025.34",
DFID,DFID,14/07/2016,Telephone Usage & services ,Business Solutions Division Level ,BT BACS PAYMENTS ,200002-130 ,"2,620.58",
DFID,DFID,11/07/2016,Project delivery costs – supplier services ,Asia  Caribbean and Overseas Territories ,BRITISH COUNCIL ,203488-105 ,"236,092.06",
DFID,DFID,19/07/2016,Project delivery costs – supplier services ,West and Southern Africa ,BRITISH COUNCIL ,203816-103 ,"1,888,057.79",
DFID,DFID,19/07/2016,Project delivery costs – supplier services ,West and Southern Africa ,BRITISH COUNCIL ,203816-102 ,"56,834.87",
DFID,DFID,15/07/2016,Project delivery costs – supplier services ,West and Southern Africa ,BRITISH COUNCIL ,203851-102 ,"39,016.28",
DFID,DFID,21/07/2016,Project delivery costs – supplier services ,Policy Division ,BRITISH COUNCIL ,204864-102 ,"112,506.25",
DFID,DFID,22/07/2016,Project delivery costs – supplier services ,West and Southern Africa ,BRITISH COUNCIL ,201625-109 ,"229,196.47",
DFID,DFID,04/07/2016,Aid Programme - Partnership Programme Arrangements ,Policy Division ,CHRISTIAN AID ,202651-101 ,"1,813,981.75",
DFID,DFID,08/07/2016,Project delivery costs – supplier services ,Policy Division ,CHRISTIAN AID ,204333-104 ,"89,465.75",
DFID,DFID,27/07/2016,Project delivery costs – supplier services ,Middle East and North Africa Division ,Crown Agents. ,204267-101 ,"1,377.45",
DFID,DFID,07/07/2016,Project delivery costs – supplier services ,Middle East and North Africa Division ,Crown Agents. ,204267-101 ,"13,357.00",
DFID,DFID,13/07/2016,Project delivery costs – supplier services ,Middle East and North Africa Division ,Crown Agents. ,204267-101 ,"10,896.50",
DFID,DFID,01/07/2016,Project delivery costs – supplier services ,Asia  Caribbean and Overseas Territories ,Crown Agents. ,202433-103 ,"3,791.55",
DFID,DFID,14/07/2016,Project delivery costs – supplier services ,Asia  Caribbean and Overseas Territories ,Crown Agents. ,202433-103 ,"23,712.00",
DFID,DFID,20/07/2016,DFID Purchased Relief Supplies ,West and Southern Africa ,Crown Agents. ,203674-103 ,"65,347.13",
DFID,DFID,27/07/2016,Fund monies to be managed and dispersed by the supplier ,East and Central Africa ,Crown Agents. ,202946-107 ,"72,615.61",
DFID,DFID,08/07/2016,Fund monies to be managed and dispersed by the supplier ,East and Central Africa ,Crown Agents. ,202946-107 ,"506,187.96",
DFID,DFID,08/07/2016,Fund monies to be managed and dispersed by the supplier ,East and Central Africa ,Crown Agents. ,202974-101 ,"18,662.21",
DFID,DFID,07/07/2016,Project delivery costs – supplier services ,Conflict  Humanitarian  Security & Stabilisation Division ,Crown Agents. ,203815-106 ,"4,985.60",
DFID,DFID,12/07/2016,Project delivery costs – supplier services ,Conflict  Humanitarian  Security & Stabilisation Division ,Crown Agents. ,203815-106 ,"13,094.40",
DFID,DFID,04/07/2016,DFID Purchased Relief Supplies ,West and Southern Africa ,Crown Agents. ,203648-107 ,"62,999.38",
DFID,DFID,11/07/2016,Aid Programme - Humanitarian Material Relief Assistance and Services ,Conflict  Humanitarian  Security & Stabilisation Division ,Crown Agents. ,202878-103 ,"1,066.00",
DFID,DFID,27/07/2016,Project delivery costs – supplier services ,Asia  Caribbean and Overseas Territories ,Crown Agents. ,201645-105 ,"77,271.28",
DFID,DFID,19/07/2016,Aid Programme - Humanitarian Material Relief Assistance and Services ,Asia  Caribbean and Overseas Territories ,Crown Agents. ,205028-101 ,"1,524.00",
DFID,DFID,12/07/2016,Aid Programme - Humanitarian Material Relief Assistance and Services ,Asia  Caribbean and Overseas Territories ,Crown Agents. ,205028-101 ,"1,098.00",
DFID,DFID,19/07/2016,Aid Programme - Humanitarian Material Relief Assistance and Services ,Asia  Caribbean and Overseas Territories ,Crown Agents. ,205028-101 ,"25,080.00",
DFID,DFID,26/07/2016,Project delivery costs – supplier services ,East and Central Africa ,Crown Agents. ,200349-102 ,"229,444.71",
DFID,DFID,25/07/2016,DFID Purchased Relief Supplies ,East and Central Africa ,Crown Agents. ,202900-107 ,"64,534.35",
DFID,DFID,25/07/2016,DFID Purchased Relief Supplies ,East and Central Africa ,Crown Agents. ,202900-107 ,"15,195.81",
DFID,DFID,25/07/2016,DFID Purchased Relief Supplies ,East and Central Africa ,Crown Agents. ,202900-107 ,"6,597.05",
DFID,DFID,15/07/2016,DFID Purchased Relief Supplies ,East and Central Africa ,Crown Agents. ,202900-107 ,"141,303.90",
DFID,DFID,08/07/2016,DFID Purchased Relief Supplies ,East and Central Africa ,Crown Agents. ,202900-107 ,"340,501.98",
DFID,DFID,28/07/2016,Project delivery costs – supplier services ,Asia  Caribbean and Overseas Territories ,Supplier Name withheld ,202112-103 ,"3,231.86",
DFID,DFID,24/07/2016,Project delivery costs – supplier services ,Regional Directorate ,Crown Agents. ,204902-103 ,"20,736.00",
DFID,DFID,12/07/2016,Project delivery costs – supplier services ,Economic Development Division ,Crown Agents. ,203732-101 ,"204,296.30",
DFID,DFID,08/07/2016,Project delivery costs – supplier services ,Policy Division ,Crown Agents. ,200706-102 ,"3,206.25",
DFID,DFID,04/07/2016,Project delivery costs – supplier services ,Policy Division ,Crown Agents. ,200706-102 ,"18,270.38",
DFID,DFID,12/07/2016,Project delivery costs – supplier services ,Policy Division ,Crown Agents. ,200706-102 ,"31,486.06",
DFID,DFID,01/07/2016,Project delivery costs – supplier services ,West and Southern Africa ,Crown Agents. ,203330-102 ,"51,261.25",
DFID,DFID,11/07/2016,Aid Programme - Accountable Grant Payments ,West and Southern Africa ,Crown Agents. ,300037-104 ,"730,626.00",
DFID,DFID,21/07/2016,Fund monies to be managed and dispersed by the supplier ,Economic Development Division ,Crown Agents. ,202089-101 ,"69,042.89",
DFID,DFID,11/07/2016,Fund monies to be managed and dispersed by the supplier ,Economic Development Division ,Crown Agents. ,202089-102 ,"308,731.73",
DFID,DFID,13/07/2016,Fund monies to be managed and dispersed by the supplier ,Research and Evidence Division ,Crown Agents. ,204415-103 ,"3,934.18",
DFID,DFID,22/07/2016,Fund monies to be managed and dispersed by the supplier ,Research and Evidence Division ,Crown Agents. ,204415-103 ,"23,000.00",
DFID,DFID,22/07/2016,Project delivery costs – supplier services ,Asia  Caribbean and Overseas Territories ,Crown Agents. ,300250-106 ,"2,692.80",
DFID,DFID,14/07/2016,Project delivery costs – supplier services ,Asia  Caribbean and Overseas Territories ,Crown Agents. ,300250-106 ,"6,283.20",
DFID,DFID,27/07/2016,Project delivery costs – supplier services ,Asia  Caribbean and Overseas Territories ,Crown Agents. ,204792-104 ,"10,160.00",
DFID,DFID,08/07/2016,Project delivery costs – supplier services ,Asia  Caribbean and Overseas Territories ,Crown Agents. ,204792-104 ,"2,901.22",
DFID,DFID,28/07/2016,Aid Programme - Humanitarian Material Relief Assistance and Services ,Middle East and North Africa Division ,Crown Agents. ,204516-102 ,"15,288.00",
DFID,DFID,08/07/2016,Aid Programme - Humanitarian Material Relief Assistance and Services ,Middle East and North Africa Division ,Crown Agents. ,204516-102 ,"4,080.00",
DFID,DFID,15/07/2016,Aid Programme - Humanitarian Material Relief Assistance and Services ,Middle East and North Africa Division ,Crown Agents. ,204516-102 ,"63,894.00",
DFID,DFID,15/07/2016,Aid Programme - Humanitarian Material Relief Assistance and Services ,Middle East and North Africa Division ,Crown Agents. ,204516-102 ,"2,685.06",
DFID,DFID,15/07/2016,Aid Programme - Humanitarian Material Relief Assistance and Services ,Middle East and North Africa Division ,Crown Agents. ,204516-102 ,"15,923.16",
DFID,DFID,15/07/2016,Aid Programme - Humanitarian Material Relief Assistance and Services ,Middle East and North Africa Division ,Crown Agents. ,204516-102 ,"26,528.40",
DFID,DFID,19/07/2016,DFID Purchased Relief Supplies ,West and Southern Africa ,Crown Agents. ,202694-103 ,"13,467.27",
DFID,DFID,06/07/2016,Aid Programme - Humanitarian Material Relief Assistance and Services ,West and Southern Africa ,Crown Agents. ,202909-115 ,"19,650.00",
DFID,DFID,12/07/2016,Project delivery costs – supplier services ,Economic Development Division ,Crown Agents. ,203375-101 ,"215,144.93",
DFID,DFID,29/07/2016,Project delivery costs – supplier services ,Asia  Caribbean and Overseas Territories ,Crown Agents. ,203275-102 ,"99,706.13",
DFID,DFID,01/07/2016,Project delivery costs – supplier services ,Asia  Caribbean and Overseas Territories ,Crown Agents. ,203275-102 ,"169,527.37",
DFID,DFID,08/07/2016,Project delivery costs – supplier services ,East and Central Africa ,Crown Agents. ,202594-101 ,"3,415.37",
DFID,DFID,01/07/2016,DFID Purchased Relief Supplies ,West and Southern Africa ,Crown Agents. ,104229-102 ,"1,103.09",
DFID,DFID,01/07/2016,DFID Purchased Relief Supplies ,West and Southern Africa ,Crown Agents. ,104229-102 ,"140,792.60",
DFID,DFID,01/07/2016,DFID Purchased Relief Supplies ,West and Southern Africa ,Crown Agents. ,104229-102 ,"191,488.78",
DFID,DFID,01/07/2016,DFID Purchased Relief Supplies ,West and Southern Africa ,Crown Agents. ,104229-102 ,"79,713.01",
DFID,DFID,06/07/2016,DFID Purchased Relief Supplies ,West and Southern Africa ,Crown Agents. ,104229-102 ,"81,752.73",
DFID,DFID,06/07/2016,DFID Purchased Relief Supplies ,West and Southern Africa ,Crown Agents. ,104229-102 ,"125,535.04",
DFID,DFID,19/07/2016,DFID Purchased Relief Supplies ,West and Southern Africa ,Crown Agents. ,104229-102 ,"1,887.55",
DFID,DFID,20/07/2016,DFID Purchased Relief Supplies ,West and Southern Africa ,Crown Agents. ,104229-102 ,"7,916.97",
DFID,DFID,19/07/2016,DFID Purchased Relief Supplies ,West and Southern Africa ,Crown Agents. ,104229-102 ,"58,703.33",
DFID,DFID,13/07/2016,Project delivery costs – supplier services ,Conflict  Humanitarian  Security & Stabilisation Division ,Crown Agents. ,300042-101 ,"6,264.00",
DFID,DFID,01/07/2016,Project delivery costs – supplier services ,Asia  Caribbean and Overseas Territories ,Crown Agents. ,300040-104 ,"13,383.60",
DFID,DFID,13/07/2016,Project delivery costs – supplier services ,West and Southern Africa ,Crown Agents. ,300047-102 ,"96,570.00",
DFID,DFID,25/07/2016,DFID Purchased Relief Supplies ,East and Central Africa ,Crown Agents. ,203596-103 ,"4,470.60",
DFID,DFID,06/07/2016,DFID Purchased Relief Supplies ,East and Central Africa ,Crown Agents. ,203596-103 ,745.65,
DFID,DFID,21/07/2016,Project delivery costs – supplier services ,West and Southern Africa ,Crown Agents. ,202349-103 ,"125,000.00",
DFID,DFID,19/07/2016,Fund monies to be managed and dispersed by the supplier ,East and Central Africa ,Crown Agents. ,203109-106 ,"77,991.00",
DFID,DFID,19/07/2016,Fund monies to be managed and dispersed by the supplier ,East and Central Africa ,Crown Agents. ,203109-112 ,"97,717.00",
DFID,DFID,14/07/2016,Fund monies to be managed and dispersed by the supplier ,East and Central Africa ,Crown Agents. ,203109-112 ,"326,697.00",
DFID,DFID,06/07/2016,Fund monies to be managed and dispersed by the supplier ,East and Central Africa ,Crown Agents. ,203109-112 ,"302,838.00",
DFID,DFID,19/07/2016,Fund monies to be managed and dispersed by the supplier ,East and Central Africa ,Crown Agents. ,203109-112 ,"550,146.00",
DFID,DFID,19/07/2016,Fund monies to be managed and dispersed by the supplier ,East and Central Africa ,Crown Agents. ,203109-112 ,"335,431.00",
DFID,DFID,19/07/2016,Fund monies to be managed and dispersed by the supplier ,East and Central Africa ,Crown Agents. ,203109-112 ,"328,310.00",
DFID,DFID,19/07/2016,Fund monies to be managed and dispersed by the supplier ,East and Central Africa ,Crown Agents. ,203109-112 ,"428,709.00",
DFID,DFID,19/07/2016,Fund monies to be managed and dispersed by the supplier ,East and Central Africa ,Crown Agents. ,203109-112 ,"225,449.00",
DFID,DFID,12/07/2016,Project delivery costs – supplier services ,West and Southern Africa ,Crown Agents. ,205161-103 ,"8,845.20",
DFID,DFID,28/07/2016,Project delivery costs – supplier services ,Conflict  Humanitarian  Security & Stabilisation Division ,Crown Agents. ,205141-104 ,"11,743.20",
DFID,DFID,22/07/2016,Project delivery costs – supplier services ,Conflict  Humanitarian  Security & Stabilisation Division ,Crown Agents. ,205141-104 ,"11,256.00",
DFID,DFID,26/07/2016,Fund monies to be managed and dispersed by the supplier ,East and Central Africa ,Crown Agents. ,200349-102 ,"436,022.17",
DFID,DFID,21/07/2016,Fund monies to be managed and dispersed by the supplier ,West and Southern Africa ,Crown Agents. ,202531-104 ,"486,256.91",
DFID,DFID,01/07/2016,Project delivery costs – supplier services ,Conflict  Humanitarian  Security & Stabilisation Division ,Crown Agents. ,202741-104 ,"160,417.20",
DFID,DFID,15/07/2016,Project delivery costs – supplier services ,Regional Directorate ,Crown Agents. ,204902-103 ,"1,949.62",
DFID,DFID,14/07/2016,Project delivery costs – supplier services ,Regional Directorate ,Crown Agents. ,204902-103 ,"3,415.73",
DFID,DFID,19/07/2016,Project delivery costs – supplier services ,Regional Directorate ,Crown Agents. ,204902-103 ,"3,241.54",
DFID,DFID,12/07/2016,Project delivery costs – supplier services ,Regional Directorate ,Crown Agents. ,204902-103 ,"5,837.64",
DFID,DFID,14/07/2016,Project delivery costs – supplier services ,Regional Directorate ,Crown Agents. ,204902-103 ,"2,526.64",
DFID,DFID,26/07/2016,Project delivery costs – supplier services ,Regional Directorate ,Crown Agents. ,204902-103 ,"25,920.00",
DFID,DFID,15/07/2016,Aid Programme - Humanitarian Material Relief Assistance and Services ,East and Central Africa ,Crown Agents. ,202890-104 ,"8,720.40",
DFID,DFID,04/07/2016,Aid Programme - Accountable Grant Payments ,East and Central Africa ,Crown Agents. ,203961-114 ,"5,063.27",
DFID,DFID,20/07/2016,Aid Programme - Accountable Grant Payments ,East and Central Africa ,Crown Agents. ,203961-114 ,"14,968.80",
DFID,DFID,15/07/2016,DFID Purchased Relief Supplies ,Conflict  Humanitarian  Security & Stabilisation Division ,Crown Agents. ,205141-106 ,"8,903.52",
DFID,DFID,29/07/2016,DFID Purchased Relief Supplies ,Conflict  Humanitarian  Security & Stabilisation Division ,Crown Agents. ,205141-106 ,"8,903.52",
DFID,DFID,11/07/2016,Project delivery costs – supplier services ,Conflict  Humanitarian  Security & Stabilisation Division ,Crown Agents. ,203416-102 ,"6,177.60",
DFID,DFID,08/07/2016,Project delivery costs – supplier services ,Conflict  Humanitarian  Security & Stabilisation Division ,Crown Agents. ,203416-102 ,"1,101.60",
DFID,DFID,07/07/2016,Project delivery costs – supplier services ,Conflict  Humanitarian  Security & Stabilisation Division ,Crown Agents. ,202741-107 ,"1,832.24",
DFID,DFID,25/07/2016,Project delivery costs – supplier services ,Conflict  Humanitarian  Security & Stabilisation Division ,Crown Agents. ,202741-106 ,"389,542.80",
DFID,DFID,21/07/2016,Aid Programme - Humanitarian Material Relief Assistance and Services ,Conflict  Humanitarian  Security & Stabilisation Division ,Crown Agents. ,202741-107 ,"2,721.60",
DFID,DFID,08/07/2016,Aid Programme - Humanitarian Material Relief Assistance and Services ,Conflict  Humanitarian  Security & Stabilisation Division ,Crown Agents. ,202878-103 ,"1,360.80",
DFID,DFID,22/07/2016,Aid Programme - Humanitarian Material Relief Assistance and Services ,Conflict  Humanitarian  Security & Stabilisation Division ,Crown Agents. ,202878-103 ,"10,190.40",
DFID,DFID,20/07/2016,Project delivery costs – supplier services ,Middle East and North Africa Division ,Crown Agents. ,204016-103 ,"10,180.80",
DFID,DFID,01/07/2016,Project delivery costs – supplier services ,Middle East and North Africa Division ,Crown Agents. ,204016-103 ,"7,272.00",
DFID,DFID,22/07/2016,Aid Programme - Humanitarian Material Relief Assistance and Services ,Middle East and North Africa Division ,Crown Agents. ,204968-103 ,"1,342.48",
DFID,DFID,19/07/2016,Aid Programme - Humanitarian Material Relief Assistance and Services ,Middle East and North Africa Division ,Crown Agents. ,204968-103 ,"11,088.00",
DFID,DFID,25/07/2016,Aid Programme - Humanitarian Material Relief Assistance and Services ,Middle East and North Africa Division ,Crown Agents. ,204968-103 ,"3,214.04",
DFID,DFID,25/07/2016,Aid Programme - Humanitarian Material Relief Assistance and Services ,Middle East and North Africa Division ,Crown Agents. ,204968-103 ,"19,050.00",
DFID,DFID,05/07/2016,Project delivery costs – supplier services ,East and Central Africa ,Crown Agents. ,204439-103 ,"6,723.60",
DFID,DFID,27/07/2016,Project delivery costs – supplier services ,East and Central Africa ,Crown Agents. ,204439-103 ,"6,266.40",
DFID,DFID,27/07/2016,Project delivery costs – supplier services ,East and Central Africa ,Crown Agents. ,204439-103 ,"11,988.00",
DFID,DFID,27/07/2016,Project delivery costs – supplier services ,East and Central Africa ,Crown Agents. ,204852-109 ,"10,200.00",
DFID,DFID,05/07/2016,Project delivery costs – supplier services ,East and Central Africa ,Crown Agents. ,204852-109 ,"9,792.00",
DFID,DFID,13/07/2016,Project delivery costs – supplier services ,East and Central Africa ,Crown Agents. ,204852-109 ,"4,112.14",
DFID,DFID,08/07/2016,Aid Programme - Humanitarian Material Relief Assistance and Services ,Conflict  Humanitarian  Security & Stabilisation Division ,Crown Agents. ,203419-105 ,"10,579.20",
DFID,DFID,11/07/2016,Aid Programme - Accountable Grant Payments ,Policy Division ,SEND A COW ,203559-155 ,"174,468.83",
DFID,DFID,25/07/2016,Computer software maintenance ,Business Solutions Division Level ,BOTTOMLINE TECHNOLOGIES EUROPE LTD ,200002-115 ,"1,200.00",
DFID,DFID,01/07/2016,Aid Programme - Partnership Programme Arrangements ,Policy Division ,Conciliation Resources ,202702-101 ,"250,000.00",
DFID,DFID,28/07/2016,Aid Programme - Accountable Grant Payments ,West and Southern Africa ,CARE INTERNATIONAL UK ,205040-101 ,"5,728,059.60",
DFID,DFID,06/07/2016,Aid Programme - Accountable Grant Payments ,West and Southern Africa ,CONCERN UNIVERSAL ,201196-113 ,"357,109.63",
DFID,DFID,08/07/2016,Project delivery costs – supplier services ,Research and Evidence Division ,CAB INTERNATIONAL ,112152-102 ,"20,254.73",
DFID,DFID,29/07/2016,Project delivery costs – supplier services ,Research and Evidence Division ,CAB INTERNATIONAL ,112152-102 ,"3,157.58",
DFID,DFID,01/07/2016,Aid Programme - Accountable Grant Payments ,Policy Division ,COMIC RELIEF ,202197-101 ,"351,906.00",
DFID,DFID,08/07/2016,Property rates ,Group Operations ,CITY OF WESTMINSTER ,203717-101 ,"128,216.00",One tenth of the 2016/17 Whitehall headquarters rateable value ( fourth instalment) 
DFID,DFID,12/07/2016,Storage & Distribution costs ,West and Southern Africa ,CROWN RELOCATIONS  UK ,101622-106 ,834.00,
DFID,DFID,21/07/2016,Storage & Distribution costs ,Asia  Caribbean and Overseas Territories ,CROWN RELOCATIONS  UK ,101603-101 ,855.00,
DFID,DFID,21/07/2016,Storage & Distribution costs ,Asia  Caribbean and Overseas Territories ,CROWN RELOCATIONS  UK ,101624-101 ,"1,305.00",
DFID,DFID,27/07/2016,Storage & Distribution costs ,East and Central Africa ,CROWN RELOCATIONS  UK ,202594-101 ,594.00,
DFID,DFID,15/07/2016,Aid Programme - Partnership Programme Arrangements ,Policy Division ,Supplier Name withheld ,202615-101 ,"808,317.00",
DFID,DFID,22/07/2016,Project delivery costs – supplier services ,Asia  Caribbean and Overseas Territories ,Supplier Name withheld ,114506-101 ,"1,372.71",
DFID,DFID,22/07/2016,Project delivery costs – supplier services ,Asia  Caribbean and Overseas Territories ,Supplier Name withheld ,114506-101 ,"260,258.37",
DFID,DFID,21/07/2016,Project delivery costs – supplier services ,Asia  Caribbean and Overseas Territories ,Supplier Name withheld ,114506-101 ,"763,668.99",
DFID,DFID,22/07/2016,Project delivery costs – supplier services ,Asia  Caribbean and Overseas Territories ,Supplier Name withheld ,114506-101 ,"45,180.72",
DFID,DFID,25/07/2016,Project delivery costs – supplier services ,Asia  Caribbean and Overseas Territories ,Supplier Name withheld ,114506-101 ,"117,878.56",
DFID,DFID,25/07/2016,Project delivery costs – supplier services ,Asia  Caribbean and Overseas Territories ,Supplier Name withheld ,114506-101 ,"288,881.30",
DFID,DFID,05/07/2016,Aid Programme - Accountable Grant Payments ,East and Central Africa ,Supplier Name withheld ,200658-102 ,"287,500.00",
DFID,DFID,19/07/2016,Training Providers/Facilitation Services ,Finance and Corporate Performance Division ,Capita  Business Services ,204846-101 ,"1,407.32",
DFID,DFID,04/07/2016,Project delivery costs – supplier services ,Human Resources ,Capita  Business Services ,100269-155 ,750.00,
DFID,DFID,12/07/2016,Training Providers/Facilitation Services ,Human Resources ,Capita  Business Services ,100269-153 ,"2,970.00",
DFID,DFID,15/07/2016,Training Providers/Facilitation Services ,Human Resources ,Capita  Business Services ,100269-155 ,791.81,
DFID,DFID,26/07/2016,Aid Programme - Accountable Grant Payments ,West and Southern Africa ,CONCERN WORLDWIDE ,203445-104 ,"1,180,621.00",
DFID,DFID,26/07/2016,Aid Programme - Accountable Grant Payments ,West and Southern Africa ,CONCERN WORLDWIDE ,203981-101 ,"121,678.00",
DFID,DFID,01/07/2016,Aid Programme - Joint programme contribution ,Economic Development Division ,Department for Business  Innovation & Skills ,203448-102 ,"36,500.00",
DFID,DFID,20/07/2016,Aid Programme - Accountable Grant Payments ,Economic Development Division ,ETHICAL TRADING INITIATIVE ,203448-101 ,"190,178.00",
DFID,DFID,26/07/2016,Aid Programme - Partnership Programme Arrangements ,Policy Division ,ETHICAL TRADING INITIATIVE ,202620-101 ,"100,442.50",
DFID,DFID,20/07/2016,Project delivery costs – supplier services ,Policy Division ,COFFEY INTERNATIONAL DEVELOPMENT LTD ,205191-101 ,"70,000.00",
DFID,DFID,20/07/2016,Project delivery costs – supplier services ,Policy Division ,COFFEY INTERNATIONAL DEVELOPMENT LTD ,205191-101 ,"13,951.00",
DFID,DFID,14/07/2016,Project delivery costs – supplier services ,West and Southern Africa ,COFFEY INTERNATIONAL DEVELOPMENT LTD ,203429-105 ,"38,016.00",
DFID,DFID,20/07/2016,Project delivery costs – supplier services ,West and Southern Africa ,COFFEY INTERNATIONAL DEVELOPMENT LTD ,203429-105 ,"25,856.00",
DFID,DFID,01/07/2016,Project delivery costs – supplier services ,East and Central Africa ,COFFEY INTERNATIONAL DEVELOPMENT LTD ,204458-106 ,"21,695.43",
DFID,DFID,14/07/2016,Project delivery costs – supplier services ,West and Southern Africa ,COFFEY INTERNATIONAL DEVELOPMENT LTD ,104190-109 ,"308,092.72",
DFID,DFID,27/07/2016,Project delivery costs – supplier services ,West and Southern Africa ,COFFEY INTERNATIONAL DEVELOPMENT LTD ,104190-109 ,"303,050.13",
DFID,DFID,22/07/2016,Project delivery costs – supplier services ,West and Southern Africa ,COFFEY INTERNATIONAL DEVELOPMENT LTD ,300037-101 ,"83,418.25",
DFID,DFID,17/07/2016,Project delivery costs – supplier services ,Asia  Caribbean and Overseas Territories ,COFFEY INTERNATIONAL DEVELOPMENT LTD ,204952-101 ,"229,451.20",
DFID,DFID,08/07/2016,Project delivery costs – supplier services ,Policy Division ,COFFEY INTERNATIONAL DEVELOPMENT LTD ,202035-101 ,"24,948.49",
DFID,DFID,27/07/2016,Project delivery costs – supplier services ,West and Southern Africa ,COFFEY INTERNATIONAL DEVELOPMENT LTD ,202455-104 ,"13,740.96",
DFID,DFID,22/07/2016,Project delivery costs – supplier services ,West and Southern Africa ,COFFEY INTERNATIONAL DEVELOPMENT LTD ,202455-107 ,"7,362.52",
DFID,DFID,13/07/2016,Project delivery costs – supplier services ,Conflict  Humanitarian  Security & Stabilisation Division ,COFFEY INTERNATIONAL DEVELOPMENT LTD ,205038-107 ,"40,360.24",
DFID,DFID,08/07/2016,Project delivery costs – supplier services ,Economic Development Division ,COFFEY INTERNATIONAL DEVELOPMENT LTD ,205238-104 ,"6,726.00",
DFID,DFID,06/07/2016,Project delivery costs – supplier services ,Economic Development Division ,COFFEY INTERNATIONAL DEVELOPMENT LTD ,203809-107 ,"2,181.24",
DFID,DFID,04/07/2016,Project delivery costs – supplier services ,Economic Development Division ,COFFEY INTERNATIONAL DEVELOPMENT LTD ,203809-107 ,"8,578.58",
DFID,DFID,05/07/2016,Project delivery costs – supplier services ,Economic Development Division ,COFFEY INTERNATIONAL DEVELOPMENT LTD ,203809-107 ,"5,168.10",
DFID,DFID,20/07/2016,Project delivery costs – supplier services ,Economic Development Division ,COFFEY INTERNATIONAL DEVELOPMENT LTD ,203809-107 ,"2,824.80",
DFID,DFID,05/07/2016,Project delivery costs – supplier services ,Policy Division ,COFFEY INTERNATIONAL DEVELOPMENT LTD ,201724-145 ,"65,766.00",
DFID,DFID,05/07/2016,Project delivery costs – supplier services ,Policy Division ,COFFEY INTERNATIONAL DEVELOPMENT LTD ,201724-145 ,"2,672.10",
DFID,DFID,22/07/2016,Project delivery costs – supplier services ,Asia  Caribbean and Overseas Territories ,COFFEY INTERNATIONAL DEVELOPMENT LTD ,202495-112 ,"8,371.44",
DFID,DFID,01/07/2016,Project delivery costs – supplier services ,East and Central Africa ,COFFEY INTERNATIONAL DEVELOPMENT LTD ,200842-112 ,"69,092.46",
DFID,DFID,21/07/2016,Project delivery costs – supplier services ,Asia  Caribbean and Overseas Territories ,COFFEY INTERNATIONAL DEVELOPMENT LTD ,202368-102 ,"27,873.07",
DFID,DFID,14/07/2016,Project delivery costs – supplier services ,East and Central Africa ,COFFEY INTERNATIONAL DEVELOPMENT LTD ,204157-103 ,"12,940.00",
DFID,DFID,19/07/2016,Project delivery costs – supplier services ,Asia  Caribbean and Overseas Territories ,COFFEY INTERNATIONAL DEVELOPMENT LTD ,204469-101 ,750.00,
DFID,DFID,19/07/2016,Project delivery costs – supplier services ,East and Central Africa ,COFFEY INTERNATIONAL DEVELOPMENT LTD ,205225-101 ,"52,856.96",
DFID,DFID,04/07/2016,Project delivery costs – supplier services ,East and Central Africa ,COFFEY INTERNATIONAL DEVELOPMENT LTD ,202891-105 ,"137,023.00",
DFID,DFID,22/07/2016,Project delivery costs – supplier services ,East and Central Africa ,COFFEY INTERNATIONAL DEVELOPMENT LTD ,202974-102 ,"41,886.40",
DFID,DFID,05/07/2016,Project delivery costs – supplier services ,East and Central Africa ,COFFEY INTERNATIONAL DEVELOPMENT LTD ,204793-101 ,"23,024.20",
DFID,DFID,29/07/2016,Project delivery costs – supplier services ,East and Central Africa ,COFFEY INTERNATIONAL DEVELOPMENT LTD ,203923-102 ,"15,815.00",
DFID,DFID,27/07/2016,Project delivery costs – supplier services ,East and Central Africa ,COFFEY INTERNATIONAL DEVELOPMENT LTD ,203738-102 ,"23,864.00",
DFID,DFID,04/07/2016,Project delivery costs – supplier services ,Research and Evidence Division ,COFFEY INTERNATIONAL DEVELOPMENT LTD ,203193-101 ,"11,336.49",
DFID,DFID,04/07/2016,Project delivery costs – supplier services ,Research and Evidence Division ,COFFEY INTERNATIONAL DEVELOPMENT LTD ,203193-101 ,"38,901.05",
DFID,DFID,22/07/2016,Project delivery costs – supplier services ,Research and Evidence Division ,COFFEY INTERNATIONAL DEVELOPMENT LTD ,203193-101 ,"10,071.33",
DFID,DFID,12/07/2016,Project delivery costs – supplier services ,West and Southern Africa ,COFFEY INTERNATIONAL DEVELOPMENT LTD ,201629-104 ,"27,666.82",
DFID,DFID,27/07/2016,Project delivery costs – supplier services ,Policy Division ,COFFEY INTERNATIONAL DEVELOPMENT LTD ,205181-104 ,"24,225.50",
DFID,DFID,20/07/2016,Project delivery costs – supplier services ,Asia  Caribbean and Overseas Territories ,COFFEY INTERNATIONAL DEVELOPMENT LTD ,205138-103 ,"5,775.00",
DFID,DFID,29/07/2016,Project delivery costs – supplier services ,Research and Evidence Division ,COFFEY INTERNATIONAL DEVELOPMENT LTD ,204806-106 ,"3,750.00",
DFID,DFID,01/07/2016,Project delivery costs – supplier services ,Research and Evidence Division ,COFFEY INTERNATIONAL DEVELOPMENT LTD ,204806-101 ,"7,982.60",
DFID,DFID,08/07/2016,Project delivery costs – supplier services ,Research and Evidence Division ,COFFEY INTERNATIONAL DEVELOPMENT LTD ,204806-106 ,"6,585.00",
DFID,DFID,13/07/2016,Project delivery costs – supplier services ,West and Southern Africa ,COFFEY INTERNATIONAL DEVELOPMENT LTD ,204242-104 ,"12,297.00",
DFID,DFID,22/07/2016,Project delivery costs – supplier services ,West and Southern Africa ,COFFEY INTERNATIONAL DEVELOPMENT LTD ,204242-104 ,"21,240.00",
DFID,DFID,22/07/2016,Project delivery costs – supplier services ,East and Central Africa ,COFFEY INTERNATIONAL DEVELOPMENT LTD ,203439-102 ,"12,903.00",
DFID,DFID,22/07/2016,Project delivery costs – supplier services ,East and Central Africa ,COFFEY INTERNATIONAL DEVELOPMENT LTD ,202509-102 ,"1,400,000.00",
DFID,DFID,13/07/2016,Aid Programme - Accountable Grant Payments ,Research and Evidence Division ,ECONOMIC AND SOCIAL RESEARCH COUNCIL ,203704-112 ,"176,476.45",
DFID,DFID,13/07/2016,Aid Programme - Accountable Grant Payments ,Research and Evidence Division ,ECONOMIC AND SOCIAL RESEARCH COUNCIL ,203704-112 ,"1,333.33",
DFID,DFID,04/07/2016,Aid Programme - Partnership Programme Arrangements ,Policy Division ,FARM-Africa ,202624-101 ,"769,567.50",
DFID,DFID,11/07/2016,Aid Programme - Accountable Grant Payments ,Asia  Caribbean and Overseas Territories ,FACULTY OF PUBLIC HEALTH MEDECI ,203224-103 ,"21,481.00",
DFID,DFID,29/07/2016,Postage Costs ,Group Operations ,FCO SERVICES ,201157-101 ,"2,707.33",
DFID,DFID,15/07/2016,Postage Costs ,Group Operations ,FCO SERVICES ,203717-101 ,"1,215.43",
DFID,DFID,14/07/2016,Computer software maintenance ,Business Solutions Division Level ,FCO SERVICES ,200002-165 ,"2,904.62",
DFID,DFID,20/07/2016,Aid Programme - Trust Funds contributions ,East and Central Africa ,FOREIGN INVESTMENT ADVISORY SERVICE ,204803-110 ,"560,000.00",
DFID,DFID,08/07/2016,Postage Costs ,Group Operations , FCO SERVICES ,203717-101 ,"1,215.43",
DFID,DFID,21/07/2016,Gas ,Group Operations ,CORONA ENERGY ,100106-101 ,518.66,
DFID,DFID,28/07/2016,Project delivery costs – supplier services ,East and Central Africa ,PALLADIUM ,202577-104 ,"560,960.40",
DFID,DFID,06/07/2016,Project delivery costs – supplier services ,West and Southern Africa ,PALLADIUM ,203429-103 ,"173,896.41",
DFID,DFID,20/07/2016,Project delivery costs – supplier services ,Policy Division ,PALLADIUM ,202745-104 ,"493,163.94",
DFID,DFID,27/07/2016,Project delivery costs – supplier services ,East and Central Africa ,PALLADIUM ,202596-108 ,"12,632.35",
DFID,DFID,07/07/2016,Project delivery costs – supplier services ,West and Southern Africa ,PALLADIUM ,203429-103 ,"248,239.14",
DFID,DFID,01/07/2016,Project delivery costs – supplier services ,East and Central Africa ,PALLADIUM ,203539-102 ,"130,776.00",
DFID,DFID,01/07/2016,Fund monies to be managed and dispersed by the supplier ,East and Central Africa ,PALLADIUM ,203539-102 ,"70,300.83",
DFID,DFID,25/07/2016,Project delivery costs – supplier services ,West and Southern Africa ,PALLADIUM ,202352-102 ,"256,237.96",
DFID,DFID,27/07/2016,Project delivery costs – supplier services ,West and Southern Africa ,PALLADIUM ,114230-101 ,"15,197.43",
DFID,DFID,06/07/2016,Project delivery costs – supplier services ,Asia  Caribbean and Overseas Territories ,PALLADIUM ,203274-104 ,"129,535.00",
DFID,DFID,01/07/2016,Project delivery costs – supplier services ,Asia  Caribbean and Overseas Territories ,PALLADIUM ,203274-104 ,"74,807.00",
DFID,DFID,19/07/2016,Project delivery costs – supplier services ,West and Southern Africa ,PALLADIUM ,202098-101 ,"375,014.18",
DFID,DFID,14/07/2016,Project delivery costs – supplier services ,Research and Evidence Division ,ICF Consulting Services Ltd ,201433-106 ,"200,000.00",
DFID,DFID,13/07/2016,Project delivery costs – supplier services ,East and Central Africa ,ICF Consulting Services Ltd ,204439-104 ,"75,105.00",
DFID,DFID,29/07/2016,Project delivery costs – supplier services ,Conflict  Humanitarian  Security & Stabilisation Division ,THE HALO TRUST ,203243-119 ,"122,301.00",
DFID,DFID,19/07/2016,Project delivery costs – supplier services ,Conflict  Humanitarian  Security & Stabilisation Division ,THE HALO TRUST ,203243-119 ,"122,301.00",
DFID,DFID,26/07/2016,Project delivery costs – supplier services ,Conflict  Humanitarian  Security & Stabilisation Division ,THE HALO TRUST ,203243-121 ,"17,000.00",
DFID,DFID,29/07/2016,Aid Programme - Accountable Grant Payments ,Asia  Caribbean and Overseas Territories ,Supplier Name withheld ,203748-101 ,"514,347.15",
DFID,DFID,15/07/2016,Aid Programme - Partnership Programme Arrangements ,Policy Division ,HELPAGE INTERNATIONAL ,202566-101 ,"667,568.00",
DFID,DFID,22/07/2016,Project delivery costs – supplier services ,West and Southern Africa ,HEALTH PARTNERS INTERNATIONAL ,202694-101 ,"93,158.28",
DFID,DFID,11/07/2016,Project delivery costs – supplier services ,East and Central Africa ,HTSPE LTD ,204624-106 ,"27,986.28",
DFID,DFID,14/07/2016,Project delivery costs – supplier services ,East and Central Africa ,HTSPE LTD ,202619-112 ,"40,637.66",
DFID,DFID,12/07/2016,Project delivery costs – supplier services ,East and Central Africa ,HTSPE LTD ,202619-112 ,"73,984.64",
DFID,DFID,08/07/2016,Project delivery costs – supplier services ,East and Central Africa ,HTSPE LTD ,204258-101 ,"371,167.20",
DFID,DFID,14/07/2016,Project delivery costs – supplier services ,East and Central Africa ,HTSPE LTD ,204258-101 ,"303,897.46",
DFID,DFID,27/07/2016,Project delivery costs – supplier services ,Asia  Caribbean and Overseas Territories ,HTSPE LTD ,202491-102 ,"130,391.26",
DFID,DFID,27/07/2016,Aid Programme - Challenge Fund payments ,Asia  Caribbean and Overseas Territories ,HTSPE LTD ,202491-106 ,"53,913.77",
DFID,DFID,01/07/2016,Project delivery costs – supplier services ,East and Central Africa ,HTSPE LTD ,201575-107 ,"20,992.50",
DFID,DFID,27/07/2016,Project delivery costs – supplier services ,East and Central Africa ,HTSPE LTD ,201575-107 ,"12,644.90",
DFID,DFID,27/07/2016,Project delivery costs – supplier services ,Asia  Caribbean and Overseas Territories ,HTSPE LTD ,203764-105 ,"52,107.72",
DFID,DFID,06/07/2016,Project delivery costs – supplier services ,West and Southern Africa ,HTSPE LTD ,203164-104 ,"5,000.00",
DFID,DFID,04/07/2016,Project delivery costs – supplier services ,West and Southern Africa ,HTSPE LTD ,205195-101 ,"5,412.08",
DFID,DFID,12/07/2016,Project delivery costs – supplier services ,West and Southern Africa ,HTSPE LTD ,203164-103 ,"8,789.37",
DFID,DFID,29/07/2016,Project delivery costs – supplier services ,West and Southern Africa ,HTSPE LTD ,203164-103 ,"8,789.37",
DFID,DFID,29/07/2016,Project delivery costs – supplier services ,West and Southern Africa ,HTSPE LTD ,203164-103 ,"4,655.31",
DFID,DFID,29/07/2016,Project delivery costs – supplier services ,West and Southern Africa ,HTSPE LTD ,203164-103 ,"10,837.68",
DFID,DFID,29/07/2016,Project delivery costs – supplier services ,West and Southern Africa ,HTSPE LTD ,203164-103 ,"5,206.18",
DFID,DFID,04/07/2016,Research and development costs - supplier services ,Research and Evidence Division ,HTSPE LTD ,204046-102 ,"9,616.00",
DFID,DFID,08/07/2016,Research and development costs - supplier services ,Research and Evidence Division ,HTSPE LTD ,204046-102 ,"9,616.00",
DFID,DFID,01/07/2016,Research and development costs - supplier services ,Research and Evidence Division ,HTSPE LTD ,204046-102 ,"9,616.00",
DFID,DFID,06/07/2016,Project delivery costs – supplier services ,Policy Division ,HTSPE LTD ,204789-102 ,"7,411.00",
DFID,DFID,13/07/2016,Project delivery costs – supplier services ,Asia  Caribbean and Overseas Territories ,HTSPE LTD ,203035-106 ,"10,112.35",
DFID,DFID,05/07/2016,Project delivery costs – supplier services ,Research and Evidence Division ,HTSPE LTD ,203036-106 ,"13,520.00",
DFID,DFID,22/07/2016,Project delivery costs – supplier services ,East and Central Africa ,HTSPE LTD ,203574-103 ,"13,810.97",
DFID,DFID,22/07/2016,Project delivery costs – supplier services ,East and Central Africa ,HTSPE LTD ,203574-109 ,"54,165.59",
DFID,DFID,27/07/2016,Project delivery costs – supplier services ,West and Southern Africa ,HTSPE LTD ,205195-101 ,"68,655.98",
DFID,DFID,14/07/2016,Project delivery costs – supplier services ,West and Southern Africa ,HTSPE LTD ,205188-101 ,"28,324.97",
DFID,DFID,14/07/2016,Project delivery costs – supplier services ,West and Southern Africa ,HTSPE LTD ,205188-101 ,"18,883.31",
DFID,DFID,15/07/2016,Aid Programme - Accountable Grant Payments ,Middle East and North Africa Division ,HANDICAP INTERNATIONAL UK ,204007-126 ,"185,780.00",
DFID,DFID,13/07/2016,Contract & Agency Staff ,Finance and Corporate Performance Division ,Hays Specialist Recruitment Ltd ,100201-101 ,701.21,
DFID,DFID,15/07/2016,Contract & Agency Staff ,Finance and Corporate Performance Division ,Hays Specialist Recruitment Ltd ,100201-101 ,934.94,
DFID,DFID,21/07/2016,Contract & Agency Staff ,Finance and Corporate Performance Division ,Hays Specialist Recruitment Ltd ,100201-101 ,701.21,
DFID,DFID,11/07/2016,Contract & Agency Staff ,Finance and Corporate Performance Division ,Hays Specialist Recruitment Ltd ,100201-101 ,"1,168.68",
DFID,DFID,05/07/2016,Contract & Agency Staff ,Finance and Corporate Performance Division ,Hays Specialist Recruitment Ltd ,100201-101 ,"1,168.68",
DFID,DFID,25/07/2016,Contract & Agency Staff ,Finance and Corporate Performance Division ,Hays Specialist Recruitment Ltd ,100201-101 ,934.94,
DFID,DFID,01/07/2016,Contract & Agency Staff ,Finance and Corporate Performance Division ,Hays Specialist Recruitment Ltd ,100201-101 ,"1,168.68",
DFID,DFID,21/07/2016,Contract & Agency Staff ,Finance and Corporate Performance Division ,Hays Specialist Recruitment Ltd ,100201-101 ,776.88,
DFID,DFID,06/07/2016,Contract & Agency Staff ,Finance and Corporate Performance Division ,Hays Specialist Recruitment Ltd ,100201-101 ,776.88,
DFID,DFID,28/07/2016,Contract & Agency Staff ,Group Operations ,Hays Specialist Recruitment Ltd ,100161-101 ,"1,455.72",
DFID,DFID,19/07/2016,Contract & Agency Staff ,Group Operations ,Hays Specialist Recruitment Ltd ,100161-101 ,"1,455.72",
DFID,DFID,08/07/2016,Contract & Agency Staff ,Finance and Corporate Performance Division ,Hays Specialist Recruitment Ltd ,100201-101 ,"1,168.68",
DFID,DFID,14/07/2016,Contract & Agency Staff ,Finance and Corporate Performance Division ,Hays Specialist Recruitment Ltd ,100201-101 ,892.92,
DFID,DFID,21/07/2016,Contract & Agency Staff ,Finance and Corporate Performance Division ,Hays Specialist Recruitment Ltd ,100201-101 ,714.34,
DFID,DFID,25/07/2016,Contract & Agency Staff ,Finance and Corporate Performance Division ,Hays Specialist Recruitment Ltd ,100201-101 ,"1,168.68",
DFID,DFID,28/07/2016,Contract & Agency Staff ,Finance and Corporate Performance Division ,Hays Specialist Recruitment Ltd ,100201-101 ,"1,168.68",
DFID,DFID,25/07/2016,Contract & Agency Staff ,Finance and Corporate Performance Division ,Hays Specialist Recruitment Ltd ,100201-101 ,701.21,
DFID,DFID,06/07/2016,Contract & Agency Staff ,Finance and Corporate Performance Division ,Hays Specialist Recruitment Ltd ,100201-101 ,892.92,
DFID,DFID,19/07/2016,Contract & Agency Staff ,Business Solutions Division Level ,Hays Specialist Recruitment Ltd ,200005-116 ,936.00,
DFID,DFID,06/07/2016,Contract & Agency Staff ,Human Resources ,HUDSON GLOBAL RESOURCES LTD ,100261-101 ,"4,077.17",
DFID,DFID,07/07/2016,Contract & Agency Staff ,Human Resources ,HUDSON GLOBAL RESOURCES LTD ,100261-101 ,"5,465.09",
DFID,DFID,14/07/2016,Contract & Agency Staff ,Finance and Corporate Performance Division ,HUDSON GLOBAL RESOURCES LTD ,100201-101 ,"1,187.34",
DFID,DFID,04/07/2016,Aid Programme - Partnership Programme Arrangements ,Policy Division ,International Planned Parent ,114146-101 ,"2,150,000.00",
DFID,DFID,11/07/2016,Aid Programme - Partnership Programme Arrangements ,Policy Division ,INTERNATIONAL HIV/AIDS ALLIANCE ,202557-101 ,"972,905.66",
DFID,DFID,19/07/2016,Research and development costs - supplier services ,Research and Evidence Division ,INASP ,203778-106 ,"317,400.84",
DFID,DFID,19/07/2016,Aid Programme - Partnership Programme Arrangements ,Policy Division ,INTERNATIONAL ALERT ,202687-101 ,"434,790.00",
DFID,DFID,13/07/2016,Project delivery costs – supplier services ,Policy Division ,INTERN DEVEL EDUC ASSOC OF SCOTLAND ,201469-105 ,"96,599.00",
DFID,DFID,13/07/2016,Air fares ,Conflict  Humanitarian  Security & Stabilisation Division ,INTERNATIONAL RESCUE COMMITTEE UK ,100049-133 ,664.00,
DFID,DFID,20/07/2016,Aid Programme - Accountable Grant Payments ,Asia  Caribbean and Overseas Territories ,INTERNATIONAL RESCUE COMMITTEE UK ,204603-116 ,"174,203.00",
DFID,DFID,20/07/2016,Aid Programme - Humanitarian Material Relief Assistance and Services ,Asia  Caribbean and Overseas Territories ,INTERNATIONAL RESCUE COMMITTEE UK ,204603-105 ,"522,608.00",
DFID,DFID,28/07/2016,Aid Programme - Accountable Grant Payments ,Asia  Caribbean and Overseas Territories ,INTERNATIONAL RESCUE COMMITTEE UK ,203400-114 ,"758,762.00",
DFID,DFID,26/07/2016,Research and development costs - supplier services ,Research and Evidence Division ,INSTITUTE OF DEVELOPMENT STUDIES ,202042-101 ,"507,262.56",
DFID,DFID,13/07/2016,Trust Funds contributions ,Asia  Caribbean and Overseas Territories ,IBRD HSBC T ,205101-107 ,"588,447.00",
DFID,DFID,25/07/2016,Trust Funds contributions ,Asia  Caribbean and Overseas Territories ,IBRD HSBC T ,205101-107 ,"358,692.00",
DFID,DFID,29/07/2016,Aid Programme - Trust Funds contributions ,Research and Evidence Division ,IBRD HSBC T ,204151-104 ,"1,376,800.00",
DFID,DFID,29/07/2016,Aid Programme - Trust Funds contributions ,Research and Evidence Division ,IBRD HSBC T ,204151-106 ,"344,200.00",
DFID,DFID,25/07/2016,Aid Programme - Trust Funds contributions ,Asia  Caribbean and Overseas Territories ,IBRD HSBC T ,204024-103 ,"3,923,500.00",
DFID,DFID,25/07/2016,Aid Programme - Trust Funds contributions ,Asia  Caribbean and Overseas Territories ,IBRD HSBC T ,204024-108 ,"206,500.00",
DFID,DFID,21/07/2016,Project delivery costs – supplier services ,Asia  Caribbean and Overseas Territories ,IOD PARC ,202775-105 ,"58,542.05",
DFID,DFID,21/07/2016,Aid Programme - Trust Funds contributions ,East and Central Africa ,IBRD (HSBC)  C/O THE WORLD BANK ,203597-104 ,"250,000.00",
DFID,DFID,11/07/2016,Aid Programme - Trust Funds contributions ,West and Southern Africa ,IBRD (HSBC)  C/O THE WORLD BANK ,202427-101 ,"1,978,932.00",
DFID,DFID,28/07/2016,Aid Programme - Trust Funds contributions ,Economic Development Division ,IBRD (HSBC)  C/O THE WORLD BANK ,204252-115 ,"250,000.00",
DFID,DFID,11/07/2016,Aid Programme - Trust Funds contributions ,Asia  Caribbean and Overseas Territories ,IBRD (HSBC)  C/O THE WORLD BANK ,203035-102 ,"300,000.00",
DFID,DFID,11/07/2016,Aid Programme - Trust Funds contributions ,Asia  Caribbean and Overseas Territories ,IBRD (HSBC)  C/O THE WORLD BANK ,203035-102 ,"628,820.00",
DFID,DFID,04/07/2016,Aid Programme - Accountable Grant Payments ,Middle East and North Africa Division ,Supplier Name withheld ,204525-103 ,"944,890.00",
DFID,DFID,04/07/2016,Aid Programme - Accountable Grant Payments ,Middle East and North Africa Division ,Supplier Name withheld ,204525-104 ,"42,401.00",
DFID,DFID,28/07/2016,Aid Programme - Accountable Grant Payments ,Middle East and North Africa Division ,Supplier Name withheld ,204525-104 ,"515,849.00",
DFID,DFID,28/07/2016,Aid Programme - Accountable Grant Payments ,Middle East and North Africa Division ,Supplier Name withheld ,204525-101 ,"2,245,268.00",
DFID,DFID,28/07/2016,Project delivery costs – supplier services ,Policy Division ,IMPERIAL COLLEGE LONDON ,200706-101 ,"119,324.43",
DFID,DFID,20/07/2016,Aid Programme - Trust Funds contributions ,West and Southern Africa ,IBRD-IFFIm ,203628-102 ,"750,000.00",
DFID,DFID,21/07/2016,Hostile Environment Training ,East and Central Africa ,KELLOGG BROWN & ROOT LIMITED ,101630-101 ,"1,242.00",
DFID,DFID,27/07/2016,Research and development costs - supplier services ,Research and Evidence Division ,LIVERPOOL SCHOOL OF TROPICAL MEDICINE ,201400-103 ,"150,759.48",
DFID,DFID,27/07/2016,Research and development costs - supplier services ,Research and Evidence Division ,LIVERPOOL SCHOOL OF TROPICAL MEDICINE ,201401-103 ,"171,197.17",
DFID,DFID,19/07/2016,Aid Programme - Accountable Grant Payments ,Research and Evidence Division ,LOUGHBOROUGH UNIVERSITY ,203781-107 ,"19,258.53",
DFID,DFID,14/07/2016,Electricity ,Group Operations ,EDF ENERGY ,203717-101 ,"11,652.98",
DFID,DFID,15/07/2016,Electricity ,Group Operations ,EDF ENERGY ,203717-101 ,"8,228.23",
DFID,DFID,06/07/2016,Electricity ,Group Operations ,EDF ENERGY ,203717-101 ,"11,720.60",
DFID,DFID,01/07/2016,Aid Programme - Core contributions ,Research and Evidence Division ,MEDICAL RESEARCH COUNCIL ,203093-102 ,"281,503.09",
DFID,DFID,04/07/2016,Aid Programme - Core contributions ,Research and Evidence Division ,MEDICAL RESEARCH COUNCIL ,201267-104 ,"1,499,741.73",
DFID,DFID,04/07/2016,Aid Programme - Core contributions ,Research and Evidence Division ,MEDICAL RESEARCH COUNCIL ,201267-105 ,"2,269,796.01",
DFID,DFID,25/07/2016,Project delivery costs – supplier services ,Asia  Caribbean and Overseas Territories ,Supplier Name withheld ,202488-107 ,"304,590.21",
DFID,DFID,08/07/2016,Project delivery costs – supplier services ,East and Central Africa ,Supplier Name withheld ,203641-103 ,"37,740.99",
DFID,DFID,12/07/2016,Project delivery costs – supplier services ,East and Central Africa ,Supplier Name withheld ,202893-102 ,"85,684.00",
DFID,DFID,26/07/2016,Project delivery costs – supplier services ,East and Central Africa ,Supplier Name withheld ,203363-103 ,"522,339.92",
DFID,DFID,26/07/2016,Project delivery costs – supplier services ,Asia  Caribbean and Overseas Territories ,Supplier Name withheld ,203029-104 ,"240,569.00",
DFID,DFID,21/07/2016,Project delivery costs – supplier services ,East and Central Africa ,Supplier Name withheld ,202520-101 ,"30,478.32",
DFID,DFID,14/07/2016,Project delivery costs – supplier services ,East and Central Africa ,Supplier Name withheld ,204288-103 ,"154,093.42",
DFID,DFID,28/07/2016,Project delivery costs – supplier services ,Policy Division ,Supplier Name withheld ,203148-101 ,"372,168.23",
DFID,DFID,28/07/2016,Project delivery costs – supplier services ,East and Central Africa ,Supplier Name withheld ,203871-102 ,"71,997.78",
DFID,DFID,11/07/2016,Project delivery costs – supplier services ,Asia  Caribbean and Overseas Territories ,Supplier Name withheld ,201388-102 ,"270,646.34",
DFID,DFID,26/07/2016,Project delivery costs – supplier services ,West and Southern Africa ,Supplier Name withheld ,202678-101 ,"147,552.81",
DFID,DFID,26/07/2016,Project delivery costs – supplier services ,West and Southern Africa ,Supplier Name withheld ,202942-102 ,"424,986.98",
DFID,DFID,29/07/2016,Data Network - land lines ,Business Solutions Division Level ,VODAFONE LIMITED ,200002-185 ,"95,628.11",WAN - Rental charge for telecommunication data links out with the European Union for June 2016 1 of 2 
DFID,DFID,29/07/2016,Data Network - land lines ,Business Solutions Division Level ,VODAFONE LIMITED ,200002-185 ,"2,147.63",
DFID,DFID,01/07/2016,Data Network - land lines ,Business Solutions Division Level ,VODAFONE LIMITED ,203329-103 ,"2,219.22",
DFID,DFID,29/07/2016,Data Network - land lines ,Business Solutions Division Level ,VODAFONE LIMITED ,203329-103 ,"2,147.63",
DFID,DFID,29/07/2016,Data Network - land lines ,Business Solutions Division Level ,VODAFONE LIMITED ,203329-103 ,"95,628.11",WAN - Rental charge for telecommunication data links out with the European Union for June 2016 2 of 2 
DFID,DFID,29/07/2016,Data Network - land lines ,Business Solutions Division Level ,VODAFONE LIMITED ,203329-103 ,"7,023.27",
DFID,DFID,29/07/2016,Telephone Usage & services ,Business Solutions Division Level ,VODAFONE LIMITED ,203329-103 ,"7,011.76",
DFID,DFID,01/07/2016,Data Network - land lines ,Business Solutions Division Level ,VODAFONE LIMITED ,200002-185 ,"2,219.22",
DFID,DFID,29/07/2016,Telephone Usage & services ,Business Solutions Division Level ,VODAFONE LIMITED ,200002-185 ,"7,011.75",
DFID,DFID,29/07/2016,Data Network - land lines ,Business Solutions Division Level ,VODAFONE LIMITED ,200002-185 ,"7,023.27",
DFID,DFID,07/07/2016,Contract & Agency Staff ,Economic Development Division ,MANPOWER PLC ,204686-101 ,"3,973.39",
DFID,DFID,28/07/2016,Contract & Agency Staff ,Economic Development Division ,MANPOWER PLC ,204686-101 ,"4,183.37",
DFID,DFID,15/07/2016,Aid Programme - Challenge Fund payments ,Asia  Caribbean and Overseas Territories ,MAXWELL STAMP PLC ,107460-107 ,"430,282.73",
DFID,DFID,19/07/2016,Aid Programme - Partnership Programme Arrangements ,Research and Evidence Division ,MET OFFICE ,204624-104 ,"83,794.20",
DFID,DFID,08/07/2016,Project delivery costs – supplier services ,Asia  Caribbean and Overseas Territories ,MET OFFICE ,204880-102 ,"301,840.00",
DFID,DFID,21/07/2016,Repairs  Maintenance and Alterations – Other Building Costs ,Group Operations ,MITIE Technical Facilities Management Ltd ,100106-101 ,"1,357.96",
DFID,DFID,06/07/2016,Repairs  Maintenance and Alterations – Other Building Costs ,Group Operations ,MITIE Technical Facilities Management Ltd ,100106-101 ,"6,150.10",
DFID,DFID,06/07/2016,Repairs  Maintenance and Alterations – Other Building Costs ,Group Operations ,MITIE Technical Facilities Management Ltd ,100106-101 ,"1,092.30",
DFID,DFID,29/07/2016,Repairs  Maintenance and Alterations – Other Building Costs ,Group Operations ,MITIE Technical Facilities Management Ltd ,203717-101 ,880.30,
DFID,DFID,04/07/2016,Repairs  Maintenance and Alterations – Other Building Costs ,Group Operations ,MITIE Technical Facilities Management Ltd ,203717-101 ,594.00,
DFID,DFID,04/07/2016,Repairs  Maintenance and Alterations – Other Building Costs ,Group Operations ,MITIE Technical Facilities Management Ltd ,203717-101 ,"1,566.20",
DFID,DFID,13/07/2016,Aid Programme - Partnership Programme Arrangements ,Policy Division ,MARIE STOPES INTERNATIONAL ,202625-101 ,"1,088,263.00",
DFID,DFID,14/07/2016,Aid Programme - Partnership Programme Arrangements ,Policy Division ,MARIE STOPES INTERNATIONAL ,202625-101 ,"1,088,263.00",
DFID,DFID,07/07/2016,Aid Programme - Partnership Programme Arrangements ,Policy Division ,MALARIA CONSORTIUM ,202700-101 ,"667,567.33",
DFID,DFID,04/07/2016,Project delivery costs – supplier services ,East and Central Africa ,Supplier Name withheld ,202891-104 ,"593,007.00",
DFID,DFID,12/07/2016,Aid Programme - Accountable Grant Payments ,West and Southern Africa ,Supplier Name withheld ,203445-109 ,"380,812.00",
DFID,DFID,15/07/2016,Computer software maintenance ,Business Solutions Division Level ,RICOH UK LTD ,200001-113 ,"2,337.12",
DFID,DFID,04/07/2016,Aid Programme - Partnership Programme Arrangements ,Policy Division ,MAPACTION ,202793-101 ,"37,789.50",
DFID,DFID,13/07/2016,Aid Programme - Accountable Grant Payments ,Middle East and North Africa Division ,OXFAM INSTITUTIONAL INCOME ACCOUNT ,203847-102 ,"3,952,855.00",
DFID,DFID,26/07/2016,Aid Programme - Accountable Grant Payments ,West and Southern Africa ,OXFAM INSTITUTIONAL INCOME ACCOUNT ,203445-107 ,"364,883.03",
DFID,DFID,08/07/2016,Vehicle Petrol & Oil,West and Southern Africa ,Supplier Name withheld ,101622-104 ,594.92,
DFID,DFID,20/07/2016,Furniture & Fittings ,Asia  Caribbean and Overseas Territories ,Supplier Name withheld ,203842-103 ,"1,680.00",
DFID,DFID,05/07/2016,Project delivery costs – supplier services ,West and Southern Africa ,OXFORD POLICY MANAGEMENT ,204330-103 ,"157,794.73",
DFID,DFID,29/07/2016,Project delivery costs – supplier services ,West and Southern Africa ,OXFORD POLICY MANAGEMENT ,204330-103 ,"468,226.96",
DFID,DFID,29/07/2016,Project delivery costs – supplier services ,Middle East and North Africa Division ,OXFORD POLICY MANAGEMENT ,205200-102 ,"50,326.71",
DFID,DFID,22/07/2016,Project delivery costs – supplier services ,West and Southern Africa ,OXFORD POLICY MANAGEMENT ,205066-101 ,"169,312.54",
DFID,DFID,05/07/2016,Project delivery costs – supplier services ,West and Southern Africa ,OXFORD POLICY MANAGEMENT ,205066-101 ,"139,560.19",
DFID,DFID,11/07/2016,Project delivery costs – supplier services ,Middle East and North Africa Division ,OXFORD POLICY MANAGEMENT ,202241-104 ,"109,765.20",
DFID,DFID,22/07/2016,Project delivery costs – supplier services ,Asia  Caribbean and Overseas Territories ,OXFORD POLICY MANAGEMENT ,202367-103 ,"363,098.69",
DFID,DFID,05/07/2016,Project delivery costs – supplier services ,Asia  Caribbean and Overseas Territories ,OXFORD POLICY MANAGEMENT ,202367-103 ,"373,244.18",
DFID,DFID,14/07/2016,Project delivery costs – supplier services ,West and Southern Africa ,OXFORD POLICY MANAGEMENT ,202668-102 ,"14,225.71",
DFID,DFID,05/07/2016,Project delivery costs – supplier services ,East and Central Africa ,OXFORD POLICY MANAGEMENT ,202844-101 ,"42,339.00",
DFID,DFID,13/07/2016,Project delivery costs – supplier services ,West and Southern Africa ,OXFORD POLICY MANAGEMENT ,202214-103 ,"20,839.80",
DFID,DFID,11/07/2016,Project delivery costs – supplier services ,West and Southern Africa ,OXFORD POLICY MANAGEMENT ,114206-102 ,"3,354.57",
DFID,DFID,20/07/2016,Project delivery costs – supplier services ,West and Southern Africa ,OXFORD POLICY MANAGEMENT ,202819-108 ,"398,425.00",
DFID,DFID,21/07/2016,Project delivery costs – supplier services ,Middle East and North Africa Division ,OXFORD POLICY MANAGEMENT ,204906-106 ,"22,230.59",
DFID,DFID,29/07/2016,Project delivery costs – supplier services ,Policy Division ,OXFORD POLICY MANAGEMENT ,203572-102 ,"121,987.20",
DFID,DFID,28/07/2016,Project delivery costs – supplier services ,Policy Division ,OXFORD POLICY MANAGEMENT ,203572-102 ,"103,539.60",
DFID,DFID,15/07/2016,Project delivery costs – supplier services ,West and Southern Africa ,OXFORD POLICY MANAGEMENT ,202637-106 ,"104,184.10",
DFID,DFID,28/07/2016,Project delivery costs – supplier services ,West and Southern Africa ,OXFORD POLICY MANAGEMENT ,200341-101 ,"159,000.00",
DFID,DFID,05/07/2016,Project delivery costs – supplier services ,Asia  Caribbean and Overseas Territories ,OXFORD POLICY MANAGEMENT ,203180-102 ,"271,228.00",
DFID,DFID,04/07/2016,Project delivery costs – supplier services ,Asia  Caribbean and Overseas Territories ,OXFORD POLICY MANAGEMENT ,203180-102 ,"1,205,457.00",
DFID,DFID,11/07/2016,Project delivery costs – supplier services ,West and Southern Africa ,OXFORD POLICY MANAGEMENT ,114206-102 ,"21,500.00",
DFID,DFID,12/07/2016,Project delivery costs – supplier services ,East and Central Africa ,OXFORD POLICY MANAGEMENT ,204258-102 ,"75,934.61",
DFID,DFID,04/07/2016,Project delivery costs – supplier services ,East and Central Africa ,OXFORD POLICY MANAGEMENT ,204258-102 ,"31,510.17",
DFID,DFID,04/07/2016,Project delivery costs – supplier services ,East and Central Africa ,OXFORD POLICY MANAGEMENT ,204258-102 ,"20,736.24",
DFID,DFID,05/07/2016,Project delivery costs – supplier services ,West and Southern Africa ,OXFORD POLICY MANAGEMENT ,202978-101 ,"29,662.72",
DFID,DFID,28/07/2016,Project delivery costs – supplier services ,West and Southern Africa ,OXFORD POLICY MANAGEMENT ,205186-101 ,"39,437.33",
DFID,DFID,28/07/2016,Project delivery costs – supplier services ,West and Southern Africa ,OXFORD POLICY MANAGEMENT ,205186-101 ,"26,576.40",
DFID,DFID,04/07/2016,Project delivery costs – supplier services ,Research and Evidence Division ,OXFORD POLICY MANAGEMENT ,203051-103 ,"458,000.00",
DFID,DFID,04/07/2016,Project delivery costs – supplier services ,Research and Evidence Division ,OXFORD POLICY MANAGEMENT ,203051-103 ,"14,043.48",
DFID,DFID,06/07/2016,Project delivery costs – supplier services ,Middle East and North Africa Division ,OXFORD POLICY MANAGEMENT ,202241-104 ,"78,763.84",
DFID,DFID,25/07/2016,Project delivery costs – supplier services ,West and Southern Africa ,OXFORD POLICY MANAGEMENT ,204497-103 ,"638,738.00",
DFID,DFID,29/07/2016,Project delivery costs – supplier services ,Asia  Caribbean and Overseas Territories ,OXFORD POLICY MANAGEMENT ,201645-110 ,"56,192.94",
DFID,DFID,13/07/2016,Project delivery costs – supplier services ,Asia  Caribbean and Overseas Territories ,OXFORD POLICY MANAGEMENT ,201645-110 ,"23,746.04",
DFID,DFID,12/07/2016,Project delivery costs – supplier services ,Research and Evidence Division ,OXFORD POLICY MANAGEMENT ,203193-101 ,"42,835.20",
DFID,DFID,12/07/2016,Project delivery costs – supplier services ,Research and Evidence Division ,OXFORD POLICY MANAGEMENT ,203193-101 ,"46,316.30",
DFID,DFID,07/07/2016,Project delivery costs – supplier services ,Research and Evidence Division ,OXFORD POLICY MANAGEMENT ,203193-101 ,"13,561.00",
DFID,DFID,07/07/2016,Project delivery costs – supplier services ,Research and Evidence Division ,OXFORD POLICY MANAGEMENT ,203193-101 ,"8,701.20",
DFID,DFID,08/07/2016,Project delivery costs – supplier services ,West and Southern Africa ,OXFORD POLICY MANAGEMENT ,202340-103 ,"19,368.44",
DFID,DFID,05/07/2016,Project delivery costs – supplier services ,East and Central Africa ,OXFORD POLICY MANAGEMENT ,203396-104 ,"15,319.79",
DFID,DFID,28/07/2016,Aid Programme - Accountable Grant Payments ,Policy Division ,OPPORTUNITY INTERNATIONAL UK ,203559-104 ,"53,506.00",
DFID,DFID,20/07/2016,Project delivery costs – supplier services ,West and Southern Africa ,OPTIONS CONSULTANCY SERVICES LIMITED ,202214-103 ,"194,445.00",
DFID,DFID,28/07/2016,Project delivery costs – supplier services ,Asia  Caribbean and Overseas Territories ,OPTIONS CONSULTANCY SERVICES LIMITED ,203390-104 ,"52,090.00",
DFID,DFID,28/07/2016,Project delivery costs – supplier services ,Asia  Caribbean and Overseas Territories ,OPTIONS CONSULTANCY SERVICES LIMITED ,203390-104 ,"44,740.00",
DFID,DFID,21/07/2016,Project delivery costs – supplier services ,Asia  Caribbean and Overseas Territories ,OPTIONS CONSULTANCY SERVICES LIMITED ,202871-101 ,"105,497.14",
DFID,DFID,20/07/2016,Project delivery costs – supplier services ,Asia  Caribbean and Overseas Territories ,OPTIONS CONSULTANCY SERVICES LIMITED ,202871-101 ,"88,333.13",
DFID,DFID,12/07/2016,Project delivery costs – supplier services ,Asia  Caribbean and Overseas Territories ,OPTIONS CONSULTANCY SERVICES LIMITED ,202871-101 ,"72,550.04",
DFID,DFID,15/07/2016,Project delivery costs – supplier services ,Asia  Caribbean and Overseas Territories ,OPTIONS CONSULTANCY SERVICES LIMITED ,203413-103 ,"26,689.55",
DFID,DFID,15/07/2016,Project delivery costs – supplier services ,Asia  Caribbean and Overseas Territories ,OPTIONS CONSULTANCY SERVICES LIMITED ,203413-103 ,"36,365.76",
DFID,DFID,15/07/2016,Project delivery costs – supplier services ,Asia  Caribbean and Overseas Territories ,OPTIONS CONSULTANCY SERVICES LIMITED ,203413-103 ,"230,826.00",
DFID,DFID,15/07/2016,Project delivery costs – supplier services ,Asia  Caribbean and Overseas Territories ,OPTIONS CONSULTANCY SERVICES LIMITED ,203413-103 ,"23,996.48",
DFID,DFID,19/07/2016,Project delivery costs – supplier services ,West and Southern Africa ,OPTIONS CONSULTANCY SERVICES LIMITED ,202721-104 ,"27,577.00",
DFID,DFID,27/07/2016,Project delivery costs – supplier services ,West and Southern Africa ,OPTIONS CONSULTANCY SERVICES LIMITED ,202721-104 ,"61,961.00",
DFID,DFID,27/07/2016,Project delivery costs – supplier services ,West and Southern Africa ,OPTIONS CONSULTANCY SERVICES LIMITED ,202721-104 ,"61,961.00",
DFID,DFID,27/07/2016,Project delivery costs – supplier services ,West and Southern Africa ,OPTIONS CONSULTANCY SERVICES LIMITED ,202721-104 ,"61,961.76",
DFID,DFID,20/07/2016,Project delivery costs – supplier services ,West and Southern Africa ,OPTIONS CONSULTANCY SERVICES LIMITED ,205182-101 ,"61,476.34",
DFID,DFID,12/07/2016,Oil - Other Utilities ,Group Operations ,Government Procurement Service ,203717-101 ,"12,005.45",
DFID,DFID,11/07/2016,Oil - Other Utilities ,Group Operations ,Government Procurement Service ,203717-101 ,"11,559.14",
DFID,DFID,06/07/2016,Project delivery costs – supplier services ,Policy Division ,CENTRE FOR GLOBAL EDUCATION live ,201469-104 ,"25,410.39",
DFID,DFID,06/07/2016,Aid Programme - Accountable Grant Payments ,Policy Division ,Supplier Name withheld ,203559-105 ,"178,379.54",
DFID,DFID,20/07/2016,Aid Programme - Partnership Programme Arrangements ,Policy Division ,Supplier Name withheld ,202758-101 ,"2,792,759.00",
DFID,DFID,21/07/2016,Project delivery costs – supplier services ,Policy Division ,PRICEWATERHOUSECOOPERS ,202372-102 ,"100,695.40",
DFID,DFID,27/07/2016,Project delivery costs – supplier services ,Policy Division ,PRICEWATERHOUSECOOPERS ,114370-104 ,"413,966.29",
DFID,DFID,27/07/2016,Project delivery costs – supplier services ,Policy Division ,PRICEWATERHOUSECOOPERS ,114370-104 ,"87,707.32",
DFID,DFID,27/07/2016,Project delivery costs – supplier services ,Policy Division ,PRICEWATERHOUSECOOPERS ,114370-105 ,"37,628.49",
DFID,DFID,27/07/2016,Project delivery costs – supplier services ,Policy Division ,PRICEWATERHOUSECOOPERS ,114370-105 ,"3,841.24",
DFID,DFID,29/07/2016,Project delivery costs – supplier services ,West and Southern Africa ,PRICEWATERHOUSECOOPERS ,203824-104 ,"60,000.00",
DFID,DFID,19/07/2016,Project delivery costs – supplier services ,Asia  Caribbean and Overseas Territories ,PRICEWATERHOUSECOOPERS ,204792-101 ,"131,639.00",
DFID,DFID,27/07/2016,Project delivery costs – supplier services ,Research and Evidence Division ,PRICEWATERHOUSECOOPERS ,200822-103 ,"87,707.32",
DFID,DFID,27/07/2016,Project delivery costs – supplier services ,Research and Evidence Division ,PRICEWATERHOUSECOOPERS ,200822-103 ,"37,628.49",
DFID,DFID,27/07/2016,Project delivery costs – supplier services ,Research and Evidence Division ,PRICEWATERHOUSECOOPERS ,200822-103 ,"3,841.24",
DFID,DFID,27/07/2016,Project delivery costs – supplier services ,Research and Evidence Division ,PRICEWATERHOUSECOOPERS ,200822-103 ,"413,966.29",
DFID,DFID,27/07/2016,Project delivery costs – supplier services ,Research and Evidence Division ,PRICEWATERHOUSECOOPERS ,200822-103 ,"6,976.72",
DFID,DFID,27/07/2016,Project delivery costs – supplier services ,Research and Evidence Division ,PRICEWATERHOUSECOOPERS ,200822-103 ,"25,102.52",
DFID,DFID,01/07/2016,Project delivery costs – supplier services ,Economic Development Division ,PRICEWATERHOUSECOOPERS ,202648-102 ,"30,784.80",
DFID,DFID,05/07/2016,Project delivery costs – supplier services ,Economic Development Division ,PRICEWATERHOUSECOOPERS ,202648-102 ,"83,495.69",
DFID,DFID,26/07/2016,Project delivery costs – supplier services ,Economic Development Division ,PRICEWATERHOUSECOOPERS ,202648-102 ,"54,892.12",
DFID,DFID,25/07/2016,Project delivery costs – supplier services ,Economic Development Division ,PRICEWATERHOUSECOOPERS ,202648-102 ,"64,780.80",
DFID,DFID,22/07/2016,Project delivery costs – supplier services ,Economic Development Division ,PRICEWATERHOUSECOOPERS ,204250-101 ,"319,375.12",
DFID,DFID,20/07/2016,Project delivery costs – supplier services ,Economic Development Division ,PRICEWATERHOUSECOOPERS ,204250-101 ,"14,990.10",
DFID,DFID,13/07/2016,Project delivery costs – supplier services ,Economic Development Division ,PRICEWATERHOUSECOOPERS ,204250-101 ,"319,841.47",
DFID,DFID,29/07/2016,Project delivery costs – supplier services ,Economic Development Division ,PRICEWATERHOUSECOOPERS ,203732-101 ,"65,249.00",
DFID,DFID,22/07/2016,Project delivery costs – supplier services ,Policy Division ,PRICEWATERHOUSECOOPERS ,202372-102 ,"17,332.00",
DFID,DFID,11/07/2016,Project delivery costs – supplier services ,Economic Development Division ,PRICEWATERHOUSECOOPERS ,202939-103 ,"67,221.50",
DFID,DFID,29/07/2016,Project delivery costs – supplier services ,Asia  Caribbean and Overseas Territories ,PRICEWATERHOUSECOOPERS ,203964-101 ,"118,338.93",
DFID,DFID,25/07/2016,Project delivery costs – supplier services ,West and Southern Africa ,PRICEWATERHOUSECOOPERS ,203161-104 ,"291,132.00",
DFID,DFID,15/07/2016,Project delivery costs – supplier services ,Asia  Caribbean and Overseas Territories ,PRICEWATERHOUSECOOPERS ,203281-101 ,"209,470.77",
DFID,DFID,29/07/2016,Project delivery costs – supplier services ,Economic Development Division ,PRICEWATERHOUSECOOPERS ,114178-104 ,"297,071.46",
DFID,DFID,19/07/2016,Project delivery costs – supplier services ,Asia  Caribbean and Overseas Territories ,PRICEWATERHOUSECOOPERS ,204468-111 ,"3,133.33",
DFID,DFID,19/07/2016,Project delivery costs – supplier services ,Asia  Caribbean and Overseas Territories ,PRICEWATERHOUSECOOPERS ,204468-111 ,"10,733.22",
DFID,DFID,01/07/2016,Storage & Distribution costs ,Asia  Caribbean and Overseas Territories ,PICKFORDS LTD ,101621-101 ,"2,236.12",
DFID,DFID,01/07/2016,Storage & Distribution costs ,Asia  Caribbean and Overseas Territories ,PICKFORDS LTD ,101621-101 ,"10,936.09",
DFID,DFID,28/07/2016,Storage & Distribution costs ,Asia  Caribbean and Overseas Territories ,PICKFORDS LTD ,101621-101 ,617.69,
DFID,DFID,28/07/2016,Storage & Distribution costs ,Asia  Caribbean and Overseas Territories ,PICKFORDS LTD ,101621-101 ,"1,617.62",
DFID,DFID,06/07/2016,Storage & Distribution costs ,West and Southern Africa ,PICKFORDS LTD ,101620-101 ,584.00,
DFID,DFID,27/07/2016,Storage & Distribution costs ,West and Southern Africa ,PICKFORDS LTD ,101610-101 ,604.86,
DFID,DFID,15/07/2016,Storage & Distribution costs ,Research and Evidence Division ,PICKFORDS LTD ,203874-101 ,"3,190.25",
DFID,DFID,01/07/2016,Storage & Distribution costs ,Asia  Caribbean and Overseas Territories ,PICKFORDS LTD ,101624-101 ,700.80,
DFID,DFID,01/07/2016,Storage & Distribution costs ,Asia  Caribbean and Overseas Territories ,PICKFORDS LTD ,101624-101 ,"3,916.00",
DFID,DFID,27/07/2016,Storage & Distribution costs ,Middle East and North Africa Division ,PICKFORDS LTD ,204981-101 ,"1,182.43",
DFID,DFID,04/07/2016,Storage & Distribution costs ,Research and Evidence Division ,PICKFORDS LTD ,203874-101 ,"1,001.15",
DFID,DFID,08/07/2016,Storage & Distribution costs ,East and Central Africa ,PICKFORDS LTD ,101634-101 ,"1,042.86",
DFID,DFID,04/07/2016,Storage & Distribution costs ,East and Central Africa ,PICKFORDS LTD ,101634-101 ,551.11,
DFID,DFID,26/07/2016,Storage & Distribution costs ,Middle East and North Africa Division ,PICKFORDS LTD ,204981-101 ,"2,691.84",
DFID,DFID,01/07/2016,Storage & Distribution costs ,West and Southern Africa ,PICKFORDS LTD ,101620-101 ,820.12,
DFID,DFID,26/07/2016,Aid Programme - Accountable Grant Payments ,East and Central Africa ,POPULATION  SERVICES INTERNATIONAL ,204903-102 ,"253,667.00",
DFID,DFID,29/07/2016,Project delivery costs – supplier services ,West and Southern Africa ,POPULATION  SERVICES INTERNATIONAL ,202640-109 ,"1,711,286.00",
DFID,DFID,15/07/2016,Project delivery costs – supplier services ,West and Southern Africa ,POPULATION  SERVICES INTERNATIONAL ,202640-109 ,"1,140,857.00",
DFID,DFID,07/07/2016,Aid Programme - Accountable Grant Payments ,East and Central Africa ,POPULATION  SERVICES INTERNATIONAL ,113303-118 ,"412,820.56",
DFID,DFID,07/07/2016,Aid Programme - Partnership Programme Arrangements ,Policy Division ,PRACTICAL ACTION LTD ,202646-101 ,"722,765.33",
DFID,DFID,11/07/2016,Aid Programme - Partnership Programme Arrangements ,Policy Division ,PROGRESSIO ,202503-101 ,"506,253.75",
DFID,DFID,13/07/2016,Aid Programme - Accountable Grant Payments ,East and Central Africa ,PRACTICAL ACTION (UK) ,201575-106 ,"221,142.68",
DFID,DFID,22/07/2016,Project delivery costs – supplier services ,Policy Division ,THE QUEEN ELIZABETH II CONF. CENTRE ,202372-105 ,"6,930.50",
DFID,DFID,13/07/2016,Project delivery costs – supplier services ,Research and Evidence Division ,RAND EUROPE ,205043-103 ,"2,460.44",
DFID,DFID,28/07/2016,Aid Programme - Accountable Grant Payments ,Policy Division ,SCIAF ,203559-132 ,"115,119.00",
DFID,DFID,05/07/2016,Project delivery costs – supplier services ,East and Central Africa ,THE SAVE THE CHILDREN FUND ,202891-102 ,"1,563,028.65",
DFID,DFID,22/07/2016,Project delivery costs – supplier services ,West and Southern Africa ,THE SAVE THE CHILDREN FUND ,202623-117 ,"406,580.00",
DFID,DFID,06/07/2016,Project delivery costs – supplier services ,West and Southern Africa ,THE SAVE THE CHILDREN FUND ,202623-117 ,"100,000.00",
DFID,DFID,06/07/2016,Project delivery costs – supplier services ,West and Southern Africa ,THE SAVE THE CHILDREN FUND ,202623-117 ,"50,000.00",
DFID,DFID,06/07/2016,Project delivery costs – supplier services ,West and Southern Africa ,THE SAVE THE CHILDREN FUND ,202623-117 ,"200,000.00",
DFID,DFID,28/07/2016,Project delivery costs – supplier services ,East and Central Africa ,THE SAVE THE CHILDREN FUND ,202891-102 ,"163,126.90",
DFID,DFID,21/07/2016,Print Services ,Middle East and North Africa Division ,THE STATIONERY OFFICE LIMITED ,204978-101 ,"1,073.00",
DFID,DFID,25/07/2016,Aid Programme - Partnership Programme Arrangements ,Policy Division ,SAVE THE CHILDREN ,202662-101 ,"2,352,165.00",
DFID,DFID,06/07/2016,Aid Programme - Humanitarian Material Relief Assistance and Services ,Conflict  Humanitarian  Security & Stabilisation Division ,SAVE THE CHILDREN ,204897-101 ,"136,743.00",
DFID,DFID,07/07/2016,Aid Programme - Humanitarian Material Relief Assistance and Services ,Conflict  Humanitarian  Security & Stabilisation Division ,SAVE THE CHILDREN ,203044-101 ,"1,945,180.00",
DFID,DFID,04/07/2016,Aid Programme - Partnership Programme Arrangements ,Policy Division ,SAFERWORLD ,202709-101 ,"434,790.00",
DFID,DFID,14/07/2016,Aid Programme - Accountable Grant Payments ,Asia  Caribbean and Overseas Territories ,SAFERWORLD ,203174-101 ,"48,522.00",
DFID,DFID,28/07/2016,Aid Programme - Accountable Grant Payments ,Policy Division ,SENSE INTERNATIONAL ,203559-144 ,"14,876.00",
DFID,DFID,27/07/2016,Property rates ,Group Operations ,SOUTH LANARKSHIRE COUNCIL ,100106-101 ,"243,270.00",Property Rates for DFID HQ (East Kilbride) for the 6 month  period  April - September 2016 
DFID,DFID,06/07/2016,Project delivery costs – supplier services ,Policy Division ,Social Development Direct Ltd ,203245-106 ,"3,676.80",
DFID,DFID,29/07/2016,Project delivery costs – supplier services ,West and Southern Africa ,Social Development Direct Ltd ,203823-106 ,"127,448.59",
DFID,DFID,12/07/2016,Project delivery costs – supplier services ,West and Southern Africa ,Social Development Direct Ltd ,203823-106 ,"40,000.00",
DFID,DFID,12/07/2016,Project delivery costs – supplier services ,West and Southern Africa ,Social Development Direct Ltd ,203823-106 ,"25,000.00",
DFID,DFID,12/07/2016,Project delivery costs – supplier services ,West and Southern Africa ,Social Development Direct Ltd ,203823-106 ,"40,000.00",
DFID,DFID,01/07/2016,Aid Programme - Accountable Grant Payments ,Research and Evidence Division ,SCIDEV.NET ,114034-105 ,"60,000.00",
DFID,DFID,15/07/2016,Aid Programme - Accountable Grant Payments ,Research and Evidence Division ,SCIDEV.NET ,114034-105 ,"65,000.00",
DFID,DFID,29/07/2016,Aid Programme - Accountable Grant Payments ,Research and Evidence Division ,SCIDEV.NET ,114034-105 ,"50,000.00",
DFID,DFID,04/07/2016,Aid Programme - Partnership Programme Arrangements ,Policy Division ,SIGHT SAVERS INTERNATIONAL ,202546-101 ,"934,669.50",
DFID,DFID,22/07/2016,Aid Programme - Partnership Programme Arrangements ,Policy Division ,RESTLESS DEVELOPMENT ,202545-101 ,"688,859.75",
DFID,DFID,25/07/2016,Project delivery costs – supplier services ,Group Operations ,SODEXHO PASS LTD ,204999-104 ,"1,472.64",
DFID,DFID,25/07/2016,Aid Programme - Accountable Grant Payments ,West and Southern Africa ,Supplier Name withheld ,201863-101 ,"3,728,949.00",
DFID,DFID,21/07/2016,Storage & Distribution costs ,Business Solutions Division Level ,TNT Express (UK) Ltd ,200001-101 ,"4,527.51",
DFID,DFID,13/07/2016,Storage & Distribution costs ,Business Solutions Division Level ,TNT Express (UK) Ltd ,200001-101 ,"4,446.94",
DFID,DFID,26/07/2016,Aid Programme - Accountable Grant Payments ,Policy Division ,TRAIDCRAFT EXCHANGE ,203559-135 ,"25,055.00",
DFID,DFID,25/07/2016,Legal costs ,Finance and Corporate Performance Division ,GOVERNMENT LEGAL DEPARTMENT ,100201-101 ,"4,527.70",
DFID,DFID,25/07/2016,Legal costs ,Finance and Corporate Performance Division ,GOVERNMENT LEGAL DEPARTMENT ,100201-101 ,"1,311.30",
DFID,DFID,08/07/2016,Legal costs ,Finance and Corporate Performance Division ,GOVERNMENT LEGAL DEPARTMENT ,100201-101 ,"1,417.30",
DFID,DFID,11/07/2016,Legal costs ,Finance and Corporate Performance Division ,GOVERNMENT LEGAL DEPARTMENT ,100201-101 ,"1,166.00",
DFID,DFID,11/07/2016,Legal costs ,Middle East and North Africa Division ,GOVERNMENT LEGAL DEPARTMENT ,100296-101 ,"1,503.60",
DFID,DFID,29/07/2016,Legal costs ,East and Central Africa ,GOVERNMENT LEGAL DEPARTMENT ,202594-101 ,"1,162.32",
DFID,DFID,25/07/2016,Legal costs ,Finance and Corporate Performance Division ,GOVERNMENT LEGAL DEPARTMENT ,100201-101 ,"1,174.30",
DFID,DFID,11/07/2016,Legal costs ,Finance and Corporate Performance Division ,GOVERNMENT LEGAL DEPARTMENT ,100201-101 ,"1,376.20",
DFID,DFID,15/07/2016,Aid Programme - Voluntary contributions ,East and Central Africa ,UNICEF ,203766-103 ,"2,280,000.00",
DFID,DFID,15/07/2016,Aid Programme - Voluntary contributions ,East and Central Africa ,UNICEF ,203766-105 ,"570,000.00",
DFID,DFID,04/07/2016,Aid Programme - Accountable Grant Payments ,Policy Division ,Supplier Name withheld ,203559-145 ,"162,803.07",
DFID,DFID,29/07/2016,Project delivery costs – supplier services ,Policy Division ,TROPICAL HEALTH AND EDUCATION TRUST ,202208-101 ,"106,806.41",
DFID,DFID,06/07/2016,Project delivery costs – supplier services ,Policy Division ,TROPICAL HEALTH AND EDUCATION TRUST ,202208-101 ,"13,403.00",
DFID,DFID,19/07/2016,Water charges ,Group Operations ,THAMES WATER UTILITIES LTD ,203717-101 ,773.18,
DFID,DFID,04/07/2016,Professional member subscriptions ,Research and Evidence Division ,THE ROYAL STATISTICAL SOCIETY ,202331-102 ,"1,899.02",
DFID,DFID,05/07/2016,Courier & Bag Services ,Group Operations ,Whistl UK ,203717-101 ,700.31,
DFID,DFID,29/07/2016,Aid Programme - Voluntary contributions ,Middle East and North Africa Division ,UNDP CONTRIBUTIONS ACCOUNT ,300045-101 ,"1,695,000.00",
DFID,DFID,14/07/2016,Aid Programme - Humanitarian Material Relief Assistance and Services ,Middle East and North Africa Division ,UNDP CONTRIBUTIONS ACCOUNT ,204968-103 ,"400,000.00",
DFID,DFID,21/07/2016,Aid Programme - Voluntary contributions ,East and Central Africa ,UNDP CONTRIBUTIONS ACCOUNT ,202821-101 ,"1,123,382.00",
DFID,DFID,25/07/2016,Aid Programme - Voluntary contributions ,Middle East and North Africa Division ,Supplier Name withheld ,204546-101 ,"15,000,000.00",
DFID,DFID,18/07/2016,Aid Programme - Voluntary contributions ,Economic Development Division ,Supplier Name withheld ,114267-104 ,"175,000.00",
DFID,DFID,12/07/2016,Aid Programme - Trust Funds contributions ,Asia  Caribbean and Overseas Territories ,Supplier Name withheld ,203180-104 ,"500,000.00",
DFID,DFID,29/07/2016,Aid Programme - Voluntary contributions ,East and Central Africa ,Supplier Name withheld ,204364-108 ,"30,000.00",
DFID,DFID,01/07/2016,Aid Programme - Core contributions ,East and Central Africa ,Supplier Name withheld ,204339-108 ,"286,440.00",
DFID,DFID,27/07/2016,Aid Programme - Voluntary contributions ,West and Southern Africa ,Supplier Name withheld ,202751-101 ,"460,000.00",
DFID,DFID,19/07/2016,Aid Programme - Core contributions ,West and Southern Africa ,Supplier Name withheld ,202643-101 ,"3,754,756.30",
DFID,DFID,28/07/2016,Aid Programme - Voluntary contributions ,Conflict  Humanitarian  Security & Stabilisation Division ,Supplier Name withheld ,204646-101 ,"800,000.00",
DFID,DFID,04/07/2016,Project delivery costs – supplier services ,East and Central Africa ,Supplier Name withheld ,204142-103 ,"54,000.00",
DFID,DFID,26/07/2016,Aid Programme - Voluntary contributions ,East and Central Africa ,Supplier Name withheld ,203603-109 ,"750,429.00",
DFID,DFID,31/07/2016,Aid Programme - Voluntary contributions ,East and Central Africa ,Supplier Name withheld ,203407-101 ,"2,835,676.00",
DFID,DFID,28/07/2016,Aid Programme - Core contributions ,Conflict  Humanitarian  Security & Stabilisation Division ,Supplier Name withheld ,205038-105 ,"4,000,000.00",
DFID,DFID,05/07/2016,Aid Programme - Core contributions ,West and Southern Africa ,Supplier Name withheld ,202977-101 ,"12,000,000.00",
DFID,DFID,26/07/2016,Aid Programme - Pooled/Basket funding ,West and Southern Africa ,Supplier Name withheld ,204831-101 ,"3,864,488.00",
DFID,DFID,13/07/2016,Project delivery costs – supplier services ,Policy Division ,VOLUNTARY SERVICE OVERSEAS ,204894-101 ,"40,897.21",
DFID,DFID,27/07/2016,Project delivery costs – supplier services ,Policy Division ,VOLUNTARY SERVICE OVERSEAS ,204894-101 ,"4,378,841.37",
DFID,DFID,29/07/2016,Aid Programme - Accountable Grant Payments ,West and Southern Africa ,VOLUNTARY SERVICE OVERSEAS ,203428-106 ,"24,025.80",
DFID,DFID,07/07/2016,Aid Programme - Accountable Grant Payments ,Economic Development Division ,VOLUNTARY SERVICE OVERSEAS ,203800-102 ,"22,745.00",
DFID,DFID,12/07/2016,Research and development costs - supplier services ,Research and Evidence Division ,VALID EVALUATIONS LTD ,203706-109 ,"155,000.00",
DFID,DFID,06/07/2016,Research and development costs - supplier services ,Research and Evidence Division ,VALID EVALUATIONS LTD ,203706-101 ,"155,000.00",
DFID,DFID,15/07/2016,Telephone Usage & services ,Business Solutions Division Level ,VODAFONE CORPORATE ,200002-170 ,"23,336.92",
DFID,DFID,15/07/2016,Telephone Usage & services ,Business Solutions Division Level ,VODAFONE CORPORATE ,200002-170 ,"8,427.01",
DFID,DFID,15/07/2016,Aid Programme - Accountable Grant Payments ,Policy Division ,UNICEF UK ,203559-118 ,"239,655.00",
DFID,DFID,29/07/2016,Data Network - land lines ,Business Solutions Division Level ,VERIZON UK LIMITED ,200002-126 ,"7,536.77",
DFID,DFID,08/07/2016,Aid Programme - Strategic Grant Arrangement payments ,Policy Division ,VSO ,202414-102 ,"5,500,000.00",
DFID,DFID,07/07/2016,Aid Programme - Partnership Programme Arrangements ,Policy Division ,WORLD VISION UNITED KINGDOM ,202642-101 ,"984,441.25",
DFID,DFID,22/07/2016,Aid Programme - Partnership Programme Arrangements ,Policy Division ,WOMANKIND WORLDWIDE (JFS) ,202548-101 ,"140,095.75",
DFID,DFID,15/07/2016,Aid Programme - Partnership Programme Arrangements ,Policy Division ,WWF-UK ,202661-101 ,"772,589.00",
DFID,DFID,28/07/2016,Aid Programme - Accountable Grant Payments ,Regional Directorate ,WORLD VISION ,204838-115 ,"1,091,654.49",
DFID,DFID,11/07/2016,Aid Programme - Partnership Programme Arrangements ,Policy Division ,WATERAID ,202621-101 ,"1,050,410.00",
DFID,DFID,28/07/2016,Air fares ,West and Southern Africa ,Mukwa Travel and Tours ,101631-101 ,635.19,
DFID,DFID,14/07/2016,Air fares ,West and Southern Africa ,Mukwa Travel and Tours ,101637-102 ,"1,432.83",
DFID,DFID,27/07/2016,Project delivery costs � supplier services,Asia  Caribbean and Overseas Territories ,Jaya Travels & Tours Ltd ,203274-101 ,"5,192.04",
DFID,DFID,19/07/2016,Project delivery costs � supplier services,Asia  Caribbean and Overseas Territories ,Jaya Travels & Tours Ltd ,203274-101 ,"4,039.49",
DFID,DFID,29/07/2016,Air fares ,Asia  Caribbean and Overseas Territories ,Jaya Travels & Tours Ltd ,101621-101 ,550.51,
DFID,DFID,19/07/2016,Recruitment costs,Asia  Caribbean and Overseas Territories ,Thompson Nepal Pvt Ltd ,101621-101 ,922.49,
DFID,DFID,27/07/2016,Storage & Distribution costs ,West and Southern Africa ,Pacific Trading ,101610-101 ,"2,010.58",
DFID,DFID,05/07/2016,Aid Programme - Voluntary contributions ,Asia  Caribbean and Overseas Territories ,Pan American Health Organisation ,203272-104 ,"1,291,990.00",
DFID,DFID,05/07/2016,Aid Programme - Voluntary contributions ,Asia  Caribbean and Overseas Territories ,Pan American Health Organisation ,203272-105 ,"1,010,473.00",
DFID,DFID,21/07/2016,Aid Programme - Voluntary contributions ,Asia  Caribbean and Overseas Territories ,Pan American Health Organisation ,300206-101 ,"1,040,000.00",
DFID,DFID,07/07/2016,Hotels - Accommodation only ,East and Central Africa ,Sheraton Hotel ,101635-101 ,651.05,
DFID,DFID,07/07/2016,Training - Travel & Subsistence ,East and Central Africa ,Simbatravelcare Limited ,101635-101 ,822.19,
DFID,DFID,07/07/2016,Air fares ,East and Central Africa ,Simbatravelcare Limited ,101625-103 ,"1,553.95",
DFID,DFID,26/07/2016,Air fares ,East and Central Africa ,Mission Aviation Fellowship Kenya ,101616-101 ,565.22,
DFID,DFID,26/07/2016,Air fares ,East and Central Africa ,Mission Aviation Fellowship Kenya ,101616-101 ,549.20,
DFID,DFID,15/07/2016,Air fares ,East and Central Africa ,WFP Somalia ,101630-101 ,"3,929.93",
DFID,DFID,20/07/2016,Aid Programme - Accountable Grant Payments ,West and Southern Africa ,The Population Council ,202344-102 ,"59,629.00",
DFID,DFID,27/07/2016,Research and development costs - supplier services ,Research and Evidence Division ,The Population Council ,204329-103 ,"779,409.21",
DFID,DFID,20/07/2016,Hotels - Accommodation only ,West and Southern Africa ,Hotel Cardoso S A R L ,101620-101 ,545.64,
DFID,DFID,13/07/2016,Hotels - Accommodation only ,West and Southern Africa ,Hotel Cardoso S A R L ,101620-101 ,674.32,
DFID,DFID,13/07/2016,Hotels - Accommodation only ,West and Southern Africa ,Hotel Cardoso S A R L ,101620-101 ,"1,042.95",
DFID,DFID,21/07/2016,Hotels - Accommodation only ,West and Southern Africa ,Hotel Cardoso S A R L ,300047-102 ,"1,109.67",
DFID,DFID,15/07/2016,Training Providers/Facilitation Services ,West and Southern Africa ,Maria Dulce Tavares ,101620-101 ,"3,385.89",
DFID,DFID,22/07/2016,Training Providers/Facilitation Services ,West and Southern Africa ,Maria Dulce Tavares ,101620-101 ,"1,548.63",
DFID,DFID,22/07/2016,Training Providers/Facilitation Services ,West and Southern Africa ,Maria Dulce Tavares ,101620-101 ,"3,871.58",
DFID,DFID,21/07/2016,Repairs  Maint  Alter - Property & Constrct. Services ,West and Southern Africa ,Pekolyn Tech. Services ,101622-108 ,"2,466.50",
DFID,DFID,21/07/2016,Repairs  Maint  Alter - Property & Constrct. Services ,West and Southern Africa ,Pekolyn Tech. Services ,101622-108 ,"7,366.87",
DFID,DFID,05/07/2016,Oil - Other Utilities ,West and Southern Africa ,British  High Commission Abuja ,101622-108 ,"15,539.53",
DFID,DFID,05/07/2016,Oil - Other Utilities ,West and Southern Africa ,British  High Commission Abuja ,100152-117 ,"1,726.61",
DFID,DFID,19/07/2016,Vehicle Petrol & Oil ,West and Southern Africa ,British  High Commission Abuja ,101622-108 ,879.80,
DFID,DFID,19/07/2016,Oil - Other Utilities ,West and Southern Africa ,British  High Commission Abuja ,101622-108 ,"1,100.39",
DFID,DFID,19/07/2016,Repairs  Maint  Alter - Property & Constrct. Services ,West and Southern Africa ,Fracham Company ,101622-108 ,760.48,
DFID,DFID,05/07/2016,Hotels - Accommodation only ,West and Southern Africa ,Supplier Name withheld ,101622-108 ,"3,155.37",
DFID,DFID,12/07/2016,Hotels - Accommodation only ,West and Southern Africa ,Supplier Name withheld ,101622-108 ,815.32,
DFID,DFID,12/07/2016,Hotels - Accommodation only ,West and Southern Africa ,Supplier Name withheld ,101622-105 ,"1,273.99",
DFID,DFID,29/07/2016,Hotels - Accommodation only ,West and Southern Africa ,Supplier Name withheld ,101622-108 ,"2,928.49",
DFID,DFID,19/07/2016,Repairs  Maint  Alter - Property & Constrct. Services ,West and Southern Africa ,Sparklean Services Nig Ltd ,101622-108 ,507.46,
DFID,DFID,19/07/2016,Cleaning Costs ,West and Southern Africa ,Sparklean Services Nig Ltd ,100152-117 ,980.60,
DFID,DFID,19/07/2016,Cleaning Costs ,West and Southern Africa ,Sparklean Services Nig Ltd ,101622-108 ,"3,493.08",
DFID,DFID,04/07/2016,Project delivery costs – supplier services ,West and Southern Africa ,PKF Professional Services ,203851-113 ,"16,375.91",
DFID,DFID,04/07/2016,Project delivery costs – supplier services ,West and Southern Africa ,PKF Professional Services ,203851-113 ,"22,690.51",
DFID,DFID,21/07/2016,Medical/Health Services ,West and Southern Africa ,HYGEIA HMO Ltd ,100152-114 ,"1,858.51",
DFID,DFID,21/07/2016,Medical/Health Services ,West and Southern Africa ,HYGEIA HMO Ltd ,100152-117 ,"8,230.56",
DFID,DFID,21/07/2016,Medical/Health Services ,West and Southern Africa ,HYGEIA HMO Ltd ,101622-106 ,"16,461.12",
DFID,DFID,21/07/2016,Project delivery costs – supplier services ,Economic Development Division ,ERNST & YOUNG ,204886-104 ,"3,495.00",
DFID,DFID,28/07/2016,Aid Programme - Accountable Grant Payments ,Conflict  Humanitarian  Security & Stabilisation Division ,Supplier Name withheld ,203978-102 ,"5,620.93",
DFID,DFID,19/07/2016,Research and development costs - supplier services ,Research and Evidence Division ,Supplier Name withheld ,201009-106 ,"319,637.28",
DFID,DFID,12/07/2016,Aid Programme - Accountable Grant Payments ,East and Central Africa ,Supplier Name withheld ,204458-109 ,"42,367.96",
DFID,DFID,22/07/2016,Aid Programme - Accountable Grant Payments ,Economic Development Division ,Supplier Name withheld ,204254-101 ,"269,523.77",
DFID,DFID,01/07/2016,Aid Programme - Accountable Grant Payments ,Policy Division ,BUSINESS IN THE COMMUNITY ,205077-101 ,"9,195.43",
DFID,DFID,22/07/2016,Auditors Assurance Service ,East and Central Africa ,PRICEWATERHOUSECOOPERS (KENYA) ,204458-106 ,"12,497.50",
DFID,DFID,07/07/2016,Project delivery costs – supplier services ,International Relations Division ,ART OF LIVING ,205081-101 ,"1,045.00",
DFID,DFID,14/07/2016,Project delivery costs – supplier services ,International Relations Division ,ART OF LIVING ,205081-101 ,"1,705.00",
DFID,DFID,21/07/2016,Project delivery costs – supplier services ,International Relations Division ,ART OF LIVING ,205081-101 ,"5,058.00",
DFID,DFID,21/07/2016,Project delivery costs – supplier services ,International Relations Division ,ART OF LIVING ,205081-101 ,"5,608.00",
DFID,DFID,27/07/2016,Aid Programme - Core contributions ,Conflict  Humanitarian  Security & Stabilisation Division ,UN OCHA ,205038-103 ,"10,000,000.00",
DFID,DFID,26/07/2016,Aid Programme - Voluntary contributions ,East and Central Africa ,UN OCHA ,203462-113 ,"500,000.00",
DFID,DFID,08/07/2016,Computer Consumables ,Business Solutions Division Level ,SOFTWARE BOX LTD (SBL) ,200002-153 ,"7,506.48",
DFID,DFID,19/07/2016,Aid Programme - Voluntary contributions ,West and Southern Africa ,FAO ,203429-101 ,"1,900,000.00",
DFID,DFID,07/07/2016,Aid Programme - Trust Funds contributions ,East and Central Africa ,Supplier Name withheld ,202580-104 ,"327,200.00",
DFID,DFID,05/07/2016,Aid Programme - Voluntary contributions ,Asia  Caribbean and Overseas Territories ,Supplier Name withheld ,204196-102 ,"500,000.00",
DFID,DFID,28/07/2016,Aid Programme - Voluntary contributions ,East and Central Africa ,Supplier Name withheld ,203462-114 ,"500,000.00",
DFID,DFID,15/07/2016,Aid Programme - Voluntary contributions ,West and Southern Africa ,Supplier Name withheld ,202541-107 ,"112,465.00",
DFID,DFID,22/07/2016,Aid Programme - Voluntary contributions ,International Relations Division ,Supplier Name withheld ,203707-108 ,"190,000.00",
DFID,DFID,21/07/2016,Aid Programme - Voluntary contributions ,International Relations Division ,Supplier Name withheld ,204124-103 ,"300,000.00",
DFID,DFID,13/07/2016,Data Network - land lines ,Business Solutions Division Level ,KUBE NETWORKS LTD ,200002-130 ,"1,118.20",
DFID,DFID,05/07/2016,Aid Programme - Joint programme contribution ,Asia  Caribbean and Overseas Territories ,GTZ GmBH Eschborn ,203106-101 ,"1,350,000.00",
DFID,DFID,13/07/2016,DFID Purchased Relief Supplies ,West and Southern Africa ,IPA-International Procurement Agency (BV) ,202722-103 ,"314,510.30",
DFID,DFID,13/07/2016,DFID Purchased Relief Supplies ,West and Southern Africa ,IPA-International Procurement Agency (BV) ,202722-103 ,"489,098.38",
DFID,DFID,28/07/2016,DFID Purchased Relief Supplies ,West and Southern Africa ,IPA-International Procurement Agency (BV) ,202722-103 ,"363,267.34",
DFID,DFID,29/07/2016,DFID Purchased Relief Supplies ,West and Southern Africa ,IPA-International Procurement Agency (BV) ,202722-103 ,"163,060.84",
DFID,DFID,06/07/2016,DFID Purchased Relief Supplies ,East and Central Africa ,IPA-International Procurement Agency (BV) ,203109-111 ,696.53,
DFID,DFID,15/07/2016,DFID Purchased Relief Supplies ,East and Central Africa ,IPA-International Procurement Agency (BV) ,203109-111 ,"473,853.85",
DFID,DFID,21/07/2016,DFID Purchased Relief Supplies ,East and Central Africa ,IPA-International Procurement Agency (BV) ,204861-101 ,"1,944.65",
DFID,DFID,21/07/2016,DFID Purchased Relief Supplies ,East and Central Africa ,IPA-International Procurement Agency (BV) ,204861-101 ,"65,920.38",
DFID,DFID,11/07/2016,DFID Purchased Relief Supplies ,Policy Division ,IPA-International Procurement Agency (BV) ,203148-102 ,"2,356.46",
DFID,DFID,27/07/2016,Aid Programme - Humanitarian Material Relief Assistance and Services ,Regional Directorate ,IPA-International Procurement Agency (BV) ,204917-102 ,"4,314.02",
DFID,DFID,27/07/2016,Project delivery costs – supplier services ,Regional Directorate ,IPA-International Procurement Agency (BV) ,204917-106 ,"5,262.65",
DFID,DFID,27/07/2016,Project delivery costs – supplier services ,Regional Directorate ,IPA-International Procurement Agency (BV) ,204917-106 ,"98,515.36",
DFID,DFID,27/07/2016,Project delivery costs – supplier services ,Regional Directorate ,IPA-International Procurement Agency (BV) ,204917-106 ,"1,130,026.41",
DFID,DFID,27/07/2016,Project delivery costs – supplier services ,Regional Directorate ,IPA-International Procurement Agency (BV) ,204917-106 ,"131,284.53",
DFID,DFID,28/07/2016,Project delivery costs – supplier services ,Regional Directorate ,IPA-International Procurement Agency (BV) ,204917-106 ,"426,713.82",
DFID,DFID,26/07/2016,Project delivery costs – supplier services ,Regional Directorate ,IPA-International Procurement Agency (BV) ,204917-106 ,"363,217.11",
DFID,DFID,22/07/2016,Project delivery costs – supplier services ,Regional Directorate ,IPA-International Procurement Agency (BV) ,204917-106 ,"403,922.41",
DFID,DFID,22/07/2016,Project delivery costs – supplier services ,Regional Directorate ,IPA-International Procurement Agency (BV) ,204917-106 ,"573,048.72",
DFID,DFID,22/07/2016,Project delivery costs – supplier services ,Regional Directorate ,IPA-International Procurement Agency (BV) ,204917-106 ,"594,872.04",
DFID,DFID,22/07/2016,Project delivery costs – supplier services ,West and Southern Africa ,IPA-International Procurement Agency (BV) ,205182-104 ,"643,313.98",
DFID,DFID,25/07/2016,DFID Purchased Relief Supplies ,West and Southern Africa ,IPA-International Procurement Agency (BV) ,203714-103 ,"12,448.36",
DFID,DFID,26/07/2016,Project delivery costs – supplier services ,West and Southern Africa ,IPA-International Procurement Agency (BV) ,203714-103 ,622.42,
DFID,DFID,20/07/2016,Project delivery costs – supplier services ,Asia  Caribbean and Overseas Territories ,Sustainable Development Associates ,113287-102 ,"1,387.80",
DFID,DFID,28/07/2016,Aid Programme - Accountable Grant Payments ,East and Central Africa ,FINANCIAL SECTOR DEEPENING ,204258-104 ,"2,489,873.25",
DFID,DFID,28/07/2016,Aid Programme - Accountable Grant Payments ,East and Central Africa ,FINANCIAL SECTOR DEEPENING ,204258-105 ,"7,469,619.75",
DFID,DFID,25/07/2016,Project delivery costs – supplier services ,West and Southern Africa ,ABT ASSOCIATES INC ,104229-101 ,"331,036.81",
DFID,DFID,07/07/2016,Project delivery costs – supplier services ,West and Southern Africa ,ABT ASSOCIATES INC ,104229-101 ,"590,176.72",
DFID,DFID,05/07/2016,Fund monies to be managed and dispersed by the supplier ,Policy Division ,KPMG EAST AFRICA LTD ,201724-142 ,"4,198,460.00",
DFID,DFID,14/07/2016,Project delivery costs – supplier services ,Policy Division ,KPMG EAST AFRICA LTD ,201724-102 ,"65,726.40",
DFID,DFID,25/07/2016,Project delivery costs – supplier services ,Policy Division ,KPMG EAST AFRICA LTD ,201724-102 ,"58,068.00",
DFID,DFID,21/07/2016,Project delivery costs – supplier services ,Policy Division ,KPMG EAST AFRICA LTD ,201724-102 ,"45,681.00",
DFID,DFID,11/07/2016,Project delivery costs – supplier services ,Policy Division ,KPMG EAST AFRICA LTD ,202921-104 ,"17,262.00",
DFID,DFID,12/07/2016,Aid Programme - Accountable Grant Payments ,East and Central Africa ,LONDON SCHOOL OF ECONOMICS AND POLITICAL SCIENCE ,204803-103 ,"10,358.53",
DFID,DFID,25/07/2016,Project delivery costs – supplier services ,Economic Development Division ,LONDON SCHOOL OF ECONOMICS AND POLITICAL SCIENCE ,203286-101 ,"1,113,509.48",
DFID,DFID,25/07/2016,Project delivery costs – supplier services ,Economic Development Division ,LONDON SCHOOL OF ECONOMICS AND POLITICAL SCIENCE ,203286-101 ,"1,159,095.11",
DFID,DFID,25/07/2016,Project delivery costs – supplier services ,Economic Development Division ,LONDON SCHOOL OF ECONOMICS AND POLITICAL SCIENCE ,203286-101 ,"440,966.24",
DFID,DFID,25/07/2016,Project delivery costs – supplier services ,Research and Evidence Division ,LONDON SCHOOL OF ECONOMICS AND POLITICAL SCIENCE ,203286-103 ,"144,966.01",
DFID,DFID,25/07/2016,Project delivery costs – supplier services ,Research and Evidence Division ,LONDON SCHOOL OF ECONOMICS AND POLITICAL SCIENCE ,203286-103 ,"38,803.17",
DFID,DFID,11/07/2016,Project delivery costs – supplier services ,East and Central Africa ,UPPER QUARTILE ,203582-103 ,"26,500.00",
DFID,DFID,26/07/2016,Aid Programme - Joint programme contribution ,Research and Evidence Division ,UNITED NATIONS FOUNDATION ,203036-105 ,"359,084.57",
DFID,DFID,11/07/2016,Aid Programme - Accountable Grant Payments ,Economic Development Division ,UNITED NATIONS FOUNDATION ,203448-101 ,"125,000.00",
DFID,DFID,25/07/2016,Voluntary contributions ,International Relations Division ,Supplier Name withheld ,203855-102 ,"24,250,000.00",
DFID,DFID,26/07/2016,Aid Programme - Voluntary contributions ,West and Southern Africa ,Supplier Name withheld ,202342-103 ,"1,000,000.00",
DFID,DFID,22/07/2016,Project delivery costs – supplier services ,West and Southern Africa ,Cambridge  Education Limited ,104200-101 ,"1,488,570.66",
DFID,DFID,29/07/2016,Aid Programme - Core contributions ,Conflict  Humanitarian  Security & Stabilisation Division ,Supplier Name withheld ,205038-104 ,"17,500,000.00",
DFID,DFID,01/07/2016,Project delivery costs – supplier services ,Economic Development Division ,KPMG LLP ,204255-101 ,"83,269.97",
DFID,DFID,22/07/2016,Project delivery costs – supplier services ,Economic Development Division ,KPMG LLP ,202647-101 ,"9,360.00",
DFID,DFID,22/07/2016,Project delivery costs – supplier services ,Economic Development Division ,KPMG LLP ,202647-101 ,"43,444.80",
DFID,DFID,28/07/2016,Project delivery costs – supplier services ,East and Central Africa ,KPMG LLP ,204439-108 ,"628,773.00",
DFID,DFID,14/07/2016,Project delivery costs – supplier services ,Policy Division ,KPMG LLP ,203559-102 ,"5,000.00",
DFID,DFID,29/07/2016,Aid Programme - Voluntary contributions ,Middle East and North Africa Division ,Supplier Name withheld ,204517-101 ,"1,200,000.00",
DFID,DFID,05/07/2016,Aid Programme - Core contributions ,Research and Evidence Division ,Supplier Name withheld ,203083-102 ,"1,200,000.00",
DFID,DFID,26/07/2016,Aid Programme - Core contributions ,Research and Evidence Division ,Supplier Name withheld ,202769-104 ,"500,000.00",
DFID,DFID,14/07/2016,Subscriptions ,Communications Division ,THE PRESS ASSOCIATION ,100197-101 ,607.92,
DFID,DFID,07/07/2016,Subscriptions ,Communications Division ,THE PRESS ASSOCIATION ,100197-101 ,607.92,
DFID,DFID,28/07/2016,Aid Programme - Accountable Grant Payments ,Asia  Caribbean and Overseas Territories ,SEARCH FOR COMMON GROUND ,203274-102 ,"275,029.00",
DFID,DFID,19/07/2016,DFID Purchased Relief Supplies ,East and Central Africa ,Air Charter Service Plc ,205256-108 ,"148,000.00",
DFID,DFID,28/07/2016,Project delivery costs – supplier services ,Asia  Caribbean and Overseas Territories ,BMB MOTT  MACDONALD ,107480-101 ,"100,277.99",
DFID,DFID,28/07/2016,Project delivery costs – supplier services ,Asia  Caribbean and Overseas Territories ,BMB MOTT  MACDONALD ,107480-101 ,"74,399.97",
DFID,DFID,25/07/2016,Project delivery costs – supplier services ,Asia  Caribbean and Overseas Territories ,IPE Global Pvt. Ltd. ,114040-101 ,"122,619.90",
DFID,DFID,25/07/2016,Project delivery costs – supplier services ,Asia  Caribbean and Overseas Territories ,IPE Global Pvt. Ltd. ,114040-101 ,"134,119.90",
DFID,DFID,27/07/2016,Project delivery costs – supplier services ,Asia  Caribbean and Overseas Territories ,IPE Global Pvt. Ltd. ,114040-101 ,"113,420.27",
DFID,DFID,12/07/2016,Project delivery costs – supplier services ,Asia  Caribbean and Overseas Territories ,IPE Global Pvt. Ltd. ,114040-101 ,"73,156.10",
DFID,DFID,12/07/2016,Project delivery costs – supplier services ,Asia  Caribbean and Overseas Territories ,IPE Global Pvt. Ltd. ,114040-101 ,"36,578.06",
DFID,DFID,12/07/2016,Project delivery costs – supplier services ,Asia  Caribbean and Overseas Territories ,IPE Global Pvt. Ltd. ,114040-101 ,"36,578.06",
DFID,DFID,12/07/2016,Project delivery costs – supplier services ,Asia  Caribbean and Overseas Territories ,IPE Global Pvt. Ltd. ,114040-101 ,"133,083.76",
DFID,DFID,22/07/2016,Project delivery costs – supplier services ,Asia  Caribbean and Overseas Territories ,IPE Global Pvt. Ltd. ,114040-101 ,"113,420.27",
DFID,DFID,05/07/2016,Project delivery costs – supplier services ,Asia  Caribbean and Overseas Territories ,IPE Global Pvt. Ltd. ,203217-101 ,"3,089.90",
DFID,DFID,05/07/2016,Project delivery costs – supplier services ,Asia  Caribbean and Overseas Territories ,IPE Global Pvt. Ltd. ,203217-101 ,"59,497.86",
DFID,DFID,07/07/2016,Project delivery costs – supplier services ,Asia  Caribbean and Overseas Territories ,IPE Global Pvt. Ltd. ,203217-101 ,"88,793.80",
DFID,DFID,07/07/2016,Project delivery costs – supplier services ,Asia  Caribbean and Overseas Territories ,IPE Global Pvt. Ltd. ,203217-101 ,"88,793.80",
DFID,DFID,07/07/2016,Project delivery costs – supplier services ,Asia  Caribbean and Overseas Territories ,IPE Global Pvt. Ltd. ,203217-101 ,"55,063.09",
DFID,DFID,21/07/2016,Project delivery costs – supplier services ,West and Southern Africa ,IPE Global Pvt. Ltd. ,203164-102 ,"94,500.00",
DFID,DFID,26/07/2016,Project delivery costs – supplier services ,Asia  Caribbean and Overseas Territories ,IPE Global Pvt. Ltd. ,202765-101 ,"43,493.68",
DFID,DFID,26/07/2016,Project delivery costs – supplier services ,Asia  Caribbean and Overseas Territories ,IPE Global Pvt. Ltd. ,202765-101 ,"63,317.04",
DFID,DFID,25/07/2016,Project delivery costs – supplier services ,Asia  Caribbean and Overseas Territories ,IPE Global Pvt. Ltd. ,202765-101 ,"234,137.75",
DFID,DFID,26/07/2016,Project delivery costs – supplier services ,Asia  Caribbean and Overseas Territories ,IPE Global Pvt. Ltd. ,202765-102 ,"110,000.00",
DFID,DFID,21/07/2016,Aid Programme - Partnership Programme Arrangements ,Policy Division ,Transparency International Secr ,202505-101 ,"843,586.00",
DFID,DFID,12/07/2016,Subscriptions ,Research and Evidence Division ,DODS ,202348-105 ,"3,291.95",
DFID,DFID,29/07/2016,Contract & Agency Staff ,Group Operations ,Michael Page Int. Recruitment Ltd ,100270-106 ,575.28,
DFID,DFID,28/07/2016,Contract & Agency Staff ,Group Operations ,Michael Page Int. Recruitment Ltd ,100270-106 ,"5,465.18",
DFID,DFID,27/07/2016,Aid Programme - Poverty Reduction Budget Support ,West and Southern Africa ,Ministry of Education (Zambia) Financial Support for the 2013 Education Sector Budget Support ,203001-101 ,"335,000.00",
DFID,DFID,27/07/2016,Aid Programme - Poverty Reduction Budget Support ,West and Southern Africa ,Ministry of Education (Zambia) Financial Support for the 2013 Education Sector Budget Support ,203001-101 ,"1,330,000.00",
DFID,DFID,11/07/2016,Aid Programme - Humanitarian Material Relief Assistance and Services ,East and Central Africa ,Supplier Name withheld ,300270-102 ,"1,000,000.00",
DFID,DFID,29/07/2016,Aid Programme - Core contributions ,Conflict  Humanitarian  Security & Stabilisation Division ,Supplier Name withheld ,205039-101 ,"31,500,000.00",
DFID,DFID,11/07/2016,Aid Programme - Voluntary contributions ,West and Southern Africa ,Supplier Name withheld ,205161-102 ,"3,000,000.00",
DFID,DFID,06/07/2016,Aid Programme - Accountable Grant Payments ,East and Central Africa ,EISA ,203383-117 ,"6,759.00",
DFID,DFID,07/07/2016,Aid Programme - Partnership Programme Arrangements ,Policy Division ,Fairtrade Labelling Organizations International e.V. ,201718-101 ,"750,000.00",
DFID,DFID,05/07/2016,Aid Programme - Accountable Grant Payments ,West and Southern Africa ,Supplier Name withheld ,205161-104 ,"1,006,417.00",
DFID,DFID,29/07/2016,Project delivery costs – supplier services ,Middle East and North Africa Division ,Crown Agents Bank ,201828-101 ,"43,000.00",
DFID,DFID,21/07/2016,Project delivery costs – supplier services ,Middle East and North Africa Division ,Crown Agents Bank ,201828-101 ,"43,000.00",
DFID,DFID,08/07/2016,Project delivery costs – supplier services ,Middle East and North Africa Division ,Crown Agents Bank ,204061-101 ,"23,070.00",
DFID,DFID,05/07/2016,Project delivery costs – supplier services ,Asia  Caribbean and Overseas Territories ,Crown Agents Bank ,203274-101 ,"6,985.00",
DFID,DFID,13/07/2016,Project delivery costs – supplier services ,West and Southern Africa ,Crown Agents Bank ,202691-102 ,"21,918.00",
DFID,DFID,27/07/2016,Project delivery costs – supplier services ,Asia  Caribbean and Overseas Territories ,Crown Agents Bank ,201645-105 ,"339,067.47",
DFID,DFID,14/07/2016,Project delivery costs – supplier services ,West and Southern Africa ,Crown Agents Bank ,200469-110 ,"346,984.15",
DFID,DFID,27/07/2016,Project delivery costs – supplier services ,West and Southern Africa ,Crown Agents Bank ,200469-110 ,"273,003.06",
DFID,DFID,19/07/2016,Aid Programme - Accountable Grant Payments ,East and Central Africa ,Crown Agents Bank ,202619-101 ,"264,741.00",
DFID,DFID,05/07/2016,Aid Programme - Accountable Grant Payments ,Research and Evidence Division ,WELLCOME TRUST ,204133-102 ,"21,225.37",
DFID,DFID,05/07/2016,Aid Programme - Accountable Grant Payments ,Research and Evidence Division ,WELLCOME TRUST ,204133-102 ,"9,326.51",
DFID,DFID,08/07/2016,Aid Programme - Strategic Grant Arrangement payments ,Research and Evidence Division ,WELLCOME TRUST ,204571-110 ,"231,114.00",
DFID,DFID,29/07/2016,Aid Programme - Humanitarian Material Relief Assistance and Services ,Conflict  Humanitarian  Security & Stabilisation Division ,WORLD HEALTH ORGANISATION (WHO) ,205196-103 ,"4,000,000.00",
DFID,DFID,15/07/2016,Project delivery costs – supplier services ,West and Southern Africa ,ECORYS UK Ltd. ,204899-101 ,"109,550.73",
DFID,DFID,29/07/2016,Aid Programme - Accountable Grant Payments ,Policy Division ,Center for Global Development ,202820-101 ,"315,280.00",
DFID,DFID,07/07/2016,Hotels - Accommodation only ,West and Southern Africa ,Supplier Name withheld ,101622-108 ,"1,018.24",
DFID,DFID,07/07/2016,Aid Programme - Joint programme contribution ,Research and Evidence Division ,Engineering & Physical Sciences Research Council ,203781-106 ,"444,462.69",
DFID,DFID,11/07/2016,Aid Programme - Accountable Grant Payments ,West and Southern Africa ,Southern Africa Trust ,203622-120 ,"639,555.17",
DFID,DFID,04/07/2016,Project delivery costs – supplier services ,West and Southern Africa ,BMB  MOTT  MACDONALD ,204242-102 ,"77,095.00",
DFID,DFID,05/07/2016,Project delivery costs – supplier services ,East and Central Africa ,BMB  MOTT  MACDONALD ,202511-102 ,"1,122,516.72",
DFID,DFID,04/07/2016,Project delivery costs – supplier services ,East and Central Africa ,BMB  MOTT  MACDONALD ,202511-102 ,"139,341.98",
DFID,DFID,29/07/2016,Fund monies to be managed and dispersed by the supplier ,East and Central Africa ,BMB  MOTT  MACDONALD ,203383-101 ,"656,442.00",
DFID,DFID,19/07/2016,Aid Programme - Accountable Grant Payments ,East and Central Africa ,HARVARD UNIVERSITY (OFFICE FOR SPONSERED PROGRAMS) ,202574-106 ,"77,762.19",
DFID,DFID,13/07/2016,Project delivery costs – supplier services ,Research and Evidence Division ,HARVARD UNIVERSITY (OFFICE FOR SPONSERED PROGRAMS) ,204772-101 ,"1,367.11",
DFID,DFID,12/07/2016,Aid Programme - Core contributions ,Research and Evidence Division ,INTERNATIONAL DEVELOPMENT RESEARCH CENTRE ,204321-102 ,"107,514.00",
DFID,DFID,27/07/2016,Aid Programme - Joint programme contribution ,Research and Evidence Division ,INTERNATIONAL DEVELOPMENT RESEARCH CENTRE ,203506-102 ,"3,534,806.00",
DFID,DFID,29/07/2016,Aid Programme - Accountable Grant Payments ,Asia  Caribbean and Overseas Territories ,Manusher Jonno Foundation (mother account) ,202972-106 ,"275,000.00",
DFID,DFID,12/07/2016,Project delivery costs – supplier services ,Economic Development Division ,CARDNO EMERGING MARKETS (UK) LTD ,203535-102 ,"27,255.88",
DFID,DFID,20/07/2016,Project delivery costs – supplier services ,East and Central Africa ,CARDNO EMERGING MARKETS (UK) LTD ,203596-101 ,"197,749.00",
DFID,DFID,15/07/2016,Bank Charges/Services ,Group Operations ,Government Actuary's Department ,100182-101 ,"1,085.00",
DFID,DFID,06/07/2016,Aid Programme - Accountable Grant Payments ,West and Southern Africa ,NATIONAL DEMOCRATIC INSTITUTE (NDI) ,203851-118 ,"14,515.00",
DFID,DFID,14/07/2016,Aid Programme - Accountable Grant Payments ,Economic Development Division ,INTERNATIONAL INSTITUTE FOR SUSTAINABLE DEVELOPMENT ,203525-101 ,"172,105.00",
DFID,DFID,05/07/2016,Aid Programme - Partnership Programme Arrangements ,Policy Division ,AVOCATS SANS FRONTIERES ,202739-101 ,"362,612.75",
DFID,DFID,15/07/2016,Project delivery costs – supplier services ,Asia  Caribbean and Overseas Territories ,RURAL RECONSTRUCTION NEPAL ,203764-104 ,"232,000.00",
DFID,DFID,15/07/2016,Project delivery costs – supplier services ,Asia  Caribbean and Overseas Territories ,RURAL RECONSTRUCTION NEPAL ,203764-110 ,"159,000.00",
DFID,DFID,29/07/2016,Aid Programme - Accountable Grant Payments ,Asia  Caribbean and Overseas Territories ,THE GURKHA WELFARE SCHEME ,203187-102 ,"280,000.00",
DFID,DFID,29/07/2016,Aid Programme - Accountable Grant Payments ,Asia  Caribbean and Overseas Territories ,THE GURKHA WELFARE SCHEME ,203187-103 ,"120,000.00",
DFID,DFID,07/07/2016,Aid Programme - Voluntary contributions ,Policy Division ,OECD ,202948-135 ,"17,236.00",
DFID,DFID,06/07/2016,Data Network - land lines ,Business Solutions Division Level ,NAYATEL (PVT) LTD ,203329-102 ,706.38,
DFID,DFID,06/07/2016,Data Network - land lines ,Business Solutions Division Level ,NAYATEL (PVT) LTD ,200002-121 ,706.38,
DFID,DFID,11/07/2016,Hotels - Accommodation only,Asia  Caribbean and Overseas Territories ,Supplier Name withheld ,101624-101 ,"4,445.17",
DFID,DFID,26/07/2016,Aid Programme - Voluntary contributions ,West and Southern Africa ,UN- HABITAT ,202416-115 ,"1,468,080.00",
DFID,DFID,28/07/2016,Project delivery costs – supplier services ,East and Central Africa ,HM Revenue & Customs Acc No 11963228 ,204323-106 ,"2,741.76",
DFID,DFID,21/07/2016,Aid Programme - Accountable Grant Payments ,International Relations Division ,IFPRI ,203707-101 ,"100,000.00",
DFID,DFID,04/07/2016,Air fares ,West and Southern Africa ,UNHAS - WFP (DRC) ,101610-101 ,"3,456.05",
DFID,DFID,14/07/2016,Air fares ,West and Southern Africa ,UNHAS - WFP (DRC) ,101610-101 ,"1,235.52",
DFID,DFID,22/07/2016,Aid Programme - Joint programme contribution ,West and Southern Africa ,Ministry of Foreign Affairs of the Republic of Finland ,202536-102 ,"3,500,000.00",
DFID,DFID,01/07/2016,Project delivery costs – supplier services ,East and Central Africa ,Futures Group Europe ,202547-102 ,"227,009.45",
DFID,DFID,01/07/2016,Project delivery costs – supplier services ,West and Southern Africa ,Futures Group Europe ,202992-101 ,"1,359,067.00",
DFID,DFID,15/07/2016,Project delivery costs – supplier services ,West and Southern Africa ,Futures Group Europe ,202819-102 ,"169,195.62",
DFID,DFID,20/07/2016,Aid Programme - Voluntary contributions ,East and Central Africa ,International Monetary Fund (GBP) ,201614-101 ,"1,000,000.00",
DFID,DFID,07/07/2016,Aid Programme - Voluntary contributions ,East and Central Africa ,International Monetary Fund (GBP) ,201389-101 ,"2,250,000.00",
DFID,DFID,15/07/2016,Aid Programme - Accountable Grant Payments ,East and Central Africa ,Basel Institute On Governance ,204437-107 ,"51,365.52",
DFID,DFID,14/07/2016,Aid Programme - Core contributions ,Asia  Caribbean and Overseas Territories ,The World Bank (EFO) ,203488-106 ,"157,500.00",
DFID,DFID,14/07/2016,Project delivery costs – supplier services ,East and Central Africa ,Montrose International ,203308-108 ,"437,742.00",
DFID,DFID,12/07/2016,Project delivery costs – supplier services ,West and Southern Africa ,Baker Tilly Nigeria ,104189-106 ,"3,682.13",
DFID,DFID,11/07/2016,Hotels - Accommodation only ,Asia  Caribbean and Overseas Territories ,Supplier Name withheld ,101624-101 ,"1,630.21",
DFID,DFID,28/07/2016,Hotels - Accommodation only ,Asia  Caribbean and Overseas Territories ,ITC LTD - Maurya ,204053-101 ,519.18,
DFID,DFID,04/07/2016,Aid Programme - Partnership Programme Arrangements ,Policy Division ,Development Initiatives Poverty Research Ltd ,202828-101 ,"293,148.00",
DFID,DFID,11/07/2016,Aid Programme - Joint programme contribution ,Asia  Caribbean and Overseas Territories ,DFID-GIZ Risk Management Office  Kathmandu ,204293-101 ,"91,614.00",
DFID,DFID,13/07/2016,Hotels - Accommodation only ,East and Central Africa ,Bon Voyage Travel Centre Ltd(USD) ,105422-104 ,591.19,
DFID,DFID,05/07/2016,Air fares ,West and Southern Africa ,Bon Voyage Travel Centre Ltd(USD) ,101631-101 ,564.07,
DFID,DFID,07/07/2016,Air fares ,East and Central Africa ,Bon Voyage Travel Centre Ltd(USD) ,101634-101 ,"1,509.79",
DFID,DFID,05/07/2016,Air fares ,East and Central Africa ,Bon Voyage Travel Centre Ltd(USD) ,101634-101 ,685.76,
DFID,DFID,13/07/2016,Training - Travel & Subsistence ,East and Central Africa ,Bon Voyage Travel Centre Ltd(USD) ,101634-101 ,"1,024.10",
DFID,DFID,13/07/2016,Air fares ,East and Central Africa ,Bon Voyage Travel Centre Ltd(USD) ,101634-101 ,"1,050.19",
DFID,DFID,06/07/2016,Aid Programme - Accountable Grant Payments ,Research and Evidence Division ,The Royal Society ,203041-101 ,"1,319,853.00",
DFID,DFID,11/07/2016,Research and development costs - supplier services ,Research and Evidence Division ,Tim Leyland ,204823-102 ,670.84,
DFID,DFID,08/07/2016,Research and development costs - supplier services ,Research and Evidence Division ,Tim Leyland ,204823-102 ,"2,724.53",
DFID,DFID,11/07/2016,Aid Programme - Core contributions ,Research and Evidence Division ,The Foundation for Innovative Diagnostics (FIND) ,204074-103 ,"600,000.00",
DFID,DFID,01/07/2016,Project delivery costs – supplier services ,Asia  Caribbean and Overseas Territories ,Landell Mills Ltd ,202787-102 ,"175,484.47",
DFID,DFID,21/07/2016,Aid Programme - Core contributions ,Research and Evidence Division ,Program for Appropriate Technology in Health ,202045-102 ,"359,480.00",
DFID,DFID,07/07/2016,Aid Programme - Core contributions ,Research and Evidence Division ,Program for Appropriate Technology in Health ,204139-105 ,"400,000.00",
DFID,DFID,07/07/2016,Aid Programme - Core contributions ,Research and Evidence Division ,Program for Appropriate Technology in Health ,204139-106 ,"600,000.00",
DFID,DFID,07/07/2016,Aid Programme - Core contributions ,Research and Evidence Division ,Program for Appropriate Technology in Health ,204139-107 ,"300,000.00",
DFID,DFID,11/07/2016,Aid Programme - Core contributions ,Economic Development Division ,SG HAMBROS BANK & TRUST LTD (USD) ,203232-101 ,"2,620,531.00",
DFID,DFID,27/07/2016,Aid Programme - Core contributions ,Economic Development Division ,SG HAMBROS BANK & TRUST LTD (USD) ,203232-130 ,"1,555,000.00",
DFID,DFID,01/07/2016,Aid Programme - Core contributions ,Global Funds ,GAVI ,203826-103 ,"14,000,000.00",
DFID,DFID,28/07/2016,Project delivery costs – supplier services ,Asia  Caribbean and Overseas Territories ,Harewelle International Limited. ,107402-101 ,"118,873.65",
DFID,DFID,11/07/2016,Project delivery costs – supplier services ,Asia  Caribbean and Overseas Territories ,Harewelle International Limited. ,107402-101 ,"94,383.01",
DFID,DFID,11/07/2016,Project delivery costs – supplier services ,Asia  Caribbean and Overseas Territories ,Harewelle International Limited. ,107402-105 ,"2,626.52",
DFID,DFID,28/07/2016,Project delivery costs – supplier services ,Asia  Caribbean and Overseas Territories ,Harewelle International Limited. ,107402-105 ,"3,854.02",
DFID,DFID,20/07/2016,Project delivery costs – supplier services ,Human Resources ,BIRCHES GROUP LLC ,100269-135 ,726.93,
DFID,DFID,14/07/2016,Encashment of Promissory Notes ,Economic Development Division ,International Development Association ,200269-106 ,"27,740,000.00",
DFID,DFID,14/07/2016,Encashment of Promissory Notes ,Economic Development Division ,International Development Association ,204002-102 ,"109,745,000.00",
DFID,DFID,14/07/2016,Encashment of Promissory Notes ,Economic Development Division ,International Development Association ,202969-106 ,"77,922,500.00",
DFID,DFID,15/07/2016,Encashment of Promissory Notes ,Policy Division ,International Bank for Reconstruction and Development - Global Environment Fund 5 ,202216-103 ,"3,148,000.00",
DFID,DFID,15/07/2016,Encashment of Promissory Notes ,Policy Division ,International Bank for Reconstruction and Development - Global Environment Fund 5 ,202216-104 ,"2,102,000.00",
DFID,DFID,15/07/2016,Encashment of Promissory Notes ,Policy Division ,International Bank for Reconstruction and Development - Global Environment Fund 6 ,204056-101 ,"2,100,000.00",
DFID,DFID,15/07/2016,Encashment of Promissory Notes ,Policy Division ,International Bank for Reconstruction and Development - Global Environment Fund 6 ,204056-102 ,"3,150,000.00",
DFID,DFID,05/07/2016,Encashment of Promissory Notes ,Economic Development Division ,Asian Development Fund ,203547-102 ,"8,300,000.00",
DFID,DFID,05/07/2016,Encashment of Promissory Notes ,Economic Development Division ,Asian Development Fund ,200614-104 ,"3,161,000.00",
DFID,DFID,29/07/2016,Project delivery costs – supplier services ,East and Central Africa ,Supplier Name withheld ,204852-109 ,"8,725.98",
DFID,DFID,27/07/2016,Aid Programme - Accountable Grant Payments ,Conflict  Humanitarian  Security & Stabilisation Division ,Supplier Name withheld ,203419-105 ,"9,347.06",
DFID,DFID,27/07/2016,Aid Programme - Accountable Grant Payments ,Conflict  Humanitarian  Security & Stabilisation Division ,Supplier Name withheld ,203419-105 ,"9,349.73",
DFID,DFID,28/07/2016,Project delivery costs – supplier services ,Asia  Caribbean and Overseas Territories ,SIDBI MUMBAI ,114293-103 ,"7,677.94",
DFID,DFID,11/07/2016,Project delivery costs – supplier services ,Asia  Caribbean and Overseas Territories ,SIDBI MUMBAI ,114293-103 ,"245,677.75",
DFID,DFID,22/07/2016,Project delivery costs – supplier services ,Asia  Caribbean and Overseas Territories ,SIDBI MUMBAI ,114293-103 ,"24,107.89",
DFID,DFID,22/07/2016,Project delivery costs – supplier services ,Asia  Caribbean and Overseas Territories ,SIDBI MUMBAI ,114293-103 ,"44,125.98",
DFID,DFID,29/07/2016,Aid Programme - Accountable Grant Payments ,East and Central Africa ,TRADEMARK EAST AFRICA ,202514-103 ,"796,667.00",
DFID,DFID,29/07/2016,Aid Programme - Accountable Grant Payments ,East and Central Africa ,TRADEMARK EAST AFRICA ,202514-106 ,"357,000.00",
DFID,DFID,29/07/2016,Aid Programme - Pooled/Basket funding ,East and Central Africa ,TRADEMARK EAST AFRICA ,203357-103 ,"1,300,000.00",
DFID,DFID,29/07/2016,Aid Programme - Pooled/Basket funding ,East and Central Africa ,TRADEMARK EAST AFRICA ,203357-104 ,"2,000,000.00",
DFID,DFID,29/07/2016,Aid Programme - Pooled/Basket funding ,East and Central Africa ,TRADEMARK EAST AFRICA ,203357-105 ,"1,700,000.00",
DFID,DFID,29/07/2016,Aid Programme - Pooled/Basket funding ,East and Central Africa ,TRADEMARK EAST AFRICA ,203357-113 ,"2,000,000.00",
DFID,DFID,13/07/2016,Project delivery costs – supplier services ,Group Operations ,rpmi ,204999-101 ,"2,457.00",
DFID,DFID,11/07/2016,Aid Programme - Accountable Grant Payments ,Research and Evidence Division ,MASSACHUSETTS INSTITUTE OF TECHNOLOGY ,204291-102 ,"43,119.00",
DFID,DFID,27/07/2016,Aid Programme - Accountable Grant Payments ,Asia  Caribbean and Overseas Territories ,The Asia Foundation (GBP) ,204623-101 ,"353,627.00",
DFID,DFID,20/07/2016,Project delivery costs – supplier services ,Asia  Caribbean and Overseas Territories ,KPMG. ,114293-103 ,"1,938.57",
DFID,DFID,21/07/2016,Project delivery costs – supplier services ,Asia  Caribbean and Overseas Territories ,KPMG. ,114293-103 ,"1,938.58",
DFID,DFID,20/07/2016,Project delivery costs – supplier services ,Asia  Caribbean and Overseas Territories ,KPMG. ,114293-103 ,"3,877.12",
DFID,DFID,20/07/2016,Project delivery costs – supplier services ,Asia  Caribbean and Overseas Territories ,Pricewaterhousecoopers Pvt. Ltd. ,114293-107 ,"5,534.52",
DFID,DFID,29/07/2016,Aid Programme - Accountable Grant Payments ,East and Central Africa ,INTERNATIONAL ALERT ,205072-101 ,"147,048.00",
DFID,DFID,29/07/2016,Aid Programme - Accountable Grant Payments ,East and Central Africa ,INTERNATIONAL ALERT ,205072-102 ,"60,147.98",
DFID,DFID,21/07/2016,Aid Programme - Accountable Grant Payments ,West and Southern Africa ,POLICY AND LEGAL ADVOCACY CENTRE ,203851-117 ,"335,932.50",
DFID,DFID,29/07/2016,Project delivery costs – supplier services ,East and Central Africa ,Supplier Name withheld ,204852-109 ,"18,261.23",
DFID,DFID,29/07/2016,Project delivery costs – supplier services ,East and Central Africa ,Supplier Name withheld ,204852-109 ,"17,535.29",
DFID,DFID,05/07/2016,Aid Programme - Accountable Grant Payments ,East and Central Africa ,Supplier Name withheld ,203462-117 ,"446,469.24",
DFID,DFID,05/07/2016,Aid Programme - Accountable Grant Payments ,East and Central Africa ,Supplier Name withheld ,203462-110 ,"1,681,676.25",
DFID,DFID,07/07/2016,Aid Programme - Partnership Programme Arrangements ,Policy Division ,Supplier Name withheld ,202688-101 ,"635,786.25",
DFID,DFID,14/07/2016,Project delivery costs – supplier services ,Policy Division ,CfBT Education Trust ,201469-106 ,"123,855.00",
DFID,DFID,22/07/2016,Hotels - Accommodation only ,West and Southern Africa ,Wood lands Guest Lodge ,101638-105 ,"1,095.89",
DFID,DFID,20/07/2016,Training - Travel & Subsistence ,Asia  Caribbean and Overseas Territories ,Gerry's Travel Agency Private Limited ,101624-101 ,687.10,
DFID,DFID,20/07/2016,Training - Travel & Subsistence ,Asia  Caribbean and Overseas Territories ,Gerry's Travel Agency Private Limited ,101624-101 ,738.69,
DFID,DFID,20/07/2016,Air fares ,Asia  Caribbean and Overseas Territories ,Gerry's Travel Agency Private Limited ,101624-101 ,"1,128.42",
DFID,DFID,20/07/2016,Training - Travel & Subsistence ,Asia  Caribbean and Overseas Territories ,Gerry's Travel Agency Private Limited ,101624-101 ,685.73,
DFID,DFID,01/07/2016,Aid Programme - Accountable Grant Payments ,East and Central Africa ,ALLIANCE FOR A GREEN REVOLUTION IN AFRICA ,201956-101 ,"95,922.13",
DFID,DFID,05/07/2016,Aid Programme - Accountable Grant Payments ,East and Central Africa ,ALLIANCE FOR A GREEN REVOLUTION IN AFRICA ,201956-101 ,"194,302.18",
DFID,DFID,13/07/2016,Project delivery costs – supplier services ,Policy Division ,iMEDIA ASSOCIATES LTD ,202629-102 ,"12,336.45",
DFID,DFID,13/07/2016,Project delivery costs – supplier services ,Policy Division ,iMEDIA ASSOCIATES LTD ,202629-102 ,525.51,
DFID,DFID,15/07/2016,Project delivery costs – supplier services ,East and Central Africa ,Triple Line Consulting ,203220-102 ,"3,906.91",
DFID,DFID,15/07/2016,Project delivery costs – supplier services ,East and Central Africa ,Triple Line Consulting ,203220-102 ,"63,493.00",
DFID,DFID,15/07/2016,Project delivery costs – supplier services ,East and Central Africa ,Triple Line Consulting ,203220-102 ,"8,352.40",
DFID,DFID,19/07/2016,Project delivery costs – supplier services ,Asia  Caribbean and Overseas Territories ,IMC Worldwide Ltd. ,202927-110 ,"222,090.00",
DFID,DFID,22/07/2016,Project delivery costs – supplier services ,Research and Evidence Division ,IMC Worldwide Ltd. ,201879-101 ,"44,849.28",
DFID,DFID,22/07/2016,Project delivery costs – supplier services ,Research and Evidence Division ,IMC Worldwide Ltd. ,201879-104 ,"375,258.72",
DFID,DFID,25/07/2016,Project delivery costs – supplier services ,Policy Division ,IMC Worldwide Ltd. ,203516-101 ,"152,174.50",
DFID,DFID,21/07/2016,Project delivery costs – supplier services ,Asia  Caribbean and Overseas Territories ,IMC Worldwide Ltd. ,203186-103 ,"79,644.63",
DFID,DFID,21/07/2016,Project delivery costs – supplier services ,Asia  Caribbean and Overseas Territories ,IMC Worldwide Ltd. ,203186-110 ,"257,671.00",
DFID,DFID,26/07/2016,Project delivery costs – supplier services ,Asia  Caribbean and Overseas Territories ,IMC Worldwide Ltd. ,202328-106 ,"100,000.42",
DFID,DFID,25/07/2016,Project delivery costs – supplier services ,Asia  Caribbean and Overseas Territories ,IMC Worldwide Ltd. ,202328-107 ,"270,753.74",
DFID,DFID,26/07/2016,Project delivery costs – supplier services ,Asia  Caribbean and Overseas Territories ,IMC Worldwide Ltd. ,202328-109 ,"65,763.00",
DFID,DFID,25/07/2016,Project delivery costs – supplier services ,Asia  Caribbean and Overseas Territories ,IMC Worldwide Ltd. ,202697-111 ,"363,918.32",
DFID,DFID,25/07/2016,Project delivery costs – supplier services ,Asia  Caribbean and Overseas Territories ,IMC Worldwide Ltd. ,202697-112 ,"119,757.00",
DFID,DFID,25/07/2016,Project delivery costs – supplier services ,Asia  Caribbean and Overseas Territories ,IMC Worldwide Ltd. ,202697-104 ,"343,906.82",
DFID,DFID,27/07/2016,Project delivery costs – supplier services ,West and Southern Africa ,DAI Europe ,203000-102 ,"25,744.66",
DFID,DFID,07/07/2016,Project delivery costs – supplier services ,West and Southern Africa ,DAI Europe ,203000-102 ,"138,412.05",
DFID,DFID,05/07/2016,Project delivery costs – supplier services ,West and Southern Africa ,DAI Europe ,201980-102 ,"103,339.23",
DFID,DFID,12/07/2016,Project delivery costs – supplier services ,West and Southern Africa ,DAI Europe ,201980-102 ,"51,688.03",
DFID,DFID,27/07/2016,Fund monies to be managed and dispersed by the supplier ,Middle East and North Africa Division ,DAI Europe ,201828-101 ,"209,105.28",
DFID,DFID,26/07/2016,Project delivery costs – supplier services ,West and Southern Africa ,DAI Europe ,201958-102 ,"351,914.69",
DFID,DFID,27/07/2016,Project delivery costs – supplier services ,Asia  Caribbean and Overseas Territories ,DAI Europe ,114433-102 ,"418,763.66",
DFID,DFID,15/07/2016,Project delivery costs – supplier services ,West and Southern Africa ,DAI Europe ,204822-101 ,"381,245.91",
DFID,DFID,21/07/2016,Project delivery costs – supplier services ,Economic Development Division ,DAI Europe ,202817-105 ,"7,600.53",
DFID,DFID,27/07/2016,Project delivery costs – supplier services ,Asia  Caribbean and Overseas Territories ,DAI Europe ,204977-103 ,"180,642.43",
DFID,DFID,27/07/2016,Project delivery costs – supplier services ,East and Central Africa ,DAI Europe ,202596-105 ,"198,923.98",
DFID,DFID,07/07/2016,Project delivery costs – supplier services ,East and Central Africa ,DAI Europe ,203986-102 ,"229,087.69",
DFID,DFID,12/07/2016,Project delivery costs – supplier services ,West and Southern Africa ,DAI Europe ,201980-102 ,"206,061.20",
DFID,DFID,25/07/2016,Project delivery costs – supplier services ,West and Southern Africa ,DAI Europe ,201857-102 ,"77,154.05",
DFID,DFID,27/07/2016,Project delivery costs – supplier services ,East and Central Africa ,DAI Europe ,202580-102 ,"344,535.90",
DFID,DFID,29/07/2016,Project delivery costs – supplier services ,West and Southern Africa ,DAI Europe ,202585-102 ,"141,469.55",
DFID,DFID,25/07/2016,Project delivery costs – supplier services ,West and Southern Africa ,DAI Europe ,201018-102 ,"256,643.68",
DFID,DFID,25/07/2016,Project delivery costs – supplier services ,West and Southern Africa ,DAI Europe ,203922-101 ,"221,580.96",
DFID,DFID,21/07/2016,Project delivery costs – supplier services ,Research and Evidence Division ,Abt Associates ,203052-103 ,"93,459.00",
DFID,DFID,26/07/2016,Research and development costs - supplier services ,Research and Evidence Division ,Abt Associates ,203052-105 ,"50,494.71",
DFID,DFID,28/07/2016,Fund monies to be managed and dispersed by the supplier ,East and Central Africa ,MSI ,202549-105 ,"1,098,690.00",
DFID,DFID,27/07/2016,Project delivery costs – supplier services ,West and Southern Africa ,MSI ,202721-103 ,"796,289.00",
DFID,DFID,08/07/2016,Project delivery costs – supplier services ,Policy Division ,PATH ,202674-101 ,"13,201.20",
DFID,DFID,08/07/2016,Project delivery costs – supplier services ,Policy Division ,PATH ,202674-101 ,"12,635.41",
DFID,DFID,08/07/2016,Project delivery costs – supplier services ,Policy Division ,PATH ,202674-101 ,"3,245.20",
DFID,DFID,04/07/2016,Project delivery costs – supplier services ,Policy Division ,PATH ,202674-101 ,"32,372.00",
DFID,DFID,01/07/2016,Project delivery costs – supplier services ,Policy Division ,PATH ,202674-101 ,"23,992.91",
DFID,DFID,06/07/2016,Project delivery costs – supplier services ,Policy Division ,PATH ,202674-101 ,"19,835.50",
DFID,DFID,11/07/2016,Project delivery costs – supplier services ,Policy Division ,PATH ,202674-101 ,"21,914.80",
DFID,DFID,08/07/2016,Project delivery costs – supplier services ,Policy Division ,PATH ,202676-101 ,"5,876.84",
DFID,DFID,04/07/2016,Project delivery costs – supplier services ,Policy Division ,PATH ,202676-102 ,"84,147.96",
DFID,DFID,08/07/2016,Research and development costs - supplier services ,Research and Evidence Division ,WYG International ,204563-104 ,"10,454.40",
DFID,DFID,25/07/2016,Project delivery costs – supplier services ,Economic Development Division ,WYG International ,203732-102 ,"25,104.00",
DFID,DFID,01/07/2016,Project delivery costs – supplier services ,East and Central Africa ,LTS International Ltd. ,203152-102 ,"18,420.00",
DFID,DFID,20/07/2016,Project delivery costs – supplier services ,Asia  Caribbean and Overseas Territories ,LTS International Ltd. ,200773-102 ,"7,575.00",
DFID,DFID,20/07/2016,Project delivery costs – supplier services ,Asia  Caribbean and Overseas Territories ,LTS International Ltd. ,200773-102 ,"7,400.00",
DFID,DFID,28/07/2016,Project delivery costs – supplier services ,Asia  Caribbean and Overseas Territories ,LTS International Ltd. ,201724-153 ,"79,894.29",
DFID,DFID,06/07/2016,Project delivery costs – supplier services ,Asia  Caribbean and Overseas Territories ,LTS International Ltd. ,201724-153 ,"269,736.36",
DFID,DFID,01/07/2016,Project delivery costs – supplier services ,Asia  Caribbean and Overseas Territories ,LTS International Ltd. ,201724-153 ,"146,960.51",
DFID,DFID,28/07/2016,Project delivery costs – supplier services ,Asia  Caribbean and Overseas Territories ,LTS International Ltd. ,201724-153 ,"82,418.38",
DFID,DFID,28/07/2016,Project delivery costs – supplier services ,East and Central Africa ,LTS International Ltd. ,201866-106 ,"12,928.26",
DFID,DFID,25/07/2016,Project delivery costs – supplier services ,Policy Division ,Mannion Daniels Limited ,202035-101 ,"362,116.20",
DFID,DFID,25/07/2016,Project delivery costs – supplier services ,Policy Division ,Mannion Daniels Limited ,202035-102 ,"575,775.31",
DFID,DFID,22/07/2016,Aid Programme - Programme Contribution ,International Relations Division ,Commonwealth Scholarships Comm ,202861-101 ,"5,907,000.00",
DFID,DFID,22/07/2016,Other Admin Costs ,International Relations Division ,Commonwealth Scholarships Comm ,202861-102 ,"406,000.00", 2nd Quarterly Payment to the Commonwealth Scholarship Commission in respect of the 2016/17 Programme contribution 
DFID,DFID,01/07/2016,Aid Programme - Accountable Grant Payments ,Research and Evidence Division ,Practical Action Consulting ,200490-103 ,"125,000.00",
DFID,DFID,01/07/2016,Aid Programme - Accountable Grant Payments ,Research and Evidence Division ,Practical Action Consulting ,200490-104 ,"249,807.73",
DFID,DFID,29/07/2016,Project delivery costs – supplier services ,Middle East and North Africa Division ,TRANSTEC ,204516-101 ,"221,354.00",
DFID,DFID,19/07/2016,Contract Catering Services ,Policy Division ,MITIE Catering Services Ltd ,100045-101 ,525.60,
DFID,DFID,27/07/2016,Project delivery costs – supplier services ,West and Southern Africa ,DNA Economics ,204969-102 ,"103,456.96",
DFID,DFID,13/07/2016,Project delivery costs – supplier services ,Asia  Caribbean and Overseas Territories ,PricewaterhouseCoopers Pvt.Ltd ,203757-101 ,"134,942.00",
DFID,DFID,14/07/2016,Aid Programme - Partnership Programme Arrangements ,Policy Division ,GENDER LINKS ,202576-101 ,"156,217.00",
DFID,DFID,21/07/2016,Hotels - Accommodation only ,West and Southern Africa ,Africa House ,101618-101 ,"1,551.49",
DFID,DFID,20/07/2016,Project delivery costs – supplier services ,Research and Evidence Division ,institute of education (Inactive) ,204806-105 ,"4,043.88",
DFID,DFID,25/07/2016,Aid Programme - Accountable Grant Payments ,Economic Development Division ,Landesa ,204252-120 ,"301,767.00",
DFID,DFID,15/07/2016,Research and development costs - supplier services ,Research and Evidence Division ,IPA ,204584-132 ,"49,892.25",
DFID,DFID,12/07/2016,Project delivery costs – supplier services ,Policy Division ,Ecometrica ,201724-151 ,"65,500.00",
DFID,DFID,19/07/2016,Aid Programme - Partnership Programme Arrangements ,Policy Division ,The Global Alliance for Improved Nutrition ,202780-101 ,"787,449.00",
DFID,DFID,15/07/2016,Aid Programme - Voluntary contributions ,East and Central Africa ,AUC- Shared Values  Election ,204458-101 ,"500,000.00",
DFID,DFID,15/07/2016,Subscriptions ,Communications Division ,Durrants lTD ,100197-101 ,"1,491.98",
DFID,DFID,13/07/2016,Subscriptions ,Communications Division ,Durrants lTD ,100197-101 ,"1,690.22",
DFID,DFID,21/07/2016,Project delivery costs – supplier services ,Policy Division ,Pearson ,201469-103 ,"164,198.00",
DFID,DFID,28/07/2016,Project delivery costs – supplier services ,East and Central Africa ,Hext Consulting Ltd ,204323-106 ,"25,304.09",
DFID,DFID,21/07/2016,Project delivery costs – supplier services ,East and Central Africa ,Hext Consulting Ltd ,204323-106 ,"14,154.00",
DFID,DFID,26/07/2016,Aid Programme - Joint programme contribution ,Asia  Caribbean and Overseas Territories ,Deutsche Gesellschaft fuer Internationale Zusammenarbeit (GIZ) GmbH ,203227-101 ,"950,000.00",
DFID,DFID,27/07/2016,Project delivery costs – supplier services ,Asia  Caribbean and Overseas Territories ,Deloitte Touche Tohmatsu India Private Limited ,203224-101 ,"60,731.95",
DFID,DFID,27/07/2016,Project delivery costs – supplier services ,Asia  Caribbean and Overseas Territories ,Deloitte Touche Tohmatsu India Private Limited ,203224-101 ,"24,058.74",
DFID,DFID,27/07/2016,Project delivery costs – supplier services ,Asia  Caribbean and Overseas Territories ,Deloitte Touche Tohmatsu India Private Limited ,203224-101 ,"50,772.74",
DFID,DFID,26/07/2016,Project delivery costs – supplier services ,Asia  Caribbean and Overseas Territories ,Semiotics Consultants (Pvt) Limited ,202368-103 ,"3,982.23",
DFID,DFID,12/07/2016,Computer Software Licenses ,Research and Evidence Division ,ProQuest LLC ,202348-105 ,"2,289.00",
DFID,DFID,11/07/2016,Aid Programme - Joint programme contribution ,Research and Evidence Division ,Biotechnology & Biological Sciences Research Council ,202766-105 ,"256,559.52",
DFID,DFID,05/07/2016,Aid Programme - Accountable Grant Payments ,Research and Evidence Division ,International Union Against Tuberculosis and Lung Disease ,202506-103 ,"227,511.10",
DFID,DFID,15/07/2016,Aid Programme - Core contributions ,Economic Development Division ,UN Global Compact ,203448-103 ,"100,000.00",
DFID,DFID,28/07/2016,Aid Programme - Partnership Programme Arrangements ,Policy Division ,Islamic Relief Worldwide ,203105-101 ,"448,704.00",
DFID,DFID,22/07/2016,Legal costs ,Asia  Caribbean and Overseas Territories ,Amarchand & Mangaldas & Suresh A Shroff & Co. ,202869-101 ,"5,415.10",
DFID,DFID,07/07/2016,Project delivery costs – supplier services ,West and Southern Africa ,MAP Consultoria Lda ,203311-103 ,"21,059.70",
DFID,DFID,21/07/2016,Aid Programme - Core contributions ,Research and Evidence Division ,US Agency for Int'l Dev ,204423-102 ,"650,000.00",
DFID,DFID,12/07/2016,Aid Programme - Accountable Grant Payments ,Middle East and North Africa Division ,Shell Foundation ,203441-101 ,"176,313.00",
DFID,DFID,08/07/2016,Aid Programme - Accountable Grant Payments ,Middle East and North Africa Division ,Shell Foundation ,203441-101 ,"118,714.00",
DFID,DFID,07/07/2016,Aid Programme - Accountable Grant Payments ,Middle East and North Africa Division ,Shell Foundation ,203441-101 ,"74,489.00",
DFID,DFID,14/07/2016,Aid Programme - Accountable Grant Payments ,Middle East and North Africa Division ,Shell Foundation ,203441-101 ,"136,903.00",
DFID,DFID,11/07/2016,Air fares ,Business Solutions Division Level ,Harvey World Travel Centurion ,203329-104 ,576.69,
DFID,DFID,07/07/2016,Air fares ,Business Solutions Division Level ,Harvey World Travel Centurion ,203329-104 ,576.62,
DFID,DFID,05/07/2016,Air fares ,West and Southern Africa ,Harvey World Travel Centurion ,101631-101 ,"3,501.59",
DFID,DFID,05/07/2016,Air fares ,West and Southern Africa ,Harvey World Travel Centurion ,101631-101 ,"1,405.02",
DFID,DFID,26/07/2016,Air fares ,West and Southern Africa ,Harvey World Travel Centurion ,101631-101 ,923.04,
DFID,DFID,27/07/2016,Aid Programme - Other Financial Aid to Government ,East and Central Africa ,Ministry of Finance Tanzania  (BRN) ,202770-101 ,"274,000.00",
DFID,DFID,14/07/2016,Training Providers/Facilitation Services ,Business Solutions Division Level ,Emergn ,200001-101 ,"8,750.00",
DFID,DFID,04/07/2016,Hardware - desktop PCs ,Business Solutions Division Level ,Stone Computers Ltd ,200004-128 ,"2,011.20",
DFID,DFID,28/07/2016,Aid Programme - Accountable Grant Payments ,Policy Division ,Guttmacher Institute ,203177-101 ,"291,068.00",
DFID,DFID,29/07/2016,Aid Programme - Accountable Grant Payments ,Policy Division ,Disability Rights Fund Inc. ,203971-101 ,"271,326.00",
DFID,DFID,27/07/2016,Aid Programme - Accountable Grant Payments ,Asia  Caribbean and Overseas Territories ,James P Grant School of Public Health  BRAC University ,201645-110 ,"449,464.48",
DFID,DFID,08/07/2016,Legal costs ,Research and Evidence Division ,Marriott Davies Yapp LLP ,203638-101 ,695.52,
DFID,DFID,26/07/2016,Legal costs ,Research and Evidence Division ,Marriott Davies Yapp LLP ,203638-104 ,"2,952.24",
DFID,DFID,06/07/2016,Other Financial Aid to Government ,Asia  Caribbean and Overseas Territories ,Supplier Name withheld ,200983-102 ,"125,000.00",
DFID,DFID,01/07/2016,Project delivery costs � supplier services,Middle East and North Africa Division ,Ministry of Defence Police ,204267-105 ,"217,688.00",
DFID,DFID,20/07/2016,Training Providers/Facilitation Services ,West and Southern Africa ,inlingua - Centro Suiço Línguas  Lda ,101620-101 ,"3,005.03",
DFID,DFID,15/07/2016,Aid Programme - Other Financial Aid to Government ,East and Central Africa ,Vision 2020 Umurenge Grant 08/13 Rwanda ,203641-101 ,"4,125,000.00",
DFID,DFID,15/07/2016,Aid Programme - Other Financial Aid to Government ,East and Central Africa ,Vision 2020 Umurenge Grant 08/13 Rwanda ,203641-106 ,"1,375,000.00",
DFID,DFID,14/07/2016,Project delivery costs – supplier services ,East and Central Africa , Samuel Hall Consulting ,202619-106 ,"11,944.50",
DFID,DFID,28/07/2016,Project delivery costs – supplier services ,East and Central Africa ,Economic Policy Research Centre. ,203603-105 ,"47,226.35",
DFID,DFID,26/07/2016,Project delivery costs – supplier services ,Asia  Caribbean and Overseas Territories ,Louis Berger Group  Inc. ,203426-102 ,"240,258.00",
DFID,DFID,06/07/2016,Project delivery costs – supplier services ,Asia  Caribbean and Overseas Territories ,Louis Berger Group  Inc. ,203426-102 ,"219,341.00",
DFID,DFID,25/07/2016,Professional member subscriptions ,Human Resources ,Towers Watson Limited ,100269-148 ,"4,404.00",
DFID,DFID,28/07/2016,Aid Programme - Voluntary contributions ,Economic Development Division ,CDC Group plc ,202939-102 ,"541,300.61",
DFID,DFID,13/07/2016,Aid Programme - Voluntary contributions ,Economic Development Division ,CDC Group plc ,202939-112 ,"250,000.00",
DFID,DFID,22/07/2016,Project delivery costs – supplier services ,West and Southern Africa ,HMRC ,204939-102 ,"2,625.62",
DFID,DFID,20/07/2016,Training - Course Fees ,West and Southern Africa ,Language Services Direct Ltd ,101610-101 ,"1,102.20",
DFID,DFID,18/07/2016,Training Providers/Facilitation Services ,International Relations Division ,Language Services Direct Ltd ,100086-101 ,628.16,
DFID,DFID,18/07/2016,Training Providers/Facilitation Services ,International Relations Division ,Language Services Direct Ltd ,100086-101 ,667.42,
DFID,DFID,05/07/2016,Oil - Other Utilities ,Asia  Caribbean and Overseas Territories ,Babar Ali Foundation ,101624-101 ,630.82,
DFID,DFID,20/07/2016,Oil - Other Utilities ,Asia  Caribbean and Overseas Territories ,Babar Ali Foundation ,101624-101 ,682.72,
DFID,DFID,22/07/2016,Training Providers/Facilitation Services ,East and Central Africa ,International Committee of the Red Cross ,101630-102 ,761.04,
DFID,DFID,28/07/2016,Project delivery costs – supplier services ,West and Southern Africa ,The Centre For Employment Initiatives Ltd ,204242-103 ,"15,320.09",
DFID,DFID,07/07/2016,Project delivery costs – supplier services ,West and Southern Africa ,The Centre For Employment Initiatives Ltd ,204242-103 ,"12,183.95",
DFID,DFID,26/07/2016,Aid Programme - Core contributions ,East and Central Africa ,Deutsche Gesellschaft für Internationale Zusammenarbeit (GIZ) GmbH ,203603-113 ,"542,993.00",
DFID,DFID,26/07/2016,Research and development costs - supplier services ,Research and Evidence Division ,University of Johannesburg ,203778-107 ,"174,545.36",
DFID,DFID,29/07/2016,Training Providers/Facilitation Services ,East and Central Africa ,The BOMA Project ,202619-112 ,690.00,
DFID,DFID,25/07/2016,Project delivery costs – supplier services ,Asia  Caribbean and Overseas Territories ,Supplier Name withheld ,202112-103 ,"37,950.63",
DFID,DFID,14/07/2016,Hotels - Accommodation only ,East and Central Africa ,Golden Jubilee Limited (USD) ,101616-101 ,685.45,
DFID,DFID,29/07/2016,Project delivery costs – supplier services ,West and Southern Africa ,IMA World Health - ASSP ,202732-102 ,"6,582,357.00",
DFID,DFID,29/07/2016,Project delivery costs – supplier services ,West and Southern Africa ,IMA World Health - ASSP ,202732-104 ,"2,779,301.00",
DFID,DFID,27/07/2016,Aid Programme - Other Financial Aid to Government ,East and Central Africa ,Ministry of Finance Tanzania  Public Financial Management Reform Programme ,203008-101 ,"1,500,000.00",
DFID,DFID,27/07/2016,Aid Programme - Other Financial Aid to Government ,East and Central Africa ,Ministry of Finance Tanzania  Public Financial Management Reform Programme ,203008-102 ,"750,000.00",
DFID,DFID,14/07/2016,Facilities Management payments ,Group Operations ,Integrated Pest Management Limited ,203717-101 ,"2,496.00",
DFID,DFID,22/07/2016,Aid Programme - Accountable Grant Payments ,Asia  Caribbean and Overseas Territories ,MDRI-CESD ,203996-106 ,"39,068.37",
DFID,DFID,28/07/2016,Research and development costs - supplier services ,Research and Evidence Division ,Oxford University ,201880-102 ,"1,000,000.00",
DFID,DFID,11/07/2016,Project delivery costs – supplier services ,Asia  Caribbean and Overseas Territories ,British Council Burma ,203601-113 ,"114,856.65",
DFID,DFID,11/07/2016,Project delivery costs – supplier services ,Asia  Caribbean and Overseas Territories ,British Council Burma ,203601-113 ,"229,201.58",
DFID,DFID,22/07/2016,Training - Course Fees ,West and Southern Africa ,EML Learning Ltd. ,101631-101 ,840.00,
DFID,DFID,20/07/2016,Aid Programme - Other Financial Aid to Government ,East and Central Africa ,Rwanda Reads Project ,204463-105 ,"6,500,000.00",
DFID,DFID,20/07/2016,Aid Programme - Other Financial Aid to Government ,East and Central Africa ,Rwanda Reads Project ,204463-106 ,"3,500,000.00",
DFID,DFID,22/07/2016,Printer Consumables ,West and Southern Africa ,Kezumotu Technologies Ltd ,101622-108 ,"1,057.16",
DFID,DFID,19/07/2016,Aid Programme - Accountable Grant Payments ,Asia  Caribbean and Overseas Territories ,China Agricultural University ,203174-101 ,"5,720.81",
